{"text_format":"1","workbook":"xlsx","n_sheets":3,"sheets":["Tabelle1","Tabelle2","Tabelle3"],"not_rendered":{"charts":0,"images":0,"macros":1,"external_links":0,"defined_names":0,"comments":0,"pivot_tables":0},"unopened":[],"bounds":{"document_bytes":16777216,"sheet_cells":100000,"rows_first":2000,"rows_last":500,"rows_between":2000,"halvings":0,"cell_chars":16384,"cell_head_chars":4096},"cells_cut":0,"cells_raw":0,"read":"whole","date_system":"1900"}

{"sheet":"Tabelle1","index":0,"n_rows":1025,"n_cols":27,"rows_kept":1025,"cut":false,"hidden":false,"merged":[]}
[null,null,null,null,null,null,null,null,null,null,null,null,null,2,3,4,5,6,7,8,9,10,11,12,13,14,15]
[0,0,null,0,{"$f":"DEC2BIN(D2)","v":"0"},0,0,{"$f":"BIN2DEC(G2)","v":0},null,null,null,0,{"$f":"BIN2DEC(L2)","v":0},{"$f":"GRAY(GRAY(M2))","v":0},{"$f":"GRAY(GRAY(GRAY(M2)))","v":0},{"$f":"GRAY(GRAY(GRAY(GRAY(M2))))","v":0},{"$f":"GRAY(GRAY(GRAY(GRAY(GRAY(M2)))))","v":0},{"$f":"GRAY(GRAY(GRAY(GRAY(GRAY(GRAY(M2))))))","v":0},{"$f":"GRAY(GRAY(GRAY(GRAY(GRAY(GRAY(GRAY(M2)))))))","v":0},{"$f":"GRAY(GRAY(GRAY(GRAY(GRAY(GRAY(GRAY(GRAY(M2))))))))","v":0},{"$f":"GRAY(GRAY(GRAY(GRAY(GRAY(GRAY(GRAY(GRAY(GRAY(M2)))))))))","v":0},{"$f":"GRAY(GRAY(GRAY(GRAY(GRAY(GRAY(GRAY(GRAY(GRAY(GRAY(M2))))))))))","v":0},{"$f":"GRAY(GRAY(GRAY(GRAY(GRAY(GRAY(GRAY(GRAY(GRAY(GRAY(GRAY(M2)))))))))))","v":0},null,null,null,{"$f":"GRAY(GRAY(GRAY(GRAY(GRAY(GRAY(GRAY(GRAY(GRAY(GRAY(GRAY(GRAY(GRAY(GRAY(GRAY(M2)))))))))))))))","v":0}]
[1,1,null,1,{"$f":"DEC2BIN(D3)","v":"1"},0,1,{"$f":"BIN2DEC(G3)","v":1},null,null,null,1,{"$f":"BIN2DEC(L3)","v":1},{"$f":"GRAY(GRAY(M3))","v":1},{"$f":"GRAY(GRAY(GRAY(M3)))","v":1},{"$f":"GRAY(GRAY(GRAY(GRAY(M3))))","v":1},{"$f":"GRAY(GRAY(GRAY(GRAY(GRAY(M3)))))","v":1},{"$f":"GRAY(GRAY(GRAY(GRAY(GRAY(GRAY(M3))))))","v":1},{"$f":"GRAY(GRAY(GRAY(GRAY(GRAY(GRAY(GRAY(M3)))))))","v":1},{"$f":"GRAY(GRAY(GRAY(GRAY(GRAY(GRAY(GRAY(GRAY(M3))))))))","v":1},{"$f":"GRAY(GRAY(GRAY(GRAY(GRAY(GRAY(GRAY(GRAY(GRAY(M3)))))))))","v":1},{"$f":"GRAY(GRAY(GRAY(GRAY(GRAY(GRAY(GRAY(GRAY(GRAY(GRAY(M3))))))))))","v":1},{"$f":"GRAY(GRAY(GRAY(GRAY(GRAY(GRAY(GRAY(GRAY(GRAY(GRAY(GRAY(M3)))))))))))","v":1},null,null,null,{"$f":"GRAY(GRAY(GRAY(GRAY(GRAY(GRAY(GRAY(GRAY(GRAY(GRAY(GRAY(GRAY(GRAY(GRAY(GRAY(M3)))))))))))))))","v":1}]
[2,3,null,3,"11",1,10,2,null,null,null,11,3,{"$f":"GRAY(GRAY(M4))","v":3},{"$f":"GRAY(GRAY(GRAY(M4)))","v":2},{"$f":"GRAY(GRAY(GRAY(GRAY(M4))))","v":3},{"$f":"GRAY(GRAY(GRAY(GRAY(GRAY(M4)))))","v":2},{"$f":"GRAY(GRAY(GRAY(GRAY(GRAY(GRAY(M4))))))","v":3},{"$f":"GRAY(GRAY(GRAY(GRAY(GRAY(GRAY(GRAY(M4)))))))","v":2},{"$f":"GRAY(GRAY(GRAY(GRAY(GRAY(GRAY(GRAY(GRAY(M4))))))))","v":3},{"$f":"GRAY(GRAY(GRAY(GRAY(GRAY(GRAY(GRAY(GRAY(GRAY(M4)))))))))","v":2},{"$f":"GRAY(GRAY(GRAY(GRAY(GRAY(GRAY(GRAY(GRAY(GRAY(GRAY(M4))))))))))","v":3},{"$f":"GRAY(GRAY(GRAY(GRAY(GRAY(GRAY(GRAY(GRAY(GRAY(GRAY(GRAY(M4)))))))))))","v":2},null,null,null,{"$f":"GRAY(GRAY(GRAY(GRAY(GRAY(GRAY(GRAY(GRAY(GRAY(GRAY(GRAY(GRAY(GRAY(GRAY(GRAY(M4)))))))))))))))","v":2}]
[3,2,null,2,"10",1,11,3,null,null,null,10,2,{"$f":"GRAY(GRAY(M5))","v":2},{"$f":"GRAY(GRAY(GRAY(M5)))","v":3},{"$f":"GRAY(GRAY(GRAY(GRAY(M5))))","v":2},{"$f":"GRAY(GRAY(GRAY(GRAY(GRAY(M5)))))","v":3},{"$f":"GRAY(GRAY(GRAY(GRAY(GRAY(GRAY(M5))))))","v":2},{"$f":"GRAY(GRAY(GRAY(GRAY(GRAY(GRAY(GRAY(M5)))))))","v":3},{"$f":"GRAY(GRAY(GRAY(GRAY(GRAY(GRAY(GRAY(GRAY(M5))))))))","v":2},{"$f":"GRAY(GRAY(GRAY(GRAY(GRAY(GRAY(GRAY(GRAY(GRAY(M5)))))))))","v":3},null,{"$f":"GRAY(GRAY(GRAY(GRAY(GRAY(GRAY(GRAY(GRAY(GRAY(GRAY(GRAY(M5)))))))))))","v":3},null,null,null,{"$f":"GRAY(GRAY(GRAY(GRAY(GRAY(GRAY(GRAY(GRAY(GRAY(GRAY(GRAY(GRAY(GRAY(GRAY(GRAY(M5)))))))))))))))","v":3}]
[4,6,null,6,"110",11,101,5,null,null,null,110,6,{"$f":"GRAY(GRAY(M6))","v":7},{"$f":"GRAY(GRAY(GRAY(M6)))","v":4},{"$f":"GRAY(GRAY(GRAY(GRAY(M6))))","v":6},{"$f":"GRAY(GRAY(GRAY(GRAY(GRAY(M6)))))","v":5},{"$f":"GRAY(GRAY(GRAY(GRAY(GRAY(GRAY(M6))))))","v":7},{"$f":"GRAY(GRAY(GRAY(GRAY(GRAY(GRAY(GRAY(M6)))))))","v":4},{"$f":"GRAY(GRAY(GRAY(GRAY(GRAY(GRAY(GRAY(GRAY(M6))))))))","v":6},{"$f":"GRAY(GRAY(GRAY(GRAY(GRAY(GRAY(GRAY(GRAY(GRAY(M6)))))))))","v":5},null,{"$f":"GRAY(GRAY(GRAY(GRAY(GRAY(GRAY(GRAY(GRAY(GRAY(GRAY(GRAY(M6)))))))))))","v":4},null,null,null,{"$f":"GRAY(GRAY(GRAY(GRAY(GRAY(GRAY(GRAY(GRAY(GRAY(GRAY(GRAY(GRAY(GRAY(GRAY(GRAY(M6)))))))))))))))","v":4}]
[5,7,null,7,"111",11,100,4,null,null,null,111,7,{"$f":"GRAY(GRAY(M7))","v":6},{"$f":"GRAY(GRAY(GRAY(M7)))","v":5},{"$f":"GRAY(GRAY(GRAY(GRAY(M7))))","v":7},{"$f":"GRAY(GRAY(GRAY(GRAY(GRAY(M7)))))","v":4},{"$f":"GRAY(GRAY(GRAY(GRAY(GRAY(GRAY(M7))))))","v":6},{"$f":"GRAY(GRAY(GRAY(GRAY(GRAY(GRAY(GRAY(M7)))))))","v":5},{"$f":"GRAY(GRAY(GRAY(GRAY(GRAY(GRAY(GRAY(GRAY(M7))))))))","v":7},{"$f":"GRAY(GRAY(GRAY(GRAY(GRAY(GRAY(GRAY(GRAY(GRAY(M7)))))))))","v":4},null,{"$f":"GRAY(GRAY(GRAY(GRAY(GRAY(GRAY(GRAY(GRAY(GRAY(GRAY(GRAY(M7)))))))))))","v":5},null,null,null,{"$f":"GRAY(GRAY(GRAY(GRAY(GRAY(GRAY(GRAY(GRAY(GRAY(GRAY(GRAY(GRAY(GRAY(GRAY(GRAY(M7)))))))))))))))","v":5}]
[6,5,null,5,"101",10,111,7,null,null,null,101,5,{"$f":"GRAY(GRAY(M8))","v":4},{"$f":"GRAY(GRAY(GRAY(M8)))","v":6},{"$f":"GRAY(GRAY(GRAY(GRAY(M8))))","v":5},{"$f":"GRAY(GRAY(GRAY(GRAY(GRAY(M8)))))","v":7},{"$f":"GRAY(GRAY(GRAY(GRAY(GRAY(GRAY(M8))))))","v":4},{"$f":"GRAY(GRAY(GRAY(GRAY(GRAY(GRAY(GRAY(M8)))))))","v":6},null,{"$f":"GRAY(GRAY(GRAY(GRAY(GRAY(GRAY(GRAY(GRAY(GRAY(M8)))))))))","v":7},null,{"$f":"GRAY(GRAY(GRAY(GRAY(GRAY(GRAY(GRAY(GRAY(GRAY(GRAY(GRAY(M8)))))))))))","v":6},null,null,null,{"$f":"GRAY(GRAY(GRAY(GRAY(GRAY(GRAY(GRAY(GRAY(GRAY(GRAY(GRAY(GRAY(GRAY(GRAY(GRAY(M8)))))))))))))))","v":6}]
[7,4,null,4,"100",10,110,6,null,null,null,100,4,{"$f":"GRAY(GRAY(M9))","v":5},{"$f":"GRAY(GRAY(GRAY(M9)))","v":7},{"$f":"GRAY(GRAY(GRAY(GRAY(M9))))","v":4},{"$f":"GRAY(GRAY(GRAY(GRAY(GRAY(M9)))))","v":6},{"$f":"GRAY(GRAY(GRAY(GRAY(GRAY(GRAY(M9))))))","v":5},{"$f":"GRAY(GRAY(GRAY(GRAY(GRAY(GRAY(GRAY(M9)))))))","v":7},null,{"$f":"GRAY(GRAY(GRAY(GRAY(GRAY(GRAY(GRAY(GRAY(GRAY(M9)))))))))","v":6},null,{"$f":"GRAY(GRAY(GRAY(GRAY(GRAY(GRAY(GRAY(GRAY(GRAY(GRAY(GRAY(M9)))))))))))","v":7},null,null,null,{"$f":"GRAY(GRAY(GRAY(GRAY(GRAY(GRAY(GRAY(GRAY(GRAY(GRAY(GRAY(GRAY(GRAY(GRAY(GRAY(M9)))))))))))))))","v":7}]
[null,null,null,null,null,null,null,null,null,null,null,1100,12,{"$f":"GRAY(GRAY(M10))","v":15},{"$f":"GRAY(GRAY(GRAY(M10)))","v":8},{"$f":"GRAY(GRAY(GRAY(GRAY(M10))))","v":12},{"$f":"GRAY(GRAY(GRAY(GRAY(GRAY(M10)))))","v":10},{"$f":"GRAY(GRAY(GRAY(GRAY(GRAY(GRAY(M10))))))","v":15},{"$f":"GRAY(GRAY(GRAY(GRAY(GRAY(GRAY(GRAY(M10)))))))","v":8},null,{"$f":"GRAY(GRAY(GRAY(GRAY(GRAY(GRAY(GRAY(GRAY(GRAY(M10)))))))))","v":10},null,{"$f":"GRAY(GRAY(GRAY(GRAY(GRAY(GRAY(GRAY(GRAY(GRAY(GRAY(GRAY(M10)))))))))))","v":8},null,null,null,{"$f":"GRAY(GRAY(GRAY(GRAY(GRAY(GRAY(GRAY(GRAY(GRAY(GRAY(GRAY(GRAY(GRAY(GRAY(GRAY(M10)))))))))))))))","v":8}]
[null,null,null,null,null,null,null,null,null,null,null,1101,13,{"$f":"GRAY(GRAY(M11))","v":14},{"$f":"GRAY(GRAY(GRAY(M11)))","v":9},{"$f":"GRAY(GRAY(GRAY(GRAY(M11))))","v":13},{"$f":"GRAY(GRAY(GRAY(GRAY(GRAY(M11)))))","v":11},{"$f":"GRAY(GRAY(GRAY(GRAY(GRAY(GRAY(M11))))))","v":14},{"$f":"GRAY(GRAY(GRAY(GRAY(GRAY(GRAY(GRAY(M11)))))))","v":9},null,{"$f":"GRAY(GRAY(GRAY(GRAY(GRAY(GRAY(GRAY(GRAY(GRAY(M11)))))))))","v":11},null,{"$f":"GRAY(GRAY(GRAY(GRAY(GRAY(GRAY(GRAY(GRAY(GRAY(GRAY(GRAY(M11)))))))))))","v":9},null,null,null,{"$f":"GRAY(GRAY(GRAY(GRAY(GRAY(GRAY(GRAY(GRAY(GRAY(GRAY(GRAY(GRAY(GRAY(GRAY(GRAY(M11)))))))))))))))","v":9}]
[0,0,0,0,null,null,null,null,null,null,null,1111,15,{"$f":"GRAY(GRAY(M12))","v":12},{"$f":"GRAY(GRAY(GRAY(M12)))","v":10},{"$f":"GRAY(GRAY(GRAY(GRAY(M12))))","v":15},{"$f":"GRAY(GRAY(GRAY(GRAY(GRAY(M12)))))","v":8},{"$f":"GRAY(GRAY(GRAY(GRAY(GRAY(GRAY(M12))))))","v":12},{"$f":"GRAY(GRAY(GRAY(GRAY(GRAY(GRAY(GRAY(M12)))))))","v":10},null,{"$f":"GRAY(GRAY(GRAY(GRAY(GRAY(GRAY(GRAY(GRAY(GRAY(M12)))))))))","v":8},null,{"$f":"GRAY(GRAY(GRAY(GRAY(GRAY(GRAY(GRAY(GRAY(GRAY(GRAY(GRAY(M12)))))))))))","v":10},null,null,null,{"$f":"GRAY(GRAY(GRAY(GRAY(GRAY(GRAY(GRAY(GRAY(GRAY(GRAY(GRAY(GRAY(GRAY(GRAY(GRAY(M12)))))))))))))))","v":10}]
[1,1,1,1,null,null,null,null,null,null,null,1110,14,{"$f":"GRAY(GRAY(M13))","v":13},{"$f":"GRAY(GRAY(GRAY(M13)))","v":11},{"$f":"GRAY(GRAY(GRAY(GRAY(M13))))","v":14},{"$f":"GRAY(GRAY(GRAY(GRAY(GRAY(M13)))))","v":9},{"$f":"GRAY(GRAY(GRAY(GRAY(GRAY(GRAY(M13))))))","v":13},{"$f":"GRAY(GRAY(GRAY(GRAY(GRAY(GRAY(GRAY(M13)))))))","v":11},null,{"$f":"GRAY(GRAY(GRAY(GRAY(GRAY(GRAY(GRAY(GRAY(GRAY(M13)))))))))","v":9},null,{"$f":"GRAY(GRAY(GRAY(GRAY(GRAY(GRAY(GRAY(GRAY(GRAY(GRAY(GRAY(M13)))))))))))","v":11},null,null,null,{"$f":"GRAY(GRAY(GRAY(GRAY(GRAY(GRAY(GRAY(GRAY(GRAY(GRAY(GRAY(GRAY(GRAY(GRAY(GRAY(M13)))))))))))))))","v":11}]
[2,3,2,3,null,null,null,null,null,null,null,1010,10,null,{"$f":"GRAY(GRAY(GRAY(M14)))","v":12},{"$f":"GRAY(GRAY(GRAY(GRAY(M14))))","v":10},{"$f":"GRAY(GRAY(GRAY(GRAY(GRAY(M14)))))","v":15},{"$f":"GRAY(GRAY(GRAY(GRAY(GRAY(GRAY(M14))))))","v":8},{"$f":"GRAY(GRAY(GRAY(GRAY(GRAY(GRAY(GRAY(M14)))))))","v":12},null,{"$f":"GRAY(GRAY(GRAY(GRAY(GRAY(GRAY(GRAY(GRAY(GRAY(M14)))))))))","v":15},null,{"$f":"GRAY(GRAY(GRAY(GRAY(GRAY(GRAY(GRAY(GRAY(GRAY(GRAY(GRAY(M14)))))))))))","v":12},null,null,null,{"$f":"GRAY(GRAY(GRAY(GRAY(GRAY(GRAY(GRAY(GRAY(GRAY(GRAY(GRAY(GRAY(GRAY(GRAY(GRAY(M14)))))))))))))))","v":12}]
[3,2,3,2,null,null,null,null,null,null,null,1011,11,null,{"$f":"GRAY(GRAY(GRAY(M15)))","v":13},{"$f":"GRAY(GRAY(GRAY(GRAY(M15))))","v":11},{"$f":"GRAY(GRAY(GRAY(GRAY(GRAY(M15)))))","v":14},{"$f":"GRAY(GRAY(GRAY(GRAY(GRAY(GRAY(M15))))))","v":9},{"$f":"GRAY(GRAY(GRAY(GRAY(GRAY(GRAY(GRAY(M15)))))))","v":13},null,{"$f":"GRAY(GRAY(GRAY(GRAY(GRAY(GRAY(GRAY(GRAY(GRAY(M15)))))))))","v":14},null,{"$f":"GRAY(GRAY(GRAY(GRAY(GRAY(GRAY(GRAY(GRAY(GRAY(GRAY(GRAY(M15)))))))))))","v":13},null,null,null,{"$f":"GRAY(GRAY(GRAY(GRAY(GRAY(GRAY(GRAY(GRAY(GRAY(GRAY(GRAY(GRAY(GRAY(GRAY(GRAY(M15)))))))))))))))","v":13}]
[4,7,4,6,null,null,null,null,null,null,null,1001,9,null,{"$f":"GRAY(GRAY(GRAY(M16)))","v":14},{"$f":"GRAY(GRAY(GRAY(GRAY(M16))))","v":9},{"$f":"GRAY(GRAY(GRAY(GRAY(GRAY(M16)))))","v":13},{"$f":"GRAY(GRAY(GRAY(GRAY(GRAY(GRAY(M16))))))","v":11},{"$f":"GRAY(GRAY(GRAY(GRAY(GRAY(GRAY(GRAY(M16)))))))","v":14},null,{"$f":"GRAY(GRAY(GRAY(GRAY(GRAY(GRAY(GRAY(GRAY(GRAY(M16)))))))))","v":13},null,{"$f":"GRAY(GRAY(GRAY(GRAY(GRAY(GRAY(GRAY(GRAY(GRAY(GRAY(GRAY(M16)))))))))))","v":14},null,null,null,{"$f":"GRAY(GRAY(GRAY(GRAY(GRAY(GRAY(GRAY(GRAY(GRAY(GRAY(GRAY(GRAY(GRAY(GRAY(GRAY(M16)))))))))))))))","v":14}]
[5,6,5,7,null,null,null,null,null,null,null,1000,8,null,{"$f":"GRAY(GRAY(GRAY(M17)))","v":15},{"$f":"GRAY(GRAY(GRAY(GRAY(M17))))","v":8},{"$f":"GRAY(GRAY(GRAY(GRAY(GRAY(M17)))))","v":12},{"$f":"GRAY(GRAY(GRAY(GRAY(GRAY(GRAY(M17))))))","v":10},{"$f":"GRAY(GRAY(GRAY(GRAY(GRAY(GRAY(GRAY(M17)))))))","v":15},null,{"$f":"GRAY(GRAY(GRAY(GRAY(GRAY(GRAY(GRAY(GRAY(GRAY(M17)))))))))","v":12},null,{"$f":"GRAY(GRAY(GRAY(GRAY(GRAY(GRAY(GRAY(GRAY(GRAY(GRAY(GRAY(M17)))))))))))","v":15},null,null,null,{"$f":"GRAY(GRAY(GRAY(GRAY(GRAY(GRAY(GRAY(GRAY(GRAY(GRAY(GRAY(GRAY(GRAY(GRAY(GRAY(M17)))))))))))))))","v":15}]
[6,4,6,null,null,null,null,null,null,null,null,11000,24,null,{"$f":"GRAY(GRAY(GRAY(M18)))","v":17},{"$f":"GRAY(GRAY(GRAY(GRAY(M18))))","v":25},{"$f":"GRAY(GRAY(GRAY(GRAY(GRAY(M18)))))","v":21},{"$f":"GRAY(GRAY(GRAY(GRAY(GRAY(GRAY(M18))))))","v":31},{"$f":"GRAY(GRAY(GRAY(GRAY(GRAY(GRAY(GRAY(M18)))))))","v":16},null,{"$f":"GRAY(GRAY(GRAY(GRAY(GRAY(GRAY(GRAY(GRAY(GRAY(M18)))))))))","v":20},null,{"$f":"GRAY(GRAY(GRAY(GRAY(GRAY(GRAY(GRAY(GRAY(GRAY(GRAY(GRAY(M18)))))))))))","v":17},null,null,null,{"$f":"GRAY(GRAY(GRAY(GRAY(GRAY(GRAY(GRAY(GRAY(GRAY(GRAY(GRAY(GRAY(GRAY(GRAY(GRAY(M18)))))))))))))))","v":16}]
[7,5,7,null,null,null,null,null,null,null,null,11001,25,null,{"$f":"GRAY(GRAY(GRAY(M19)))","v":16},{"$f":"GRAY(GRAY(GRAY(GRAY(M19))))","v":24},{"$f":"GRAY(GRAY(GRAY(GRAY(GRAY(M19)))))","v":20},{"$f":"GRAY(GRAY(GRAY(GRAY(GRAY(GRAY(M19))))))","v":30},{"$f":"GRAY(GRAY(GRAY(GRAY(GRAY(GRAY(GRAY(M19)))))))","v":17},null,{"$f":"GRAY(GRAY(GRAY(GRAY(GRAY(GRAY(GRAY(GRAY(GRAY(M19)))))))))","v":21},null,{"$f":"GRAY(GRAY(GRAY(GRAY(GRAY(GRAY(GRAY(GRAY(GRAY(GRAY(GRAY(M19)))))))))))","v":16},null,null,null,{"$f":"GRAY(GRAY(GRAY(GRAY(GRAY(GRAY(GRAY(GRAY(GRAY(GRAY(GRAY(GRAY(GRAY(GRAY(GRAY(M19)))))))))))))))","v":17}]
[null,null,null,null,null,null,null,null,null,null,null,11011,27,null,{"$f":"GRAY(GRAY(GRAY(M20)))","v":19},{"$f":"GRAY(GRAY(GRAY(GRAY(M20))))","v":26},{"$f":"GRAY(GRAY(GRAY(GRAY(GRAY(M20)))))","v":23},{"$f":"GRAY(GRAY(GRAY(GRAY(GRAY(GRAY(M20))))))","v":28},{"$f":"GRAY(GRAY(GRAY(GRAY(GRAY(GRAY(GRAY(M20)))))))","v":18},null,{"$f":"GRAY(GRAY(GRAY(GRAY(GRAY(GRAY(GRAY(GRAY(GRAY(M20)))))))))","v":22},null,{"$f":"GRAY(GRAY(GRAY(GRAY(GRAY(GRAY(GRAY(GRAY(GRAY(GRAY(GRAY(M20)))))))))))","v":19},null,null,null,{"$f":"GRAY(GRAY(GRAY(GRAY(GRAY(GRAY(GRAY(GRAY(GRAY(GRAY(GRAY(GRAY(GRAY(GRAY(GRAY(M20)))))))))))))))","v":18}]
[null,null,null,null,null,null,null,null,null,null,null,11010,26,null,{"$f":"GRAY(GRAY(GRAY(M21)))","v":18},{"$f":"GRAY(GRAY(GRAY(GRAY(M21))))","v":27},{"$f":"GRAY(GRAY(GRAY(GRAY(GRAY(M21)))))","v":22},{"$f":"GRAY(GRAY(GRAY(GRAY(GRAY(GRAY(M21))))))","v":29},{"$f":"GRAY(GRAY(GRAY(GRAY(GRAY(GRAY(GRAY(M21)))))))","v":19},null,{"$f":"GRAY(GRAY(GRAY(GRAY(GRAY(GRAY(GRAY(GRAY(GRAY(M21)))))))))","v":23},null,{"$f":"GRAY(GRAY(GRAY(GRAY(GRAY(GRAY(GRAY(GRAY(GRAY(GRAY(GRAY(M21)))))))))))","v":18},null,null,null,{"$f":"GRAY(GRAY(GRAY(GRAY(GRAY(GRAY(GRAY(GRAY(GRAY(GRAY(GRAY(GRAY(GRAY(GRAY(GRAY(M21)))))))))))))))","v":19}]
[null,null,null,null,null,null,null,null,null,null,null,11110,30,null,{"$f":"GRAY(GRAY(GRAY(M22)))","v":21},{"$f":"GRAY(GRAY(GRAY(GRAY(M22))))","v":31},{"$f":"GRAY(GRAY(GRAY(GRAY(GRAY(M22)))))","v":16},{"$f":"GRAY(GRAY(GRAY(GRAY(GRAY(GRAY(M22))))))","v":24},{"$f":"GRAY(GRAY(GRAY(GRAY(GRAY(GRAY(GRAY(M22)))))))","v":20},null,{"$f":"GRAY(GRAY(GRAY(GRAY(GRAY(GRAY(GRAY(GRAY(GRAY(M22)))))))))","v":17},null,{"$f":"GRAY(GRAY(GRAY(GRAY(GRAY(GRAY(GRAY(GRAY(GRAY(GRAY(GRAY(M22)))))))))))","v":21},null,null,null,{"$f":"GRAY(GRAY(GRAY(GRAY(GRAY(GRAY(GRAY(GRAY(GRAY(GRAY(GRAY(GRAY(GRAY(GRAY(GRAY(M22)))))))))))))))","v":20}]
[null,null,null,null,null,null,null,null,null,null,null,11111,31,null,{"$f":"GRAY(GRAY(GRAY(M23)))","v":20},{"$f":"GRAY(GRAY(GRAY(GRAY(M23))))","v":30},{"$f":"GRAY(GRAY(GRAY(GRAY(GRAY(M23)))))","v":17},{"$f":"GRAY(GRAY(GRAY(GRAY(GRAY(GRAY(M23))))))","v":25},{"$f":"GRAY(GRAY(GRAY(GRAY(GRAY(GRAY(GRAY(M23)))))))","v":21},null,{"$f":"GRAY(GRAY(GRAY(GRAY(GRAY(GRAY(GRAY(GRAY(GRAY(M23)))))))))","v":16},null,{"$f":"GRAY(GRAY(GRAY(GRAY(GRAY(GRAY(GRAY(GRAY(GRAY(GRAY(GRAY(M23)))))))))))","v":20},null,null,null,{"$f":"GRAY(GRAY(GRAY(GRAY(GRAY(GRAY(GRAY(GRAY(GRAY(GRAY(GRAY(GRAY(GRAY(GRAY(GRAY(M23)))))))))))))))","v":21}]
[null,null,null,null,null,null,null,null,null,null,null,11101,29,null,{"$f":"GRAY(GRAY(GRAY(M24)))","v":23},{"$f":"GRAY(GRAY(GRAY(GRAY(M24))))","v":28},{"$f":"GRAY(GRAY(GRAY(GRAY(GRAY(M24)))))","v":18},{"$f":"GRAY(GRAY(GRAY(GRAY(GRAY(GRAY(M24))))))","v":27},{"$f":"GRAY(GRAY(GRAY(GRAY(GRAY(GRAY(GRAY(M24)))))))","v":22},null,{"$f":"GRAY(GRAY(GRAY(GRAY(GRAY(GRAY(GRAY(GRAY(GRAY(M24)))))))))","v":19},null,{"$f":"GRAY(GRAY(GRAY(GRAY(GRAY(GRAY(GRAY(GRAY(GRAY(GRAY(GRAY(M24)))))))))))","v":23},null,null,null,{"$f":"GRAY(GRAY(GRAY(GRAY(GRAY(GRAY(GRAY(GRAY(GRAY(GRAY(GRAY(GRAY(GRAY(GRAY(GRAY(M24)))))))))))))))","v":22}]
[null,null,null,null,null,null,null,null,null,null,null,11100,28,null,{"$f":"GRAY(GRAY(GRAY(M25)))","v":22},{"$f":"GRAY(GRAY(GRAY(GRAY(M25))))","v":29},{"$f":"GRAY(GRAY(GRAY(GRAY(GRAY(M25)))))","v":19},{"$f":"GRAY(GRAY(GRAY(GRAY(GRAY(GRAY(M25))))))","v":26},{"$f":"GRAY(GRAY(GRAY(GRAY(GRAY(GRAY(GRAY(M25)))))))","v":23},null,{"$f":"GRAY(GRAY(GRAY(GRAY(GRAY(GRAY(GRAY(GRAY(GRAY(M25)))))))))","v":18},null,{"$f":"GRAY(GRAY(GRAY(GRAY(GRAY(GRAY(GRAY(GRAY(GRAY(GRAY(GRAY(M25)))))))))))","v":22},null,null,null,{"$f":"GRAY(GRAY(GRAY(GRAY(GRAY(GRAY(GRAY(GRAY(GRAY(GRAY(GRAY(GRAY(GRAY(GRAY(GRAY(M25)))))))))))))))","v":23}]
[null,null,null,null,null,null,null,null,null,null,null,10100,20,null,{"$f":"GRAY(GRAY(GRAY(M26)))","v":25},{"$f":"GRAY(GRAY(GRAY(GRAY(M26))))","v":21},{"$f":"GRAY(GRAY(GRAY(GRAY(GRAY(M26)))))","v":31},{"$f":"GRAY(GRAY(GRAY(GRAY(GRAY(GRAY(M26))))))","v":16},{"$f":"GRAY(GRAY(GRAY(GRAY(GRAY(GRAY(GRAY(M26)))))))","v":24},null,{"$f":"GRAY(GRAY(GRAY(GRAY(GRAY(GRAY(GRAY(GRAY(GRAY(M26)))))))))","v":30},null,{"$f":"GRAY(GRAY(GRAY(GRAY(GRAY(GRAY(GRAY(GRAY(GRAY(GRAY(GRAY(M26)))))))))))","v":25},null,null,null,{"$f":"GRAY(GRAY(GRAY(GRAY(GRAY(GRAY(GRAY(GRAY(GRAY(GRAY(GRAY(GRAY(GRAY(GRAY(GRAY(M26)))))))))))))))","v":24}]
[null,null,null,null,null,null,null,null,null,null,null,10101,21,null,{"$f":"GRAY(GRAY(GRAY(M27)))","v":24},{"$f":"GRAY(GRAY(GRAY(GRAY(M27))))","v":20},{"$f":"GRAY(GRAY(GRAY(GRAY(GRAY(M27)))))","v":30},{"$f":"GRAY(GRAY(GRAY(GRAY(GRAY(GRAY(M27))))))","v":17},{"$f":"GRAY(GRAY(GRAY(GRAY(GRAY(GRAY(GRAY(M27)))))))","v":25},null,{"$f":"GRAY(GRAY(GRAY(GRAY(GRAY(GRAY(GRAY(GRAY(GRAY(M27)))))))))","v":31},null,{"$f":"GRAY(GRAY(GRAY(GRAY(GRAY(GRAY(GRAY(GRAY(GRAY(GRAY(GRAY(M27)))))))))))","v":24},null,null,null,{"$f":"GRAY(GRAY(GRAY(GRAY(GRAY(GRAY(GRAY(GRAY(GRAY(GRAY(GRAY(GRAY(GRAY(GRAY(GRAY(M27)))))))))))))))","v":25}]
[null,null,null,null,null,null,null,null,null,null,null,10111,23,null,{"$f":"GRAY(GRAY(GRAY(M28)))","v":27},{"$f":"GRAY(GRAY(GRAY(GRAY(M28))))","v":22},{"$f":"GRAY(GRAY(GRAY(GRAY(GRAY(M28)))))","v":29},{"$f":"GRAY(GRAY(GRAY(GRAY(GRAY(GRAY(M28))))))","v":19},{"$f":"GRAY(GRAY(GRAY(GRAY(GRAY(GRAY(GRAY(M28)))))))","v":26},null,{"$f":"GRAY(GRAY(GRAY(GRAY(GRAY(GRAY(GRAY(GRAY(GRAY(M28)))))))))","v":28},null,{"$f":"GRAY(GRAY(GRAY(GRAY(GRAY(GRAY(GRAY(GRAY(GRAY(GRAY(GRAY(M28)))))))))))","v":27},null,null,null,{"$f":"GRAY(GRAY(GRAY(GRAY(GRAY(GRAY(GRAY(GRAY(GRAY(GRAY(GRAY(GRAY(GRAY(GRAY(GRAY(M28)))))))))))))))","v":26}]
[null,null,null,null,null,null,null,null,null,null,null,10110,22,null,{"$f":"GRAY(GRAY(GRAY(M29)))","v":26},{"$f":"GRAY(GRAY(GRAY(GRAY(M29))))","v":23},{"$f":"GRAY(GRAY(GRAY(GRAY(GRAY(M29)))))","v":28},{"$f":"GRAY(GRAY(GRAY(GRAY(GRAY(GRAY(M29))))))","v":18},{"$f":"GRAY(GRAY(GRAY(GRAY(GRAY(GRAY(GRAY(M29)))))))","v":27},null,{"$f":"GRAY(GRAY(GRAY(GRAY(GRAY(GRAY(GRAY(GRAY(GRAY(M29)))))))))","v":29},null,{"$f":"GRAY(GRAY(GRAY(GRAY(GRAY(GRAY(GRAY(GRAY(GRAY(GRAY(GRAY(M29)))))))))))","v":26},null,null,null,{"$f":"GRAY(GRAY(GRAY(GRAY(GRAY(GRAY(GRAY(GRAY(GRAY(GRAY(GRAY(GRAY(GRAY(GRAY(GRAY(M29)))))))))))))))","v":27}]
[null,null,null,null,null,null,null,null,null,null,null,10010,18,null,{"$f":"GRAY(GRAY(GRAY(M30)))","v":29},{"$f":"GRAY(GRAY(GRAY(GRAY(M30))))","v":19},{"$f":"GRAY(GRAY(GRAY(GRAY(GRAY(M30)))))","v":26},{"$f":"GRAY(GRAY(GRAY(GRAY(GRAY(GRAY(M30))))))","v":23},{"$f":"GRAY(GRAY(GRAY(GRAY(GRAY(GRAY(GRAY(M30)))))))","v":28},null,{"$f":"GRAY(GRAY(GRAY(GRAY(GRAY(GRAY(GRAY(GRAY(GRAY(M30)))))))))","v":27},null,{"$f":"GRAY(GRAY(GRAY(GRAY(GRAY(GRAY(GRAY(GRAY(GRAY(GRAY(GRAY(M30)))))))))))","v":29},null,null,null,{"$f":"GRAY(GRAY(GRAY(GRAY(GRAY(GRAY(GRAY(GRAY(GRAY(GRAY(GRAY(GRAY(GRAY(GRAY(GRAY(M30)))))))))))))))","v":28}]
[null,null,null,null,null,null,null,null,null,null,null,10011,19,null,{"$f":"GRAY(GRAY(GRAY(M31)))","v":28},{"$f":"GRAY(GRAY(GRAY(GRAY(M31))))","v":18},{"$f":"GRAY(GRAY(GRAY(GRAY(GRAY(M31)))))","v":27},{"$f":"GRAY(GRAY(GRAY(GRAY(GRAY(GRAY(M31))))))","v":22},{"$f":"GRAY(GRAY(GRAY(GRAY(GRAY(GRAY(GRAY(M31)))))))","v":29},null,{"$f":"GRAY(GRAY(GRAY(GRAY(GRAY(GRAY(GRAY(GRAY(GRAY(M31)))))))))","v":26},null,{"$f":"GRAY(GRAY(GRAY(GRAY(GRAY(GRAY(GRAY(GRAY(GRAY(GRAY(GRAY(M31)))))))))))","v":28},null,null,null,{"$f":"GRAY(GRAY(GRAY(GRAY(GRAY(GRAY(GRAY(GRAY(GRAY(GRAY(GRAY(GRAY(GRAY(GRAY(GRAY(M31)))))))))))))))","v":29}]
[null,null,null,null,null,null,null,null,null,null,null,10001,17,null,{"$f":"GRAY(GRAY(GRAY(M32)))","v":31},{"$f":"GRAY(GRAY(GRAY(GRAY(M32))))","v":16},{"$f":"GRAY(GRAY(GRAY(GRAY(GRAY(M32)))))","v":24},{"$f":"GRAY(GRAY(GRAY(GRAY(GRAY(GRAY(M32))))))","v":20},{"$f":"GRAY(GRAY(GRAY(GRAY(GRAY(GRAY(GRAY(M32)))))))","v":30},null,{"$f":"GRAY(GRAY(GRAY(GRAY(GRAY(GRAY(GRAY(GRAY(GRAY(M32)))))))))","v":25},null,{"$f":"GRAY(GRAY(GRAY(GRAY(GRAY(GRAY(GRAY(GRAY(GRAY(GRAY(GRAY(M32)))))))))))","v":31},null,null,null,{"$f":"GRAY(GRAY(GRAY(GRAY(GRAY(GRAY(GRAY(GRAY(GRAY(GRAY(GRAY(GRAY(GRAY(GRAY(GRAY(M32)))))))))))))))","v":30}]
[null,null,null,null,null,null,null,null,null,null,null,"10000",16,null,{"$f":"GRAY(GRAY(GRAY(M33)))","v":30},{"$f":"GRAY(GRAY(GRAY(GRAY(M33))))","v":17},{"$f":"GRAY(GRAY(GRAY(GRAY(GRAY(M33)))))","v":25},{"$f":"GRAY(GRAY(GRAY(GRAY(GRAY(GRAY(M33))))))","v":21},{"$f":"GRAY(GRAY(GRAY(GRAY(GRAY(GRAY(GRAY(M33)))))))","v":31},null,{"$f":"GRAY(GRAY(GRAY(GRAY(GRAY(GRAY(GRAY(GRAY(GRAY(M33)))))))))","v":24},null,{"$f":"GRAY(GRAY(GRAY(GRAY(GRAY(GRAY(GRAY(GRAY(GRAY(GRAY(GRAY(M33)))))))))))","v":30},null,null,null,{"$f":"GRAY(GRAY(GRAY(GRAY(GRAY(GRAY(GRAY(GRAY(GRAY(GRAY(GRAY(GRAY(GRAY(GRAY(GRAY(M33)))))))))))))))","v":31}]
[null,null,null,null,null,null,null,null,null,null,null,"110000",48,null,{"$f":"GRAY(GRAY(GRAY(M34)))","v":34},{"$f":"GRAY(GRAY(GRAY(GRAY(M34))))","v":51},{"$f":"GRAY(GRAY(GRAY(GRAY(GRAY(M34)))))","v":42},{"$f":"GRAY(GRAY(GRAY(GRAY(GRAY(GRAY(M34))))))","v":63},{"$f":"GRAY(GRAY(GRAY(GRAY(GRAY(GRAY(GRAY(M34)))))))","v":32},null,{"$f":"GRAY(GRAY(GRAY(GRAY(GRAY(GRAY(GRAY(GRAY(GRAY(M34)))))))))","v":40},null,{"$f":"GRAY(GRAY(GRAY(GRAY(GRAY(GRAY(GRAY(GRAY(GRAY(GRAY(GRAY(M34)))))))))))","v":34},null,null,null,{"$f":"GRAY(GRAY(GRAY(GRAY(GRAY(GRAY(GRAY(GRAY(GRAY(GRAY(GRAY(GRAY(GRAY(GRAY(GRAY(M34)))))))))))))))","v":32}]
[null,null,null,null,null,null,null,null,null,null,null,"110001",49,null,{"$f":"GRAY(GRAY(GRAY(M35)))","v":35},{"$f":"GRAY(GRAY(GRAY(GRAY(M35))))","v":50},{"$f":"GRAY(GRAY(GRAY(GRAY(GRAY(M35)))))","v":43},{"$f":"GRAY(GRAY(GRAY(GRAY(GRAY(GRAY(M35))))))","v":62},{"$f":"GRAY(GRAY(GRAY(GRAY(GRAY(GRAY(GRAY(M35)))))))","v":33},null,{"$f":"GRAY(GRAY(GRAY(GRAY(GRAY(GRAY(GRAY(GRAY(GRAY(M35)))))))))","v":41},null,{"$f":"GRAY(GRAY(GRAY(GRAY(GRAY(GRAY(GRAY(GRAY(GRAY(GRAY(GRAY(M35)))))))))))","v":35},null,null,null,{"$f":"GRAY(GRAY(GRAY(GRAY(GRAY(GRAY(GRAY(GRAY(GRAY(GRAY(GRAY(GRAY(GRAY(GRAY(GRAY(M35)))))))))))))))","v":33}]
[null,null,null,null,null,null,null,null,null,null,null,"110011",51,null,{"$f":"GRAY(GRAY(GRAY(M36)))","v":32},{"$f":"GRAY(GRAY(GRAY(GRAY(M36))))","v":48},{"$f":"GRAY(GRAY(GRAY(GRAY(GRAY(M36)))))","v":40},{"$f":"GRAY(GRAY(GRAY(GRAY(GRAY(GRAY(M36))))))","v":60},{"$f":"GRAY(GRAY(GRAY(GRAY(GRAY(GRAY(GRAY(M36)))))))","v":34},null,{"$f":"GRAY(GRAY(GRAY(GRAY(GRAY(GRAY(GRAY(GRAY(GRAY(M36)))))))))","v":42},null,{"$f":"GRAY(GRAY(GRAY(GRAY(GRAY(GRAY(GRAY(GRAY(GRAY(GRAY(GRAY(M36)))))))))))","v":32},null,null,null,{"$f":"GRAY(GRAY(GRAY(GRAY(GRAY(GRAY(GRAY(GRAY(GRAY(GRAY(GRAY(GRAY(GRAY(GRAY(GRAY(M36)))))))))))))))","v":34}]
[null,null,null,null,null,null,null,null,null,null,null,"110010",50,null,{"$f":"GRAY(GRAY(GRAY(M37)))","v":33},{"$f":"GRAY(GRAY(GRAY(GRAY(M37))))","v":49},{"$f":"GRAY(GRAY(GRAY(GRAY(GRAY(M37)))))","v":41},{"$f":"GRAY(GRAY(GRAY(GRAY(GRAY(GRAY(M37))))))","v":61},{"$f":"GRAY(GRAY(GRAY(GRAY(GRAY(GRAY(GRAY(M37)))))))","v":35},null,{"$f":"GRAY(GRAY(GRAY(GRAY(GRAY(GRAY(GRAY(GRAY(GRAY(M37)))))))))","v":43},null,{"$f":"GRAY(GRAY(GRAY(GRAY(GRAY(GRAY(GRAY(GRAY(GRAY(GRAY(GRAY(M37)))))))))))","v":33},null,null,null,{"$f":"GRAY(GRAY(GRAY(GRAY(GRAY(GRAY(GRAY(GRAY(GRAY(GRAY(GRAY(GRAY(GRAY(GRAY(GRAY(M37)))))))))))))))","v":35}]
[null,null,null,null,null,null,null,null,null,null,null,"110110",54,null,{"$f":"GRAY(GRAY(GRAY(M38)))","v":38},{"$f":"GRAY(GRAY(GRAY(GRAY(M38))))","v":53},{"$f":"GRAY(GRAY(GRAY(GRAY(GRAY(M38)))))","v":47},{"$f":"GRAY(GRAY(GRAY(GRAY(GRAY(GRAY(M38))))))","v":56},{"$f":"GRAY(GRAY(GRAY(GRAY(GRAY(GRAY(GRAY(M38)))))))","v":36},null,{"$f":"GRAY(GRAY(GRAY(GRAY(GRAY(GRAY(GRAY(GRAY(GRAY(M38)))))))))","v":45},null,{"$f":"GRAY(GRAY(GRAY(GRAY(GRAY(GRAY(GRAY(GRAY(GRAY(GRAY(GRAY(M38)))))))))))","v":38},null,null,null,{"$f":"GRAY(GRAY(GRAY(GRAY(GRAY(GRAY(GRAY(GRAY(GRAY(GRAY(GRAY(GRAY(GRAY(GRAY(GRAY(M38)))))))))))))))","v":36}]
[null,null,null,null,null,null,null,null,null,null,null,"110111",55,null,{"$f":"GRAY(GRAY(GRAY(M39)))","v":39},{"$f":"GRAY(GRAY(GRAY(GRAY(M39))))","v":52},{"$f":"GRAY(GRAY(GRAY(GRAY(GRAY(M39)))))","v":46},{"$f":"GRAY(GRAY(GRAY(GRAY(GRAY(GRAY(M39))))))","v":57},{"$f":"GRAY(GRAY(GRAY(GRAY(GRAY(GRAY(GRAY(M39)))))))","v":37},null,{"$f":"GRAY(GRAY(GRAY(GRAY(GRAY(GRAY(GRAY(GRAY(GRAY(M39)))))))))","v":44},null,{"$f":"GRAY(GRAY(GRAY(GRAY(GRAY(GRAY(GRAY(GRAY(GRAY(GRAY(GRAY(M39)))))))))))","v":39},null,null,null,{"$f":"GRAY(GRAY(GRAY(GRAY(GRAY(GRAY(GRAY(GRAY(GRAY(GRAY(GRAY(GRAY(GRAY(GRAY(GRAY(M39)))))))))))))))","v":37}]
[null,null,null,null,null,null,null,null,null,null,null,"110101",53,null,{"$f":"GRAY(GRAY(GRAY(M40)))","v":36},{"$f":"GRAY(GRAY(GRAY(GRAY(M40))))","v":54},{"$f":"GRAY(GRAY(GRAY(GRAY(GRAY(M40)))))","v":45},{"$f":"GRAY(GRAY(GRAY(GRAY(GRAY(GRAY(M40))))))","v":59},{"$f":"GRAY(GRAY(GRAY(GRAY(GRAY(GRAY(GRAY(M40)))))))","v":38},null,{"$f":"GRAY(GRAY(GRAY(GRAY(GRAY(GRAY(GRAY(GRAY(GRAY(M40)))))))))","v":47},null,{"$f":"GRAY(GRAY(GRAY(GRAY(GRAY(GRAY(GRAY(GRAY(GRAY(GRAY(GRAY(M40)))))))))))","v":36},null,null,null,{"$f":"GRAY(GRAY(GRAY(GRAY(GRAY(GRAY(GRAY(GRAY(GRAY(GRAY(GRAY(GRAY(GRAY(GRAY(GRAY(M40)))))))))))))))","v":38}]
[null,null,null,null,null,null,null,null,null,null,null,"110100",52,null,{"$f":"GRAY(GRAY(GRAY(M41)))","v":37},{"$f":"GRAY(GRAY(GRAY(GRAY(M41))))","v":55},{"$f":"GRAY(GRAY(GRAY(GRAY(GRAY(M41)))))","v":44},null,{"$f":"GRAY(GRAY(GRAY(GRAY(GRAY(GRAY(GRAY(M41)))))))","v":39},null,{"$f":"GRAY(GRAY(GRAY(GRAY(GRAY(GRAY(GRAY(GRAY(GRAY(M41)))))))))","v":46},null,{"$f":"GRAY(GRAY(GRAY(GRAY(GRAY(GRAY(GRAY(GRAY(GRAY(GRAY(GRAY(M41)))))))))))","v":37},null,null,null,{"$f":"GRAY(GRAY(GRAY(GRAY(GRAY(GRAY(GRAY(GRAY(GRAY(GRAY(GRAY(GRAY(GRAY(GRAY(GRAY(M41)))))))))))))))","v":39}]
[null,null,null,null,null,null,null,null,null,null,null,"111100",60,null,{"$f":"GRAY(GRAY(GRAY(M42)))","v":42},{"$f":"GRAY(GRAY(GRAY(GRAY(M42))))","v":63},{"$f":"GRAY(GRAY(GRAY(GRAY(GRAY(M42)))))","v":32},null,{"$f":"GRAY(GRAY(GRAY(GRAY(GRAY(GRAY(GRAY(M42)))))))","v":40},null,{"$f":"GRAY(GRAY(GRAY(GRAY(GRAY(GRAY(GRAY(GRAY(GRAY(M42)))))))))","v":34},null,{"$f":"GRAY(GRAY(GRAY(GRAY(GRAY(GRAY(GRAY(GRAY(GRAY(GRAY(GRAY(M42)))))))))))","v":42},null,null,null,{"$f":"GRAY(GRAY(GRAY(GRAY(GRAY(GRAY(GRAY(GRAY(GRAY(GRAY(GRAY(GRAY(GRAY(GRAY(GRAY(M42)))))))))))))))","v":40}]
[null,null,null,null,null,null,null,null,null,null,null,"111101",61,null,{"$f":"GRAY(GRAY(GRAY(M43)))","v":43},{"$f":"GRAY(GRAY(GRAY(GRAY(M43))))","v":62},{"$f":"GRAY(GRAY(GRAY(GRAY(GRAY(M43)))))","v":33},null,{"$f":"GRAY(GRAY(GRAY(GRAY(GRAY(GRAY(GRAY(M43)))))))","v":41},null,{"$f":"GRAY(GRAY(GRAY(GRAY(GRAY(GRAY(GRAY(GRAY(GRAY(M43)))))))))","v":35},null,{"$f":"GRAY(GRAY(GRAY(GRAY(GRAY(GRAY(GRAY(GRAY(GRAY(GRAY(GRAY(M43)))))))))))","v":43},null,null,null,{"$f":"GRAY(GRAY(GRAY(GRAY(GRAY(GRAY(GRAY(GRAY(GRAY(GRAY(GRAY(GRAY(GRAY(GRAY(GRAY(M43)))))))))))))))","v":41}]
[null,null,null,null,null,null,null,null,null,null,null,"111111",63,null,{"$f":"GRAY(GRAY(GRAY(M44)))","v":40},{"$f":"GRAY(GRAY(GRAY(GRAY(M44))))","v":60},{"$f":"GRAY(GRAY(GRAY(GRAY(GRAY(M44)))))","v":34},null,{"$f":"GRAY(GRAY(GRAY(GRAY(GRAY(GRAY(GRAY(M44)))))))","v":42},null,{"$f":"GRAY(GRAY(GRAY(GRAY(GRAY(GRAY(GRAY(GRAY(GRAY(M44)))))))))","v":32},null,{"$f":"GRAY(GRAY(GRAY(GRAY(GRAY(GRAY(GRAY(GRAY(GRAY(GRAY(GRAY(M44)))))))))))","v":40},null,null,null,{"$f":"GRAY(GRAY(GRAY(GRAY(GRAY(GRAY(GRAY(GRAY(GRAY(GRAY(GRAY(GRAY(GRAY(GRAY(GRAY(M44)))))))))))))))","v":42}]
[null,null,null,null,null,null,null,null,null,null,null,"111110",62,null,{"$f":"GRAY(GRAY(GRAY(M45)))","v":41},{"$f":"GRAY(GRAY(GRAY(GRAY(M45))))","v":61},{"$f":"GRAY(GRAY(GRAY(GRAY(GRAY(M45)))))","v":35},null,{"$f":"GRAY(GRAY(GRAY(GRAY(GRAY(GRAY(GRAY(M45)))))))","v":43},null,{"$f":"GRAY(GRAY(GRAY(GRAY(GRAY(GRAY(GRAY(GRAY(GRAY(M45)))))))))","v":33},null,{"$f":"GRAY(GRAY(GRAY(GRAY(GRAY(GRAY(GRAY(GRAY(GRAY(GRAY(GRAY(M45)))))))))))","v":41},null,null,null,{"$f":"GRAY(GRAY(GRAY(GRAY(GRAY(GRAY(GRAY(GRAY(GRAY(GRAY(GRAY(GRAY(GRAY(GRAY(GRAY(M45)))))))))))))))","v":43}]
[null,null,null,null,null,null,null,null,null,null,null,"111010",58,null,{"$f":"GRAY(GRAY(GRAY(M46)))","v":46},{"$f":"GRAY(GRAY(GRAY(GRAY(M46))))","v":57},{"$f":"GRAY(GRAY(GRAY(GRAY(GRAY(M46)))))","v":37},null,{"$f":"GRAY(GRAY(GRAY(GRAY(GRAY(GRAY(GRAY(M46)))))))","v":44},null,{"$f":"GRAY(GRAY(GRAY(GRAY(GRAY(GRAY(GRAY(GRAY(GRAY(M46)))))))))","v":39},null,{"$f":"GRAY(GRAY(GRAY(GRAY(GRAY(GRAY(GRAY(GRAY(GRAY(GRAY(GRAY(M46)))))))))))","v":46},null,null,null,{"$f":"GRAY(GRAY(GRAY(GRAY(GRAY(GRAY(GRAY(GRAY(GRAY(GRAY(GRAY(GRAY(GRAY(GRAY(GRAY(M46)))))))))))))))","v":44}]
[null,null,null,null,null,null,null,null,null,null,null,"111011",59,null,{"$f":"GRAY(GRAY(GRAY(M47)))","v":47},{"$f":"GRAY(GRAY(GRAY(GRAY(M47))))","v":56},{"$f":"GRAY(GRAY(GRAY(GRAY(GRAY(M47)))))","v":36},null,{"$f":"GRAY(GRAY(GRAY(GRAY(GRAY(GRAY(GRAY(M47)))))))","v":45},null,{"$f":"GRAY(GRAY(GRAY(GRAY(GRAY(GRAY(GRAY(GRAY(GRAY(M47)))))))))","v":38},null,{"$f":"GRAY(GRAY(GRAY(GRAY(GRAY(GRAY(GRAY(GRAY(GRAY(GRAY(GRAY(M47)))))))))))","v":47},null,null,null,{"$f":"GRAY(GRAY(GRAY(GRAY(GRAY(GRAY(GRAY(GRAY(GRAY(GRAY(GRAY(GRAY(GRAY(GRAY(GRAY(M47)))))))))))))))","v":45}]
[null,null,null,null,null,null,null,null,null,null,null,"111001",57,null,{"$f":"GRAY(GRAY(GRAY(M48)))","v":44},{"$f":"GRAY(GRAY(GRAY(GRAY(M48))))","v":58},{"$f":"GRAY(GRAY(GRAY(GRAY(GRAY(M48)))))","v":39},null,{"$f":"GRAY(GRAY(GRAY(GRAY(GRAY(GRAY(GRAY(M48)))))))","v":46},null,{"$f":"GRAY(GRAY(GRAY(GRAY(GRAY(GRAY(GRAY(GRAY(GRAY(M48)))))))))","v":37},null,{"$f":"GRAY(GRAY(GRAY(GRAY(GRAY(GRAY(GRAY(GRAY(GRAY(GRAY(GRAY(M48)))))))))))","v":44},null,null,null,{"$f":"GRAY(GRAY(GRAY(GRAY(GRAY(GRAY(GRAY(GRAY(GRAY(GRAY(GRAY(GRAY(GRAY(GRAY(GRAY(M48)))))))))))))))","v":46}]
[null,null,null,null,null,null,null,null,null,null,null,"111000",56,null,{"$f":"GRAY(GRAY(GRAY(M49)))","v":45},{"$f":"GRAY(GRAY(GRAY(GRAY(M49))))","v":59},{"$f":"GRAY(GRAY(GRAY(GRAY(GRAY(M49)))))","v":38},null,{"$f":"GRAY(GRAY(GRAY(GRAY(GRAY(GRAY(GRAY(M49)))))))","v":47},null,{"$f":"GRAY(GRAY(GRAY(GRAY(GRAY(GRAY(GRAY(GRAY(GRAY(M49)))))))))","v":36},null,{"$f":"GRAY(GRAY(GRAY(GRAY(GRAY(GRAY(GRAY(GRAY(GRAY(GRAY(GRAY(M49)))))))))))","v":45},null,null,null,{"$f":"GRAY(GRAY(GRAY(GRAY(GRAY(GRAY(GRAY(GRAY(GRAY(GRAY(GRAY(GRAY(GRAY(GRAY(GRAY(M49)))))))))))))))","v":47}]
[null,null,null,null,null,null,null,null,null,null,null,"101000",40,null,{"$f":"GRAY(GRAY(GRAY(M50)))","v":51},{"$f":"GRAY(GRAY(GRAY(GRAY(M50))))","v":42},{"$f":"GRAY(GRAY(GRAY(GRAY(GRAY(M50)))))","v":63},null,{"$f":"GRAY(GRAY(GRAY(GRAY(GRAY(GRAY(GRAY(M50)))))))","v":48},null,{"$f":"GRAY(GRAY(GRAY(GRAY(GRAY(GRAY(GRAY(GRAY(GRAY(M50)))))))))","v":60},null,{"$f":"GRAY(GRAY(GRAY(GRAY(GRAY(GRAY(GRAY(GRAY(GRAY(GRAY(GRAY(M50)))))))))))","v":51},null,null,null,{"$f":"GRAY(GRAY(GRAY(GRAY(GRAY(GRAY(GRAY(GRAY(GRAY(GRAY(GRAY(GRAY(GRAY(GRAY(GRAY(M50)))))))))))))))","v":48}]
[null,null,null,null,null,null,null,null,null,null,null,"101001",41,null,{"$f":"GRAY(GRAY(GRAY(M51)))","v":50},{"$f":"GRAY(GRAY(GRAY(GRAY(M51))))","v":43},{"$f":"GRAY(GRAY(GRAY(GRAY(GRAY(M51)))))","v":62},null,{"$f":"GRAY(GRAY(GRAY(GRAY(GRAY(GRAY(GRAY(M51)))))))","v":49},null,{"$f":"GRAY(GRAY(GRAY(GRAY(GRAY(GRAY(GRAY(GRAY(GRAY(M51)))))))))","v":61},null,{"$f":"GRAY(GRAY(GRAY(GRAY(GRAY(GRAY(GRAY(GRAY(GRAY(GRAY(GRAY(M51)))))))))))","v":50},null,null,null,{"$f":"GRAY(GRAY(GRAY(GRAY(GRAY(GRAY(GRAY(GRAY(GRAY(GRAY(GRAY(GRAY(GRAY(GRAY(GRAY(M51)))))))))))))))","v":49}]
[null,null,null,null,null,null,null,null,null,null,null,"101011",43,null,{"$f":"GRAY(GRAY(GRAY(M52)))","v":49},{"$f":"GRAY(GRAY(GRAY(GRAY(M52))))","v":41},{"$f":"GRAY(GRAY(GRAY(GRAY(GRAY(M52)))))","v":61},null,{"$f":"GRAY(GRAY(GRAY(GRAY(GRAY(GRAY(GRAY(M52)))))))","v":50},null,{"$f":"GRAY(GRAY(GRAY(GRAY(GRAY(GRAY(GRAY(GRAY(GRAY(M52)))))))))","v":62},null,{"$f":"GRAY(GRAY(GRAY(GRAY(GRAY(GRAY(GRAY(GRAY(GRAY(GRAY(GRAY(M52)))))))))))","v":49},null,null,null,{"$f":"GRAY(GRAY(GRAY(GRAY(GRAY(GRAY(GRAY(GRAY(GRAY(GRAY(GRAY(GRAY(GRAY(GRAY(GRAY(M52)))))))))))))))","v":50}]
[null,null,null,null,null,null,null,null,null,null,null,"101010",42,null,{"$f":"GRAY(GRAY(GRAY(M53)))","v":48},{"$f":"GRAY(GRAY(GRAY(GRAY(M53))))","v":40},{"$f":"GRAY(GRAY(GRAY(GRAY(GRAY(M53)))))","v":60},null,{"$f":"GRAY(GRAY(GRAY(GRAY(GRAY(GRAY(GRAY(M53)))))))","v":51},null,{"$f":"GRAY(GRAY(GRAY(GRAY(GRAY(GRAY(GRAY(GRAY(GRAY(M53)))))))))","v":63},null,{"$f":"GRAY(GRAY(GRAY(GRAY(GRAY(GRAY(GRAY(GRAY(GRAY(GRAY(GRAY(M53)))))))))))","v":48},null,null,null,{"$f":"GRAY(GRAY(GRAY(GRAY(GRAY(GRAY(GRAY(GRAY(GRAY(GRAY(GRAY(GRAY(GRAY(GRAY(GRAY(M53)))))))))))))))","v":51}]
[null,null,null,null,null,null,null,null,null,null,null,"101110",46,null,{"$f":"GRAY(GRAY(GRAY(M54)))","v":55},{"$f":"GRAY(GRAY(GRAY(GRAY(M54))))","v":44},{"$f":"GRAY(GRAY(GRAY(GRAY(GRAY(M54)))))","v":58},null,{"$f":"GRAY(GRAY(GRAY(GRAY(GRAY(GRAY(GRAY(M54)))))))","v":52},null,{"$f":"GRAY(GRAY(GRAY(GRAY(GRAY(GRAY(GRAY(GRAY(GRAY(M54)))))))))","v":57},null,{"$f":"GRAY(GRAY(GRAY(GRAY(GRAY(GRAY(GRAY(GRAY(GRAY(GRAY(GRAY(M54)))))))))))","v":55},null,null,null,{"$f":"GRAY(GRAY(GRAY(GRAY(GRAY(GRAY(GRAY(GRAY(GRAY(GRAY(GRAY(GRAY(GRAY(GRAY(GRAY(M54)))))))))))))))","v":52}]
[null,null,null,null,null,null,null,null,null,null,null,"101111",47,null,{"$f":"GRAY(GRAY(GRAY(M55)))","v":54},{"$f":"GRAY(GRAY(GRAY(GRAY(M55))))","v":45},{"$f":"GRAY(GRAY(GRAY(GRAY(GRAY(M55)))))","v":59},null,{"$f":"GRAY(GRAY(GRAY(GRAY(GRAY(GRAY(GRAY(M55)))))))","v":53},null,{"$f":"GRAY(GRAY(GRAY(GRAY(GRAY(GRAY(GRAY(GRAY(GRAY(M55)))))))))","v":56},null,{"$f":"GRAY(GRAY(GRAY(GRAY(GRAY(GRAY(GRAY(GRAY(GRAY(GRAY(GRAY(M55)))))))))))","v":54},null,null,null,{"$f":"GRAY(GRAY(GRAY(GRAY(GRAY(GRAY(GRAY(GRAY(GRAY(GRAY(GRAY(GRAY(GRAY(GRAY(GRAY(M55)))))))))))))))","v":53}]
[null,null,null,null,null,null,null,null,null,null,null,"101101",45,null,{"$f":"GRAY(GRAY(GRAY(M56)))","v":53},{"$f":"GRAY(GRAY(GRAY(GRAY(M56))))","v":47},{"$f":"GRAY(GRAY(GRAY(GRAY(GRAY(M56)))))","v":56},null,{"$f":"GRAY(GRAY(GRAY(GRAY(GRAY(GRAY(GRAY(M56)))))))","v":54},null,{"$f":"GRAY(GRAY(GRAY(GRAY(GRAY(GRAY(GRAY(GRAY(GRAY(M56)))))))))","v":59},null,{"$f":"GRAY(GRAY(GRAY(GRAY(GRAY(GRAY(GRAY(GRAY(GRAY(GRAY(GRAY(M56)))))))))))","v":53},null,null,null,{"$f":"GRAY(GRAY(GRAY(GRAY(GRAY(GRAY(GRAY(GRAY(GRAY(GRAY(GRAY(GRAY(GRAY(GRAY(GRAY(M56)))))))))))))))","v":54}]
[null,null,null,null,null,null,null,null,null,null,null,"101100",44,null,{"$f":"GRAY(GRAY(GRAY(M57)))","v":52},{"$f":"GRAY(GRAY(GRAY(GRAY(M57))))","v":46},{"$f":"GRAY(GRAY(GRAY(GRAY(GRAY(M57)))))","v":57},null,{"$f":"GRAY(GRAY(GRAY(GRAY(GRAY(GRAY(GRAY(M57)))))))","v":55},null,{"$f":"GRAY(GRAY(GRAY(GRAY(GRAY(GRAY(GRAY(GRAY(GRAY(M57)))))))))","v":58},null,{"$f":"GRAY(GRAY(GRAY(GRAY(GRAY(GRAY(GRAY(GRAY(GRAY(GRAY(GRAY(M57)))))))))))","v":52},null,null,null,{"$f":"GRAY(GRAY(GRAY(GRAY(GRAY(GRAY(GRAY(GRAY(GRAY(GRAY(GRAY(GRAY(GRAY(GRAY(GRAY(M57)))))))))))))))","v":55}]
[null,null,null,null,null,null,null,null,null,null,null,"100100",36,null,{"$f":"GRAY(GRAY(GRAY(M58)))","v":59},{"$f":"GRAY(GRAY(GRAY(GRAY(M58))))","v":38},{"$f":"GRAY(GRAY(GRAY(GRAY(GRAY(M58)))))","v":53},null,{"$f":"GRAY(GRAY(GRAY(GRAY(GRAY(GRAY(GRAY(M58)))))))","v":56},null,{"$f":"GRAY(GRAY(GRAY(GRAY(GRAY(GRAY(GRAY(GRAY(GRAY(M58)))))))))","v":54},null,{"$f":"GRAY(GRAY(GRAY(GRAY(GRAY(GRAY(GRAY(GRAY(GRAY(GRAY(GRAY(M58)))))))))))","v":59},null,null,null,{"$f":"GRAY(GRAY(GRAY(GRAY(GRAY(GRAY(GRAY(GRAY(GRAY(GRAY(GRAY(GRAY(GRAY(GRAY(GRAY(M58)))))))))))))))","v":56}]
[null,null,null,null,null,null,null,null,null,null,null,"100101",37,null,{"$f":"GRAY(GRAY(GRAY(M59)))","v":58},{"$f":"GRAY(GRAY(GRAY(GRAY(M59))))","v":39},{"$f":"GRAY(GRAY(GRAY(GRAY(GRAY(M59)))))","v":52},null,{"$f":"GRAY(GRAY(GRAY(GRAY(GRAY(GRAY(GRAY(M59)))))))","v":57},null,{"$f":"GRAY(GRAY(GRAY(GRAY(GRAY(GRAY(GRAY(GRAY(GRAY(M59)))))))))","v":55},null,{"$f":"GRAY(GRAY(GRAY(GRAY(GRAY(GRAY(GRAY(GRAY(GRAY(GRAY(GRAY(M59)))))))))))","v":58},null,null,null,{"$f":"GRAY(GRAY(GRAY(GRAY(GRAY(GRAY(GRAY(GRAY(GRAY(GRAY(GRAY(GRAY(GRAY(GRAY(GRAY(M59)))))))))))))))","v":57}]
[null,null,null,null,null,null,null,null,null,null,null,"100111",39,null,{"$f":"GRAY(GRAY(GRAY(M60)))","v":57},{"$f":"GRAY(GRAY(GRAY(GRAY(M60))))","v":37},{"$f":"GRAY(GRAY(GRAY(GRAY(GRAY(M60)))))","v":55},null,{"$f":"GRAY(GRAY(GRAY(GRAY(GRAY(GRAY(GRAY(M60)))))))","v":58},null,{"$f":"GRAY(GRAY(GRAY(GRAY(GRAY(GRAY(GRAY(GRAY(GRAY(M60)))))))))","v":52},null,{"$f":"GRAY(GRAY(GRAY(GRAY(GRAY(GRAY(GRAY(GRAY(GRAY(GRAY(GRAY(M60)))))))))))","v":57},null,null,null,{"$f":"GRAY(GRAY(GRAY(GRAY(GRAY(GRAY(GRAY(GRAY(GRAY(GRAY(GRAY(GRAY(GRAY(GRAY(GRAY(M60)))))))))))))))","v":58}]
[null,null,null,null,null,null,null,null,null,null,null,"100110",38,null,{"$f":"GRAY(GRAY(GRAY(M61)))","v":56},{"$f":"GRAY(GRAY(GRAY(GRAY(M61))))","v":36},{"$f":"GRAY(GRAY(GRAY(GRAY(GRAY(M61)))))","v":54},null,{"$f":"GRAY(GRAY(GRAY(GRAY(GRAY(GRAY(GRAY(M61)))))))","v":59},null,{"$f":"GRAY(GRAY(GRAY(GRAY(GRAY(GRAY(GRAY(GRAY(GRAY(M61)))))))))","v":53},null,{"$f":"GRAY(GRAY(GRAY(GRAY(GRAY(GRAY(GRAY(GRAY(GRAY(GRAY(GRAY(M61)))))))))))","v":56},null,null,null,{"$f":"GRAY(GRAY(GRAY(GRAY(GRAY(GRAY(GRAY(GRAY(GRAY(GRAY(GRAY(GRAY(GRAY(GRAY(GRAY(M61)))))))))))))))","v":59}]
[null,null,null,null,null,null,null,null,null,null,null,"100010",34,null,{"$f":"GRAY(GRAY(GRAY(M62)))","v":63},{"$f":"GRAY(GRAY(GRAY(GRAY(M62))))","v":32},{"$f":"GRAY(GRAY(GRAY(GRAY(GRAY(M62)))))","v":48},null,{"$f":"GRAY(GRAY(GRAY(GRAY(GRAY(GRAY(GRAY(M62)))))))","v":60},null,{"$f":"GRAY(GRAY(GRAY(GRAY(GRAY(GRAY(GRAY(GRAY(GRAY(M62)))))))))","v":51},null,{"$f":"GRAY(GRAY(GRAY(GRAY(GRAY(GRAY(GRAY(GRAY(GRAY(GRAY(GRAY(M62)))))))))))","v":63},null,null,null,{"$f":"GRAY(GRAY(GRAY(GRAY(GRAY(GRAY(GRAY(GRAY(GRAY(GRAY(GRAY(GRAY(GRAY(GRAY(GRAY(M62)))))))))))))))","v":60}]
[null,null,null,null,null,null,null,null,null,null,null,"100011",35,null,null,null,null,null,{"$f":"GRAY(GRAY(GRAY(GRAY(GRAY(GRAY(GRAY(M63)))))))","v":61},null,null,null,null,null,null,null,{"$f":"GRAY(GRAY(GRAY(GRAY(GRAY(GRAY(GRAY(GRAY(GRAY(GRAY(GRAY(GRAY(GRAY(GRAY(GRAY(M63)))))))))))))))","v":61}]
[null,null,null,null,null,null,null,null,null,null,null,"100001",33,null,null,null,null,null,{"$f":"GRAY(GRAY(GRAY(GRAY(GRAY(GRAY(GRAY(M64)))))))","v":62},null,null,null,null,null,null,null,{"$f":"GRAY(GRAY(GRAY(GRAY(GRAY(GRAY(GRAY(GRAY(GRAY(GRAY(GRAY(GRAY(GRAY(GRAY(GRAY(M64)))))))))))))))","v":62}]
[null,null,null,null,null,null,null,null,null,null,null,"100000",32,null,null,null,null,null,{"$f":"GRAY(GRAY(GRAY(GRAY(GRAY(GRAY(GRAY(M65)))))))","v":63},null,null,null,null,null,null,null,{"$f":"GRAY(GRAY(GRAY(GRAY(GRAY(GRAY(GRAY(GRAY(GRAY(GRAY(GRAY(GRAY(GRAY(GRAY(GRAY(M65)))))))))))))))","v":63}]
[null,null,null,null,null,null,null,110,null,null,null,"1100000",96,null,null,null,null,null,{"$f":"GRAY(GRAY(GRAY(GRAY(GRAY(GRAY(GRAY(M66)))))))","v":64},null,null,null,null,null,null,null,{"$f":"GRAY(GRAY(GRAY(GRAY(GRAY(GRAY(GRAY(GRAY(GRAY(GRAY(GRAY(GRAY(GRAY(GRAY(GRAY(M66)))))))))))))))","v":64}]
[null,null,null,null,null,null,null,111,null,null,null,"1100001",{"$f":"BIN2DEC(L67)","v":97},null,null,null,null,null,{"$f":"GRAY(GRAY(GRAY(GRAY(GRAY(GRAY(GRAY(M67)))))))","v":65},null,null,null,null,null,null,null,{"$f":"GRAY(GRAY(GRAY(GRAY(GRAY(GRAY(GRAY(GRAY(GRAY(GRAY(GRAY(GRAY(GRAY(GRAY(GRAY(M67)))))))))))))))","v":65}]
[null,null,null,null,null,null,null,101,null,null,null,"1100011",99,null,null,null,null,null,{"$f":"GRAY(GRAY(GRAY(GRAY(GRAY(GRAY(GRAY(M68)))))))","v":66},null,null,null,null,null,null,null,{"$f":"GRAY(GRAY(GRAY(GRAY(GRAY(GRAY(GRAY(GRAY(GRAY(GRAY(GRAY(GRAY(GRAY(GRAY(GRAY(M68)))))))))))))))","v":66}]
[null,null,null,null,null,null,null,100,null,null,null,"1100010",98,null,null,null,null,null,{"$f":"GRAY(GRAY(GRAY(GRAY(GRAY(GRAY(GRAY(M69)))))))","v":67},null,null,null,null,null,null,null,{"$f":"GRAY(GRAY(GRAY(GRAY(GRAY(GRAY(GRAY(GRAY(GRAY(GRAY(GRAY(GRAY(GRAY(GRAY(GRAY(M69)))))))))))))))","v":67}]
[null,null,null,null,null,null,null,null,null,null,null,"1100110",102,null,null,null,null,null,{"$f":"GRAY(GRAY(GRAY(GRAY(GRAY(GRAY(GRAY(M70)))))))","v":68},null,null,null,null,null,null,null,{"$f":"GRAY(GRAY(GRAY(GRAY(GRAY(GRAY(GRAY(GRAY(GRAY(GRAY(GRAY(GRAY(GRAY(GRAY(GRAY(M70)))))))))))))))","v":68}]
[null,null,null,null,null,null,null,null,null,null,null,"1100111",103,null,null,null,null,null,{"$f":"GRAY(GRAY(GRAY(GRAY(GRAY(GRAY(GRAY(M71)))))))","v":69},null,null,null,null,null,null,null,{"$f":"GRAY(GRAY(GRAY(GRAY(GRAY(GRAY(GRAY(GRAY(GRAY(GRAY(GRAY(GRAY(GRAY(GRAY(GRAY(M71)))))))))))))))","v":69}]
[null,null,null,null,null,null,null,null,null,null,null,"1100101",101,null,null,null,null,null,{"$f":"GRAY(GRAY(GRAY(GRAY(GRAY(GRAY(GRAY(M72)))))))","v":70},null,null,null,null,null,null,null,{"$f":"GRAY(GRAY(GRAY(GRAY(GRAY(GRAY(GRAY(GRAY(GRAY(GRAY(GRAY(GRAY(GRAY(GRAY(GRAY(M72)))))))))))))))","v":70}]
[null,null,null,null,null,null,null,null,null,null,null,"1100100",100,null,null,null,null,null,{"$f":"GRAY(GRAY(GRAY(GRAY(GRAY(GRAY(GRAY(M73)))))))","v":71},null,null,null,null,null,null,null,{"$f":"GRAY(GRAY(GRAY(GRAY(GRAY(GRAY(GRAY(GRAY(GRAY(GRAY(GRAY(GRAY(GRAY(GRAY(GRAY(M73)))))))))))))))","v":71}]
[null,null,null,null,null,null,null,null,null,null,null,"1101100",108,null,null,null,null,null,{"$f":"GRAY(GRAY(GRAY(GRAY(GRAY(GRAY(GRAY(M74)))))))","v":72},null,null,null,null,null,null,null,{"$f":"GRAY(GRAY(GRAY(GRAY(GRAY(GRAY(GRAY(GRAY(GRAY(GRAY(GRAY(GRAY(GRAY(GRAY(GRAY(M74)))))))))))))))","v":72}]
[null,null,null,null,null,null,null,null,null,null,null,"1101101",109,null,null,null,null,null,{"$f":"GRAY(GRAY(GRAY(GRAY(GRAY(GRAY(GRAY(M75)))))))","v":73},null,null,null,null,null,null,null,{"$f":"GRAY(GRAY(GRAY(GRAY(GRAY(GRAY(GRAY(GRAY(GRAY(GRAY(GRAY(GRAY(GRAY(GRAY(GRAY(M75)))))))))))))))","v":73}]
[null,null,null,null,null,null,null,null,null,null,null,"1101111",111,null,null,null,null,null,{"$f":"GRAY(GRAY(GRAY(GRAY(GRAY(GRAY(GRAY(M76)))))))","v":74},null,null,null,null,null,null,null,{"$f":"GRAY(GRAY(GRAY(GRAY(GRAY(GRAY(GRAY(GRAY(GRAY(GRAY(GRAY(GRAY(GRAY(GRAY(GRAY(M76)))))))))))))))","v":74}]
[null,null,null,null,null,null,null,null,null,null,null,"1101110",110,null,null,null,null,null,{"$f":"GRAY(GRAY(GRAY(GRAY(GRAY(GRAY(GRAY(M77)))))))","v":75},null,null,null,null,null,null,null,{"$f":"GRAY(GRAY(GRAY(GRAY(GRAY(GRAY(GRAY(GRAY(GRAY(GRAY(GRAY(GRAY(GRAY(GRAY(GRAY(M77)))))))))))))))","v":75}]
[null,null,null,null,null,null,null,null,null,null,null,"1101010",106,null,null,null,null,null,{"$f":"GRAY(GRAY(GRAY(GRAY(GRAY(GRAY(GRAY(M78)))))))","v":76},null,null,null,null,null,null,null,{"$f":"GRAY(GRAY(GRAY(GRAY(GRAY(GRAY(GRAY(GRAY(GRAY(GRAY(GRAY(GRAY(GRAY(GRAY(GRAY(M78)))))))))))))))","v":76}]
[null,null,null,null,null,null,null,null,null,null,null,"1101011",107,null,null,null,null,null,{"$f":"GRAY(GRAY(GRAY(GRAY(GRAY(GRAY(GRAY(M79)))))))","v":77},null,null,null,null,null,null,null,{"$f":"GRAY(GRAY(GRAY(GRAY(GRAY(GRAY(GRAY(GRAY(GRAY(GRAY(GRAY(GRAY(GRAY(GRAY(GRAY(M79)))))))))))))))","v":77}]
[null,null,null,null,null,null,null,null,null,null,null,"1101001",105,null,null,null,null,null,{"$f":"GRAY(GRAY(GRAY(GRAY(GRAY(GRAY(GRAY(M80)))))))","v":78},null,null,null,null,null,null,null,{"$f":"GRAY(GRAY(GRAY(GRAY(GRAY(GRAY(GRAY(GRAY(GRAY(GRAY(GRAY(GRAY(GRAY(GRAY(GRAY(M80)))))))))))))))","v":78}]
[null,null,null,null,null,null,null,null,null,null,null,"1101000",104,null,null,null,null,null,{"$f":"GRAY(GRAY(GRAY(GRAY(GRAY(GRAY(GRAY(M81)))))))","v":79},null,null,null,null,null,null,null,{"$f":"GRAY(GRAY(GRAY(GRAY(GRAY(GRAY(GRAY(GRAY(GRAY(GRAY(GRAY(GRAY(GRAY(GRAY(GRAY(M81)))))))))))))))","v":79}]
[null,null,null,null,null,null,null,null,null,null,null,"1111000",120,null,null,null,null,null,{"$f":"GRAY(GRAY(GRAY(GRAY(GRAY(GRAY(GRAY(M82)))))))","v":80},null,null,null,null,null,null,null,{"$f":"GRAY(GRAY(GRAY(GRAY(GRAY(GRAY(GRAY(GRAY(GRAY(GRAY(GRAY(GRAY(GRAY(GRAY(GRAY(M82)))))))))))))))","v":80}]
[null,null,null,null,null,null,null,null,null,null,null,"1111001",121,null,null,null,null,null,{"$f":"GRAY(GRAY(GRAY(GRAY(GRAY(GRAY(GRAY(M83)))))))","v":81},null,null,null,null,null,null,null,{"$f":"GRAY(GRAY(GRAY(GRAY(GRAY(GRAY(GRAY(GRAY(GRAY(GRAY(GRAY(GRAY(GRAY(GRAY(GRAY(M83)))))))))))))))","v":81}]
[null,null,null,null,null,null,null,null,null,null,null,"1111011",123,null,null,null,null,null,{"$f":"GRAY(GRAY(GRAY(GRAY(GRAY(GRAY(GRAY(M84)))))))","v":82},null,null,null,null,null,null,null,{"$f":"GRAY(GRAY(GRAY(GRAY(GRAY(GRAY(GRAY(GRAY(GRAY(GRAY(GRAY(GRAY(GRAY(GRAY(GRAY(M84)))))))))))))))","v":82}]
[null,null,null,null,null,null,null,null,null,null,null,"1111010",122,null,null,null,null,null,{"$f":"GRAY(GRAY(GRAY(GRAY(GRAY(GRAY(GRAY(M85)))))))","v":83},null,null,null,null,null,null,null,{"$f":"GRAY(GRAY(GRAY(GRAY(GRAY(GRAY(GRAY(GRAY(GRAY(GRAY(GRAY(GRAY(GRAY(GRAY(GRAY(M85)))))))))))))))","v":83}]
[null,null,null,null,null,null,null,null,null,null,null,"1111110",126,null,null,null,null,null,{"$f":"GRAY(GRAY(GRAY(GRAY(GRAY(GRAY(GRAY(M86)))))))","v":84},null,null,null,null,null,null,null,{"$f":"GRAY(GRAY(GRAY(GRAY(GRAY(GRAY(GRAY(GRAY(GRAY(GRAY(GRAY(GRAY(GRAY(GRAY(GRAY(M86)))))))))))))))","v":84}]
[null,null,null,null,null,null,null,null,null,null,null,"1111111",127,null,null,null,null,null,{"$f":"GRAY(GRAY(GRAY(GRAY(GRAY(GRAY(GRAY(M87)))))))","v":85},null,null,null,null,null,null,null,{"$f":"GRAY(GRAY(GRAY(GRAY(GRAY(GRAY(GRAY(GRAY(GRAY(GRAY(GRAY(GRAY(GRAY(GRAY(GRAY(M87)))))))))))))))","v":85}]
[null,null,null,null,null,null,null,null,null,null,null,"1111101",125,null,null,null,null,null,{"$f":"GRAY(GRAY(GRAY(GRAY(GRAY(GRAY(GRAY(M88)))))))","v":86},null,null,null,null,null,null,null,{"$f":"GRAY(GRAY(GRAY(GRAY(GRAY(GRAY(GRAY(GRAY(GRAY(GRAY(GRAY(GRAY(GRAY(GRAY(GRAY(M88)))))))))))))))","v":86}]
[null,null,null,null,null,null,null,null,null,null,null,"1111100",124,null,null,null,null,null,{"$f":"GRAY(GRAY(GRAY(GRAY(GRAY(GRAY(GRAY(M89)))))))","v":87},null,null,null,null,null,null,null,{"$f":"GRAY(GRAY(GRAY(GRAY(GRAY(GRAY(GRAY(GRAY(GRAY(GRAY(GRAY(GRAY(GRAY(GRAY(GRAY(M89)))))))))))))))","v":87}]
[null,null,null,null,null,null,null,null,null,null,null,"1110100",116,null,null,null,null,null,{"$f":"GRAY(GRAY(GRAY(GRAY(GRAY(GRAY(GRAY(M90)))))))","v":88},null,null,null,null,null,null,null,{"$f":"GRAY(GRAY(GRAY(GRAY(GRAY(GRAY(GRAY(GRAY(GRAY(GRAY(GRAY(GRAY(GRAY(GRAY(GRAY(M90)))))))))))))))","v":88}]
[null,null,null,null,null,null,null,null,null,null,null,"1110101",117,null,null,null,null,null,{"$f":"GRAY(GRAY(GRAY(GRAY(GRAY(GRAY(GRAY(M91)))))))","v":89},null,null,null,null,null,null,null,{"$f":"GRAY(GRAY(GRAY(GRAY(GRAY(GRAY(GRAY(GRAY(GRAY(GRAY(GRAY(GRAY(GRAY(GRAY(GRAY(M91)))))))))))))))","v":89}]
[null,null,null,null,null,null,null,null,null,null,null,"1110111",119,null,null,null,null,null,{"$f":"GRAY(GRAY(GRAY(GRAY(GRAY(GRAY(GRAY(M92)))))))","v":90},null,null,null,null,null,null,null,{"$f":"GRAY(GRAY(GRAY(GRAY(GRAY(GRAY(GRAY(GRAY(GRAY(GRAY(GRAY(GRAY(GRAY(GRAY(GRAY(M92)))))))))))))))","v":90}]
[null,null,null,null,null,null,null,null,null,null,null,"1110110",118,null,null,null,null,null,{"$f":"GRAY(GRAY(GRAY(GRAY(GRAY(GRAY(GRAY(M93)))))))","v":91},null,null,null,null,null,null,null,{"$f":"GRAY(GRAY(GRAY(GRAY(GRAY(GRAY(GRAY(GRAY(GRAY(GRAY(GRAY(GRAY(GRAY(GRAY(GRAY(M93)))))))))))))))","v":91}]
[null,null,null,null,null,null,null,null,null,null,null,"1110010",114,null,null,null,null,null,{"$f":"GRAY(GRAY(GRAY(GRAY(GRAY(GRAY(GRAY(M94)))))))","v":92},null,null,null,null,null,null,null,{"$f":"GRAY(GRAY(GRAY(GRAY(GRAY(GRAY(GRAY(GRAY(GRAY(GRAY(GRAY(GRAY(GRAY(GRAY(GRAY(M94)))))))))))))))","v":92}]
[null,null,null,null,null,null,null,null,null,null,null,"1110011",115,null,null,null,null,null,{"$f":"GRAY(GRAY(GRAY(GRAY(GRAY(GRAY(GRAY(M95)))))))","v":93},null,null,null,null,null,null,null,{"$f":"GRAY(GRAY(GRAY(GRAY(GRAY(GRAY(GRAY(GRAY(GRAY(GRAY(GRAY(GRAY(GRAY(GRAY(GRAY(M95)))))))))))))))","v":93}]
[null,null,null,null,null,null,null,null,null,null,null,"1110001",113,null,null,null,null,null,{"$f":"GRAY(GRAY(GRAY(GRAY(GRAY(GRAY(GRAY(M96)))))))","v":94},null,null,null,null,null,null,null,{"$f":"GRAY(GRAY(GRAY(GRAY(GRAY(GRAY(GRAY(GRAY(GRAY(GRAY(GRAY(GRAY(GRAY(GRAY(GRAY(M96)))))))))))))))","v":94}]
[null,null,null,null,null,null,null,null,null,null,null,"1110000",112,null,null,null,null,null,{"$f":"GRAY(GRAY(GRAY(GRAY(GRAY(GRAY(GRAY(M97)))))))","v":95},null,null,null,null,null,null,null,{"$f":"GRAY(GRAY(GRAY(GRAY(GRAY(GRAY(GRAY(GRAY(GRAY(GRAY(GRAY(GRAY(GRAY(GRAY(GRAY(M97)))))))))))))))","v":95}]
[null,null,null,null,null,null,null,null,null,null,null,"1010000",80,null,null,null,null,null,{"$f":"GRAY(GRAY(GRAY(GRAY(GRAY(GRAY(GRAY(M98)))))))","v":96},null,null,null,null,null,null,null,{"$f":"GRAY(GRAY(GRAY(GRAY(GRAY(GRAY(GRAY(GRAY(GRAY(GRAY(GRAY(GRAY(GRAY(GRAY(GRAY(M98)))))))))))))))","v":96}]
[null,null,null,null,null,null,null,null,null,null,null,"1010001",81,null,null,null,null,null,{"$f":"GRAY(GRAY(GRAY(GRAY(GRAY(GRAY(GRAY(M99)))))))","v":97},null,null,null,null,null,null,null,{"$f":"GRAY(GRAY(GRAY(GRAY(GRAY(GRAY(GRAY(GRAY(GRAY(GRAY(GRAY(GRAY(GRAY(GRAY(GRAY(M99)))))))))))))))","v":97}]
[null,null,null,null,null,null,null,null,null,null,null,"1010011",83,null,null,null,null,null,{"$f":"GRAY(GRAY(GRAY(GRAY(GRAY(GRAY(GRAY(M100)))))))","v":98},null,null,null,null,null,null,null,{"$f":"GRAY(GRAY(GRAY(GRAY(GRAY(GRAY(GRAY(GRAY(GRAY(GRAY(GRAY(GRAY(GRAY(GRAY(GRAY(M100)))))))))))))))","v":98}]
[null,null,null,null,null,null,null,null,null,null,null,"1010010",82,null,null,null,null,null,{"$f":"GRAY(GRAY(GRAY(GRAY(GRAY(GRAY(GRAY(M101)))))))","v":99},null,null,null,null,null,null,null,{"$f":"GRAY(GRAY(GRAY(GRAY(GRAY(GRAY(GRAY(GRAY(GRAY(GRAY(GRAY(GRAY(GRAY(GRAY(GRAY(M101)))))))))))))))","v":99}]
[null,null,null,null,null,null,null,null,null,null,null,"1010110",86,null,null,null,null,null,{"$f":"GRAY(GRAY(GRAY(GRAY(GRAY(GRAY(GRAY(M102)))))))","v":100},null,null,null,null,null,null,null,{"$f":"GRAY(GRAY(GRAY(GRAY(GRAY(GRAY(GRAY(GRAY(GRAY(GRAY(GRAY(GRAY(GRAY(GRAY(GRAY(M102)))))))))))))))","v":100}]
[null,null,null,null,null,null,null,null,null,null,null,"1010111",87,null,null,null,null,null,{"$f":"GRAY(GRAY(GRAY(GRAY(GRAY(GRAY(GRAY(M103)))))))","v":101},null,null,null,null,null,null,null,{"$f":"GRAY(GRAY(GRAY(GRAY(GRAY(GRAY(GRAY(GRAY(GRAY(GRAY(GRAY(GRAY(GRAY(GRAY(GRAY(M103)))))))))))))))","v":101}]
[null,null,null,null,null,null,null,null,null,null,null,"1010101",85,null,null,null,null,null,{"$f":"GRAY(GRAY(GRAY(GRAY(GRAY(GRAY(GRAY(M104)))))))","v":102},null,null,null,null,null,null,null,{"$f":"GRAY(GRAY(GRAY(GRAY(GRAY(GRAY(GRAY(GRAY(GRAY(GRAY(GRAY(GRAY(GRAY(GRAY(GRAY(M104)))))))))))))))","v":102}]
[null,null,null,null,null,null,null,null,null,null,null,"1010100",84,null,null,null,null,null,{"$f":"GRAY(GRAY(GRAY(GRAY(GRAY(GRAY(GRAY(M105)))))))","v":103},null,null,null,null,null,null,null,{"$f":"GRAY(GRAY(GRAY(GRAY(GRAY(GRAY(GRAY(GRAY(GRAY(GRAY(GRAY(GRAY(GRAY(GRAY(GRAY(M105)))))))))))))))","v":103}]
[null,null,null,null,null,null,null,null,null,null,null,"1011100",92,null,null,null,null,null,{"$f":"GRAY(GRAY(GRAY(GRAY(GRAY(GRAY(GRAY(M106)))))))","v":104},null,null,null,null,null,null,null,{"$f":"GRAY(GRAY(GRAY(GRAY(GRAY(GRAY(GRAY(GRAY(GRAY(GRAY(GRAY(GRAY(GRAY(GRAY(GRAY(M106)))))))))))))))","v":104}]
[null,null,null,null,null,null,null,null,null,null,null,"1011101",93,null,null,null,null,null,{"$f":"GRAY(GRAY(GRAY(GRAY(GRAY(GRAY(GRAY(M107)))))))","v":105},null,null,null,null,null,null,null,{"$f":"GRAY(GRAY(GRAY(GRAY(GRAY(GRAY(GRAY(GRAY(GRAY(GRAY(GRAY(GRAY(GRAY(GRAY(GRAY(M107)))))))))))))))","v":105}]
[null,null,null,null,null,null,null,null,null,null,null,"1011111",95,null,null,null,null,null,{"$f":"GRAY(GRAY(GRAY(GRAY(GRAY(GRAY(GRAY(M108)))))))","v":106},null,null,null,null,null,null,null,{"$f":"GRAY(GRAY(GRAY(GRAY(GRAY(GRAY(GRAY(GRAY(GRAY(GRAY(GRAY(GRAY(GRAY(GRAY(GRAY(M108)))))))))))))))","v":106}]
[null,null,null,null,null,null,null,null,null,null,null,"1011110",94,null,null,null,null,null,{"$f":"GRAY(GRAY(GRAY(GRAY(GRAY(GRAY(GRAY(M109)))))))","v":107},null,null,null,null,null,null,null,{"$f":"GRAY(GRAY(GRAY(GRAY(GRAY(GRAY(GRAY(GRAY(GRAY(GRAY(GRAY(GRAY(GRAY(GRAY(GRAY(M109)))))))))))))))","v":107}]
[null,null,null,null,null,null,null,null,null,null,null,"1011010",90,null,null,null,null,null,{"$f":"GRAY(GRAY(GRAY(GRAY(GRAY(GRAY(GRAY(M110)))))))","v":108},null,null,null,null,null,null,null,{"$f":"GRAY(GRAY(GRAY(GRAY(GRAY(GRAY(GRAY(GRAY(GRAY(GRAY(GRAY(GRAY(GRAY(GRAY(GRAY(M110)))))))))))))))","v":108}]
[null,null,null,null,null,null,null,null,null,null,null,"1011011",91,null,null,null,null,null,{"$f":"GRAY(GRAY(GRAY(GRAY(GRAY(GRAY(GRAY(M111)))))))","v":109},null,null,null,null,null,null,null,{"$f":"GRAY(GRAY(GRAY(GRAY(GRAY(GRAY(GRAY(GRAY(GRAY(GRAY(GRAY(GRAY(GRAY(GRAY(GRAY(M111)))))))))))))))","v":109}]
[null,null,null,null,null,null,null,null,null,null,null,"1011001",89,null,null,null,null,null,{"$f":"GRAY(GRAY(GRAY(GRAY(GRAY(GRAY(GRAY(M112)))))))","v":110},null,null,null,null,null,null,null,{"$f":"GRAY(GRAY(GRAY(GRAY(GRAY(GRAY(GRAY(GRAY(GRAY(GRAY(GRAY(GRAY(GRAY(GRAY(GRAY(M112)))))))))))))))","v":110}]
[null,null,null,null,null,null,null,null,null,null,null,"1011000",88,null,null,null,null,null,{"$f":"GRAY(GRAY(GRAY(GRAY(GRAY(GRAY(GRAY(M113)))))))","v":111},null,null,null,null,null,null,null,{"$f":"GRAY(GRAY(GRAY(GRAY(GRAY(GRAY(GRAY(GRAY(GRAY(GRAY(GRAY(GRAY(GRAY(GRAY(GRAY(M113)))))))))))))))","v":111}]
[null,null,null,null,null,null,null,null,null,null,null,"1001000",72,null,null,null,null,null,{"$f":"GRAY(GRAY(GRAY(GRAY(GRAY(GRAY(GRAY(M114)))))))","v":112},null,null,null,null,null,null,null,{"$f":"GRAY(GRAY(GRAY(GRAY(GRAY(GRAY(GRAY(GRAY(GRAY(GRAY(GRAY(GRAY(GRAY(GRAY(GRAY(M114)))))))))))))))","v":112}]
[null,null,null,null,null,null,null,null,null,null,null,"1001001",73,null,null,null,null,null,{"$f":"GRAY(GRAY(GRAY(GRAY(GRAY(GRAY(GRAY(M115)))))))","v":113},null,null,null,null,null,null,null,{"$f":"GRAY(GRAY(GRAY(GRAY(GRAY(GRAY(GRAY(GRAY(GRAY(GRAY(GRAY(GRAY(GRAY(GRAY(GRAY(M115)))))))))))))))","v":113}]
[null,null,null,null,null,null,null,null,null,null,null,"1001011",75,null,null,null,null,null,{"$f":"GRAY(GRAY(GRAY(GRAY(GRAY(GRAY(GRAY(M116)))))))","v":114},null,null,null,null,null,null,null,{"$f":"GRAY(GRAY(GRAY(GRAY(GRAY(GRAY(GRAY(GRAY(GRAY(GRAY(GRAY(GRAY(GRAY(GRAY(GRAY(M116)))))))))))))))","v":114}]
[null,null,null,null,null,null,null,null,null,null,null,"1001010",74,null,null,null,null,null,{"$f":"GRAY(GRAY(GRAY(GRAY(GRAY(GRAY(GRAY(M117)))))))","v":115},null,null,null,null,null,null,null,{"$f":"GRAY(GRAY(GRAY(GRAY(GRAY(GRAY(GRAY(GRAY(GRAY(GRAY(GRAY(GRAY(GRAY(GRAY(GRAY(M117)))))))))))))))","v":115}]
[null,null,null,null,null,null,null,null,null,null,null,"1001110",78,null,null,null,null,null,{"$f":"GRAY(GRAY(GRAY(GRAY(GRAY(GRAY(GRAY(M118)))))))","v":116},null,null,null,null,null,null,null,{"$f":"GRAY(GRAY(GRAY(GRAY(GRAY(GRAY(GRAY(GRAY(GRAY(GRAY(GRAY(GRAY(GRAY(GRAY(GRAY(M118)))))))))))))))","v":116}]
[null,null,null,null,null,null,null,null,null,null,null,"1001111",79,null,null,null,null,null,{"$f":"GRAY(GRAY(GRAY(GRAY(GRAY(GRAY(GRAY(M119)))))))","v":117},null,null,null,null,null,null,null,{"$f":"GRAY(GRAY(GRAY(GRAY(GRAY(GRAY(GRAY(GRAY(GRAY(GRAY(GRAY(GRAY(GRAY(GRAY(GRAY(M119)))))))))))))))","v":117}]
[null,null,null,null,null,null,null,null,null,null,null,"1001101",77,null,null,null,null,null,{"$f":"GRAY(GRAY(GRAY(GRAY(GRAY(GRAY(GRAY(M120)))))))","v":118},null,null,null,null,null,null,null,{"$f":"GRAY(GRAY(GRAY(GRAY(GRAY(GRAY(GRAY(GRAY(GRAY(GRAY(GRAY(GRAY(GRAY(GRAY(GRAY(M120)))))))))))))))","v":118}]
[null,null,null,null,null,null,null,null,null,null,null,"1001100",76,null,null,null,null,null,{"$f":"GRAY(GRAY(GRAY(GRAY(GRAY(GRAY(GRAY(M121)))))))","v":119},null,null,null,null,null,null,null,{"$f":"GRAY(GRAY(GRAY(GRAY(GRAY(GRAY(GRAY(GRAY(GRAY(GRAY(GRAY(GRAY(GRAY(GRAY(GRAY(M121)))))))))))))))","v":119}]
[null,null,null,null,null,null,null,null,null,null,null,"1000100",68,null,null,null,null,null,{"$f":"GRAY(GRAY(GRAY(GRAY(GRAY(GRAY(GRAY(M122)))))))","v":120},null,null,null,null,null,null,null,{"$f":"GRAY(GRAY(GRAY(GRAY(GRAY(GRAY(GRAY(GRAY(GRAY(GRAY(GRAY(GRAY(GRAY(GRAY(GRAY(M122)))))))))))))))","v":120}]
[null,null,null,null,null,null,null,null,null,null,null,"1000101",69,null,null,null,null,null,{"$f":"GRAY(GRAY(GRAY(GRAY(GRAY(GRAY(GRAY(M123)))))))","v":121},null,null,null,null,null,null,null,{"$f":"GRAY(GRAY(GRAY(GRAY(GRAY(GRAY(GRAY(GRAY(GRAY(GRAY(GRAY(GRAY(GRAY(GRAY(GRAY(M123)))))))))))))))","v":121}]
[null,null,null,null,null,null,null,null,null,null,null,"1000111",71,null,null,null,null,null,{"$f":"GRAY(GRAY(GRAY(GRAY(GRAY(GRAY(GRAY(M124)))))))","v":122},null,null,null,null,null,null,null,{"$f":"GRAY(GRAY(GRAY(GRAY(GRAY(GRAY(GRAY(GRAY(GRAY(GRAY(GRAY(GRAY(GRAY(GRAY(GRAY(M124)))))))))))))))","v":122}]
[null,null,null,null,null,null,null,null,null,null,null,"1000110",70,null,null,null,null,null,{"$f":"GRAY(GRAY(GRAY(GRAY(GRAY(GRAY(GRAY(M125)))))))","v":123},null,null,null,null,null,null,null,{"$f":"GRAY(GRAY(GRAY(GRAY(GRAY(GRAY(GRAY(GRAY(GRAY(GRAY(GRAY(GRAY(GRAY(GRAY(GRAY(M125)))))))))))))))","v":123}]
[null,null,null,null,null,null,null,null,null,null,null,"1000010",66,null,null,null,null,null,{"$f":"GRAY(GRAY(GRAY(GRAY(GRAY(GRAY(GRAY(M126)))))))","v":124},null,null,null,null,null,null,null,{"$f":"GRAY(GRAY(GRAY(GRAY(GRAY(GRAY(GRAY(GRAY(GRAY(GRAY(GRAY(GRAY(GRAY(GRAY(GRAY(M126)))))))))))))))","v":124}]
[null,null,null,null,null,null,null,null,null,null,null,"1000011",67,null,null,null,null,null,{"$f":"GRAY(GRAY(GRAY(GRAY(GRAY(GRAY(GRAY(M127)))))))","v":125},null,null,null,null,null,null,null,{"$f":"GRAY(GRAY(GRAY(GRAY(GRAY(GRAY(GRAY(GRAY(GRAY(GRAY(GRAY(GRAY(GRAY(GRAY(GRAY(M127)))))))))))))))","v":125}]
[null,null,null,null,null,null,null,null,null,null,null,"1000001",65,null,null,null,null,null,{"$f":"GRAY(GRAY(GRAY(GRAY(GRAY(GRAY(GRAY(M128)))))))","v":126},null,null,null,null,null,null,null,{"$f":"GRAY(GRAY(GRAY(GRAY(GRAY(GRAY(GRAY(GRAY(GRAY(GRAY(GRAY(GRAY(GRAY(GRAY(GRAY(M128)))))))))))))))","v":126}]
[null,null,null,null,null,null,null,null,null,null,null,"1000000",64,null,null,null,null,null,{"$f":"GRAY(GRAY(GRAY(GRAY(GRAY(GRAY(GRAY(M129)))))))","v":127},null,null,null,null,null,null,null,{"$f":"GRAY(GRAY(GRAY(GRAY(GRAY(GRAY(GRAY(GRAY(GRAY(GRAY(GRAY(GRAY(GRAY(GRAY(GRAY(M129)))))))))))))))","v":127}]
[null,null,null,null,null,null,null,null,null,null,null,"11000000",192,null,null,null,null,null,{"$f":"GRAY(GRAY(GRAY(GRAY(GRAY(GRAY(GRAY(M130)))))))","v":128},null,null,null,null,null,null,null,{"$f":"GRAY(GRAY(GRAY(GRAY(GRAY(GRAY(GRAY(GRAY(GRAY(GRAY(GRAY(GRAY(GRAY(GRAY(GRAY(M130)))))))))))))))","v":128}]
[null,null,null,null,null,null,null,null,null,null,null,"11000001",{"$f":"BIN2DEC(L131)","v":193},null,null,null,null,null,{"$f":"GRAY(GRAY(GRAY(GRAY(GRAY(GRAY(GRAY(M131)))))))","v":129},null,null,null,null,null,null,null,{"$f":"GRAY(GRAY(GRAY(GRAY(GRAY(GRAY(GRAY(GRAY(GRAY(GRAY(GRAY(GRAY(GRAY(GRAY(GRAY(M131)))))))))))))))","v":129}]
[null,null,null,null,null,null,null,null,null,null,null,"11000011",195,null,null,null,null,null,{"$f":"GRAY(GRAY(GRAY(GRAY(GRAY(GRAY(GRAY(M132)))))))","v":130},null,null,null,null,null,null,null,{"$f":"GRAY(GRAY(GRAY(GRAY(GRAY(GRAY(GRAY(GRAY(GRAY(GRAY(GRAY(GRAY(GRAY(GRAY(GRAY(M132)))))))))))))))","v":130}]
[null,null,null,null,null,null,null,null,null,null,null,"11000010",194,null,null,null,null,null,{"$f":"GRAY(GRAY(GRAY(GRAY(GRAY(GRAY(GRAY(M133)))))))","v":131},null,null,null,null,null,null,null,{"$f":"GRAY(GRAY(GRAY(GRAY(GRAY(GRAY(GRAY(GRAY(GRAY(GRAY(GRAY(GRAY(GRAY(GRAY(GRAY(M133)))))))))))))))","v":131}]
[null,null,null,null,null,null,null,null,null,null,null,"11000110",198,null,null,null,null,null,{"$f":"GRAY(GRAY(GRAY(GRAY(GRAY(GRAY(GRAY(M134)))))))","v":132},null,null,null,null,null,null,null,{"$f":"GRAY(GRAY(GRAY(GRAY(GRAY(GRAY(GRAY(GRAY(GRAY(GRAY(GRAY(GRAY(GRAY(GRAY(GRAY(M134)))))))))))))))","v":132}]
[null,null,null,null,null,null,null,null,null,null,null,"11000111",199,null,null,null,null,null,{"$f":"GRAY(GRAY(GRAY(GRAY(GRAY(GRAY(GRAY(M135)))))))","v":133},null,null,null,null,null,null,null,{"$f":"GRAY(GRAY(GRAY(GRAY(GRAY(GRAY(GRAY(GRAY(GRAY(GRAY(GRAY(GRAY(GRAY(GRAY(GRAY(M135)))))))))))))))","v":133}]
[null,null,null,null,null,null,null,null,null,null,null,"11000101",197,null,null,null,null,null,{"$f":"GRAY(GRAY(GRAY(GRAY(GRAY(GRAY(GRAY(M136)))))))","v":134},null,null,null,null,null,null,null,{"$f":"GRAY(GRAY(GRAY(GRAY(GRAY(GRAY(GRAY(GRAY(GRAY(GRAY(GRAY(GRAY(GRAY(GRAY(GRAY(M136)))))))))))))))","v":134}]
[null,null,null,null,null,null,null,null,null,null,null,"11000100",196,null,null,null,null,null,{"$f":"GRAY(GRAY(GRAY(GRAY(GRAY(GRAY(GRAY(M137)))))))","v":135},null,null,null,null,null,null,null,{"$f":"GRAY(GRAY(GRAY(GRAY(GRAY(GRAY(GRAY(GRAY(GRAY(GRAY(GRAY(GRAY(GRAY(GRAY(GRAY(M137)))))))))))))))","v":135}]
[null,null,null,null,null,null,null,null,null,null,null,"11001100",204,null,null,null,null,null,{"$f":"GRAY(GRAY(GRAY(GRAY(GRAY(GRAY(GRAY(M138)))))))","v":136},null,null,null,null,null,null,null,{"$f":"GRAY(GRAY(GRAY(GRAY(GRAY(GRAY(GRAY(GRAY(GRAY(GRAY(GRAY(GRAY(GRAY(GRAY(GRAY(M138)))))))))))))))","v":136}]
[null,null,null,null,null,null,null,null,null,null,null,"11001101",205,null,null,null,null,null,{"$f":"GRAY(GRAY(GRAY(GRAY(GRAY(GRAY(GRAY(M139)))))))","v":137},null,null,null,null,null,null,null,{"$f":"GRAY(GRAY(GRAY(GRAY(GRAY(GRAY(GRAY(GRAY(GRAY(GRAY(GRAY(GRAY(GRAY(GRAY(GRAY(M139)))))))))))))))","v":137}]
[null,null,null,null,null,null,null,null,null,null,null,"11001111",207,null,null,null,null,null,{"$f":"GRAY(GRAY(GRAY(GRAY(GRAY(GRAY(GRAY(M140)))))))","v":138},null,null,null,null,null,null,null,{"$f":"GRAY(GRAY(GRAY(GRAY(GRAY(GRAY(GRAY(GRAY(GRAY(GRAY(GRAY(GRAY(GRAY(GRAY(GRAY(M140)))))))))))))))","v":138}]
[null,null,null,null,null,null,null,null,null,null,null,"11001110",206,null,null,null,null,null,{"$f":"GRAY(GRAY(GRAY(GRAY(GRAY(GRAY(GRAY(M141)))))))","v":139},null,null,null,null,null,null,null,{"$f":"GRAY(GRAY(GRAY(GRAY(GRAY(GRAY(GRAY(GRAY(GRAY(GRAY(GRAY(GRAY(GRAY(GRAY(GRAY(M141)))))))))))))))","v":139}]
[null,null,null,null,null,null,null,null,null,null,null,"11001010",202,null,null,null,null,null,{"$f":"GRAY(GRAY(GRAY(GRAY(GRAY(GRAY(GRAY(M142)))))))","v":140},null,null,null,null,null,null,null,{"$f":"GRAY(GRAY(GRAY(GRAY(GRAY(GRAY(GRAY(GRAY(GRAY(GRAY(GRAY(GRAY(GRAY(GRAY(GRAY(M142)))))))))))))))","v":140}]
[null,null,null,null,null,null,null,null,null,null,null,"11001011",203,null,null,null,null,null,{"$f":"GRAY(GRAY(GRAY(GRAY(GRAY(GRAY(GRAY(M143)))))))","v":141},null,null,null,null,null,null,null,{"$f":"GRAY(GRAY(GRAY(GRAY(GRAY(GRAY(GRAY(GRAY(GRAY(GRAY(GRAY(GRAY(GRAY(GRAY(GRAY(M143)))))))))))))))","v":141}]
[null,null,null,null,null,null,null,null,null,null,null,"11001001",201,null,null,null,null,null,{"$f":"GRAY(GRAY(GRAY(GRAY(GRAY(GRAY(GRAY(M144)))))))","v":142},null,null,null,null,null,null,null,{"$f":"GRAY(GRAY(GRAY(GRAY(GRAY(GRAY(GRAY(GRAY(GRAY(GRAY(GRAY(GRAY(GRAY(GRAY(GRAY(M144)))))))))))))))","v":142}]
[null,null,null,null,null,null,null,null,null,null,null,"11001000",200,null,null,null,null,null,{"$f":"GRAY(GRAY(GRAY(GRAY(GRAY(GRAY(GRAY(M145)))))))","v":143},null,null,null,null,null,null,null,{"$f":"GRAY(GRAY(GRAY(GRAY(GRAY(GRAY(GRAY(GRAY(GRAY(GRAY(GRAY(GRAY(GRAY(GRAY(GRAY(M145)))))))))))))))","v":143}]
[null,null,null,null,null,null,null,null,null,null,null,"11011000",216,null,null,null,null,null,{"$f":"GRAY(GRAY(GRAY(GRAY(GRAY(GRAY(GRAY(M146)))))))","v":144},null,null,null,null,null,null,null,{"$f":"GRAY(GRAY(GRAY(GRAY(GRAY(GRAY(GRAY(GRAY(GRAY(GRAY(GRAY(GRAY(GRAY(GRAY(GRAY(M146)))))))))))))))","v":144}]
[null,null,null,null,null,null,null,null,null,null,null,"11011001",217,null,null,null,null,null,{"$f":"GRAY(GRAY(GRAY(GRAY(GRAY(GRAY(GRAY(M147)))))))","v":145},null,null,null,null,null,null,null,{"$f":"GRAY(GRAY(GRAY(GRAY(GRAY(GRAY(GRAY(GRAY(GRAY(GRAY(GRAY(GRAY(GRAY(GRAY(GRAY(M147)))))))))))))))","v":145}]
[null,null,null,null,null,null,null,null,null,null,null,"11011011",219,null,null,null,null,null,{"$f":"GRAY(GRAY(GRAY(GRAY(GRAY(GRAY(GRAY(M148)))))))","v":146},null,null,null,null,null,null,null,{"$f":"GRAY(GRAY(GRAY(GRAY(GRAY(GRAY(GRAY(GRAY(GRAY(GRAY(GRAY(GRAY(GRAY(GRAY(GRAY(M148)))))))))))))))","v":146}]
[null,null,null,null,null,null,null,null,null,null,null,"11011010",218,null,null,null,null,null,{"$f":"GRAY(GRAY(GRAY(GRAY(GRAY(GRAY(GRAY(M149)))))))","v":147},null,null,null,null,null,null,null,{"$f":"GRAY(GRAY(GRAY(GRAY(GRAY(GRAY(GRAY(GRAY(GRAY(GRAY(GRAY(GRAY(GRAY(GRAY(GRAY(M149)))))))))))))))","v":147}]
[null,null,null,null,null,null,null,null,null,null,null,"11011110",222,null,null,null,null,null,{"$f":"GRAY(GRAY(GRAY(GRAY(GRAY(GRAY(GRAY(M150)))))))","v":148},null,null,null,null,null,null,null,{"$f":"GRAY(GRAY(GRAY(GRAY(GRAY(GRAY(GRAY(GRAY(GRAY(GRAY(GRAY(GRAY(GRAY(GRAY(GRAY(M150)))))))))))))))","v":148}]
[null,null,null,null,null,null,null,null,null,null,null,"11011111",223,null,null,null,null,null,{"$f":"GRAY(GRAY(GRAY(GRAY(GRAY(GRAY(GRAY(M151)))))))","v":149},null,null,null,null,null,null,null,{"$f":"GRAY(GRAY(GRAY(GRAY(GRAY(GRAY(GRAY(GRAY(GRAY(GRAY(GRAY(GRAY(GRAY(GRAY(GRAY(M151)))))))))))))))","v":149}]
[null,null,null,null,null,null,null,null,null,null,null,"11011101",221,null,null,null,null,null,{"$f":"GRAY(GRAY(GRAY(GRAY(GRAY(GRAY(GRAY(M152)))))))","v":150},null,null,null,null,null,null,null,{"$f":"GRAY(GRAY(GRAY(GRAY(GRAY(GRAY(GRAY(GRAY(GRAY(GRAY(GRAY(GRAY(GRAY(GRAY(GRAY(M152)))))))))))))))","v":150}]
[null,null,null,null,null,null,null,null,null,null,null,"11011100",220,null,null,null,null,null,{"$f":"GRAY(GRAY(GRAY(GRAY(GRAY(GRAY(GRAY(M153)))))))","v":151},null,null,null,null,null,null,null,{"$f":"GRAY(GRAY(GRAY(GRAY(GRAY(GRAY(GRAY(GRAY(GRAY(GRAY(GRAY(GRAY(GRAY(GRAY(GRAY(M153)))))))))))))))","v":151}]
[null,null,null,null,null,null,null,null,null,null,null,"11010100",212,null,null,null,null,null,{"$f":"GRAY(GRAY(GRAY(GRAY(GRAY(GRAY(GRAY(M154)))))))","v":152},null,null,null,null,null,null,null,{"$f":"GRAY(GRAY(GRAY(GRAY(GRAY(GRAY(GRAY(GRAY(GRAY(GRAY(GRAY(GRAY(GRAY(GRAY(GRAY(M154)))))))))))))))","v":152}]
[null,null,null,null,null,null,null,null,null,null,null,"11010101",213,null,null,null,null,null,{"$f":"GRAY(GRAY(GRAY(GRAY(GRAY(GRAY(GRAY(M155)))))))","v":153},null,null,null,null,null,null,null,{"$f":"GRAY(GRAY(GRAY(GRAY(GRAY(GRAY(GRAY(GRAY(GRAY(GRAY(GRAY(GRAY(GRAY(GRAY(GRAY(M155)))))))))))))))","v":153}]
[null,null,null,null,null,null,null,null,null,null,null,"11010111",215,null,null,null,null,null,{"$f":"GRAY(GRAY(GRAY(GRAY(GRAY(GRAY(GRAY(M156)))))))","v":154},null,null,null,null,null,null,null,{"$f":"GRAY(GRAY(GRAY(GRAY(GRAY(GRAY(GRAY(GRAY(GRAY(GRAY(GRAY(GRAY(GRAY(GRAY(GRAY(M156)))))))))))))))","v":154}]
[null,null,null,null,null,null,null,null,null,null,null,"11010110",214,null,null,null,null,null,{"$f":"GRAY(GRAY(GRAY(GRAY(GRAY(GRAY(GRAY(M157)))))))","v":155},null,null,null,null,null,null,null,{"$f":"GRAY(GRAY(GRAY(GRAY(GRAY(GRAY(GRAY(GRAY(GRAY(GRAY(GRAY(GRAY(GRAY(GRAY(GRAY(M157)))))))))))))))","v":155}]
[null,null,null,null,null,null,null,null,null,null,null,"11010010",210,null,null,null,null,null,{"$f":"GRAY(GRAY(GRAY(GRAY(GRAY(GRAY(GRAY(M158)))))))","v":156},null,null,null,null,null,null,null,{"$f":"GRAY(GRAY(GRAY(GRAY(GRAY(GRAY(GRAY(GRAY(GRAY(GRAY(GRAY(GRAY(GRAY(GRAY(GRAY(M158)))))))))))))))","v":156}]
[null,null,null,null,null,null,null,null,null,null,null,"11010011",211,null,null,null,null,null,{"$f":"GRAY(GRAY(GRAY(GRAY(GRAY(GRAY(GRAY(M159)))))))","v":157},null,null,null,null,null,null,null,{"$f":"GRAY(GRAY(GRAY(GRAY(GRAY(GRAY(GRAY(GRAY(GRAY(GRAY(GRAY(GRAY(GRAY(GRAY(GRAY(M159)))))))))))))))","v":157}]
[null,null,null,null,null,null,null,null,null,null,null,"11010001",209,null,null,null,null,null,{"$f":"GRAY(GRAY(GRAY(GRAY(GRAY(GRAY(GRAY(M160)))))))","v":158},null,null,null,null,null,null,null,{"$f":"GRAY(GRAY(GRAY(GRAY(GRAY(GRAY(GRAY(GRAY(GRAY(GRAY(GRAY(GRAY(GRAY(GRAY(GRAY(M160)))))))))))))))","v":158}]
[null,null,null,null,null,null,null,null,null,null,null,"11010000",208,null,null,null,null,null,{"$f":"GRAY(GRAY(GRAY(GRAY(GRAY(GRAY(GRAY(M161)))))))","v":159},null,null,null,null,null,null,null,{"$f":"GRAY(GRAY(GRAY(GRAY(GRAY(GRAY(GRAY(GRAY(GRAY(GRAY(GRAY(GRAY(GRAY(GRAY(GRAY(M161)))))))))))))))","v":159}]
[null,null,null,null,null,null,null,null,null,null,null,"11110000",240,null,null,null,null,null,{"$f":"GRAY(GRAY(GRAY(GRAY(GRAY(GRAY(GRAY(M162)))))))","v":160},null,null,null,null,null,null,null,{"$f":"GRAY(GRAY(GRAY(GRAY(GRAY(GRAY(GRAY(GRAY(GRAY(GRAY(GRAY(GRAY(GRAY(GRAY(GRAY(M162)))))))))))))))","v":160}]
[null,null,null,null,null,null,null,null,null,null,null,"11110001",241,null,null,null,null,null,{"$f":"GRAY(GRAY(GRAY(GRAY(GRAY(GRAY(GRAY(M163)))))))","v":161},null,null,null,null,null,null,null,{"$f":"GRAY(GRAY(GRAY(GRAY(GRAY(GRAY(GRAY(GRAY(GRAY(GRAY(GRAY(GRAY(GRAY(GRAY(GRAY(M163)))))))))))))))","v":161}]
[null,null,null,null,null,null,null,null,null,null,null,"11110011",243,null,null,null,null,null,{"$f":"GRAY(GRAY(GRAY(GRAY(GRAY(GRAY(GRAY(M164)))))))","v":162},null,null,null,null,null,null,null,{"$f":"GRAY(GRAY(GRAY(GRAY(GRAY(GRAY(GRAY(GRAY(GRAY(GRAY(GRAY(GRAY(GRAY(GRAY(GRAY(M164)))))))))))))))","v":162}]
[null,null,null,null,null,null,null,null,null,null,null,"11110010",242,null,null,null,null,null,{"$f":"GRAY(GRAY(GRAY(GRAY(GRAY(GRAY(GRAY(M165)))))))","v":163},null,null,null,null,null,null,null,{"$f":"GRAY(GRAY(GRAY(GRAY(GRAY(GRAY(GRAY(GRAY(GRAY(GRAY(GRAY(GRAY(GRAY(GRAY(GRAY(M165)))))))))))))))","v":163}]
[null,null,null,null,null,null,null,null,null,null,null,"11110110",246,null,null,null,null,null,{"$f":"GRAY(GRAY(GRAY(GRAY(GRAY(GRAY(GRAY(M166)))))))","v":164},null,null,null,null,null,null,null,{"$f":"GRAY(GRAY(GRAY(GRAY(GRAY(GRAY(GRAY(GRAY(GRAY(GRAY(GRAY(GRAY(GRAY(GRAY(GRAY(M166)))))))))))))))","v":164}]
[null,null,null,null,null,null,null,null,null,null,null,"11110111",247,null,null,null,null,null,{"$f":"GRAY(GRAY(GRAY(GRAY(GRAY(GRAY(GRAY(M167)))))))","v":165},null,null,null,null,null,null,null,{"$f":"GRAY(GRAY(GRAY(GRAY(GRAY(GRAY(GRAY(GRAY(GRAY(GRAY(GRAY(GRAY(GRAY(GRAY(GRAY(M167)))))))))))))))","v":165}]
[null,null,null,null,null,null,null,null,null,null,null,"11110101",245,null,null,null,null,null,{"$f":"GRAY(GRAY(GRAY(GRAY(GRAY(GRAY(GRAY(M168)))))))","v":166},null,null,null,null,null,null,null,{"$f":"GRAY(GRAY(GRAY(GRAY(GRAY(GRAY(GRAY(GRAY(GRAY(GRAY(GRAY(GRAY(GRAY(GRAY(GRAY(M168)))))))))))))))","v":166}]
[null,null,null,null,null,null,null,null,null,null,null,"11110100",244,null,null,null,null,null,{"$f":"GRAY(GRAY(GRAY(GRAY(GRAY(GRAY(GRAY(M169)))))))","v":167},null,null,null,null,null,null,null,{"$f":"GRAY(GRAY(GRAY(GRAY(GRAY(GRAY(GRAY(GRAY(GRAY(GRAY(GRAY(GRAY(GRAY(GRAY(GRAY(M169)))))))))))))))","v":167}]
[null,null,null,null,null,null,null,null,null,null,null,"11111100",252,null,null,null,null,null,{"$f":"GRAY(GRAY(GRAY(GRAY(GRAY(GRAY(GRAY(M170)))))))","v":168},null,null,null,null,null,null,null,{"$f":"GRAY(GRAY(GRAY(GRAY(GRAY(GRAY(GRAY(GRAY(GRAY(GRAY(GRAY(GRAY(GRAY(GRAY(GRAY(M170)))))))))))))))","v":168}]
[null,null,null,null,null,null,null,null,null,null,null,"11111101",253,null,null,null,null,null,{"$f":"GRAY(GRAY(GRAY(GRAY(GRAY(GRAY(GRAY(M171)))))))","v":169},null,null,null,null,null,null,null,{"$f":"GRAY(GRAY(GRAY(GRAY(GRAY(GRAY(GRAY(GRAY(GRAY(GRAY(GRAY(GRAY(GRAY(GRAY(GRAY(M171)))))))))))))))","v":169}]
[null,null,null,null,null,null,null,null,null,null,null,"11111111",255,null,null,null,null,null,{"$f":"GRAY(GRAY(GRAY(GRAY(GRAY(GRAY(GRAY(M172)))))))","v":170},null,null,null,null,null,null,null,{"$f":"GRAY(GRAY(GRAY(GRAY(GRAY(GRAY(GRAY(GRAY(GRAY(GRAY(GRAY(GRAY(GRAY(GRAY(GRAY(M172)))))))))))))))","v":170}]
[null,null,null,null,null,null,null,null,null,null,null,"11111110",254,null,null,null,null,null,{"$f":"GRAY(GRAY(GRAY(GRAY(GRAY(GRAY(GRAY(M173)))))))","v":171},null,null,null,null,null,null,null,{"$f":"GRAY(GRAY(GRAY(GRAY(GRAY(GRAY(GRAY(GRAY(GRAY(GRAY(GRAY(GRAY(GRAY(GRAY(GRAY(M173)))))))))))))))","v":171}]
[null,null,null,null,null,null,null,null,null,null,null,"11111010",250,null,null,null,null,null,{"$f":"GRAY(GRAY(GRAY(GRAY(GRAY(GRAY(GRAY(M174)))))))","v":172},null,null,null,null,null,null,null,{"$f":"GRAY(GRAY(GRAY(GRAY(GRAY(GRAY(GRAY(GRAY(GRAY(GRAY(GRAY(GRAY(GRAY(GRAY(GRAY(M174)))))))))))))))","v":172}]
[null,null,null,null,null,null,null,null,null,null,null,"11111011",251,null,null,null,null,null,{"$f":"GRAY(GRAY(GRAY(GRAY(GRAY(GRAY(GRAY(M175)))))))","v":173},null,null,null,null,null,null,null,{"$f":"GRAY(GRAY(GRAY(GRAY(GRAY(GRAY(GRAY(GRAY(GRAY(GRAY(GRAY(GRAY(GRAY(GRAY(GRAY(M175)))))))))))))))","v":173}]
[null,null,null,null,null,null,null,null,null,null,null,"11111001",249,null,null,null,null,null,{"$f":"GRAY(GRAY(GRAY(GRAY(GRAY(GRAY(GRAY(M176)))))))","v":174},null,null,null,null,null,null,null,{"$f":"GRAY(GRAY(GRAY(GRAY(GRAY(GRAY(GRAY(GRAY(GRAY(GRAY(GRAY(GRAY(GRAY(GRAY(GRAY(M176)))))))))))))))","v":174}]
[null,null,null,null,null,null,null,null,null,null,null,"11111000",248,null,null,null,null,null,{"$f":"GRAY(GRAY(GRAY(GRAY(GRAY(GRAY(GRAY(M177)))))))","v":175},null,null,null,null,null,null,null,{"$f":"GRAY(GRAY(GRAY(GRAY(GRAY(GRAY(GRAY(GRAY(GRAY(GRAY(GRAY(GRAY(GRAY(GRAY(GRAY(M177)))))))))))))))","v":175}]
[null,null,null,null,null,null,null,null,null,null,null,"11101000",232,null,null,null,null,null,{"$f":"GRAY(GRAY(GRAY(GRAY(GRAY(GRAY(GRAY(M178)))))))","v":176},null,null,null,null,null,null,null,{"$f":"GRAY(GRAY(GRAY(GRAY(GRAY(GRAY(GRAY(GRAY(GRAY(GRAY(GRAY(GRAY(GRAY(GRAY(GRAY(M178)))))))))))))))","v":176}]
[null,null,null,null,null,null,null,null,null,null,null,"11101001",233,null,null,null,null,null,{"$f":"GRAY(GRAY(GRAY(GRAY(GRAY(GRAY(GRAY(M179)))))))","v":177},null,null,null,null,null,null,null,{"$f":"GRAY(GRAY(GRAY(GRAY(GRAY(GRAY(GRAY(GRAY(GRAY(GRAY(GRAY(GRAY(GRAY(GRAY(GRAY(M179)))))))))))))))","v":177}]
[null,null,null,null,null,null,null,null,null,null,null,"11101011",235,null,null,null,null,null,{"$f":"GRAY(GRAY(GRAY(GRAY(GRAY(GRAY(GRAY(M180)))))))","v":178},null,null,null,null,null,null,null,{"$f":"GRAY(GRAY(GRAY(GRAY(GRAY(GRAY(GRAY(GRAY(GRAY(GRAY(GRAY(GRAY(GRAY(GRAY(GRAY(M180)))))))))))))))","v":178}]
[null,null,null,null,null,null,null,null,null,null,null,"11101010",234,null,null,null,null,null,{"$f":"GRAY(GRAY(GRAY(GRAY(GRAY(GRAY(GRAY(M181)))))))","v":179},null,null,null,null,null,null,null,{"$f":"GRAY(GRAY(GRAY(GRAY(GRAY(GRAY(GRAY(GRAY(GRAY(GRAY(GRAY(GRAY(GRAY(GRAY(GRAY(M181)))))))))))))))","v":179}]
[null,null,null,null,null,null,null,null,null,null,null,"11101110",238,null,null,null,null,null,{"$f":"GRAY(GRAY(GRAY(GRAY(GRAY(GRAY(GRAY(M182)))))))","v":180},null,null,null,null,null,null,null,{"$f":"GRAY(GRAY(GRAY(GRAY(GRAY(GRAY(GRAY(GRAY(GRAY(GRAY(GRAY(GRAY(GRAY(GRAY(GRAY(M182)))))))))))))))","v":180}]
[null,null,null,null,null,null,null,null,null,null,null,"11101111",239,null,null,null,null,null,{"$f":"GRAY(GRAY(GRAY(GRAY(GRAY(GRAY(GRAY(M183)))))))","v":181},null,null,null,null,null,null,null,{"$f":"GRAY(GRAY(GRAY(GRAY(GRAY(GRAY(GRAY(GRAY(GRAY(GRAY(GRAY(GRAY(GRAY(GRAY(GRAY(M183)))))))))))))))","v":181}]
[null,null,null,null,null,null,null,null,null,null,null,"11101101",237,null,null,null,null,null,{"$f":"GRAY(GRAY(GRAY(GRAY(GRAY(GRAY(GRAY(M184)))))))","v":182},null,null,null,null,null,null,null,{"$f":"GRAY(GRAY(GRAY(GRAY(GRAY(GRAY(GRAY(GRAY(GRAY(GRAY(GRAY(GRAY(GRAY(GRAY(GRAY(M184)))))))))))))))","v":182}]
[null,null,null,null,null,null,null,null,null,null,null,"11101100",236,null,null,null,null,null,{"$f":"GRAY(GRAY(GRAY(GRAY(GRAY(GRAY(GRAY(M185)))))))","v":183},null,null,null,null,null,null,null,{"$f":"GRAY(GRAY(GRAY(GRAY(GRAY(GRAY(GRAY(GRAY(GRAY(GRAY(GRAY(GRAY(GRAY(GRAY(GRAY(M185)))))))))))))))","v":183}]
[null,null,null,null,null,null,null,null,null,null,null,"11100100",228,null,null,null,null,null,{"$f":"GRAY(GRAY(GRAY(GRAY(GRAY(GRAY(GRAY(M186)))))))","v":184},null,null,null,null,null,null,null,{"$f":"GRAY(GRAY(GRAY(GRAY(GRAY(GRAY(GRAY(GRAY(GRAY(GRAY(GRAY(GRAY(GRAY(GRAY(GRAY(M186)))))))))))))))","v":184}]
[null,null,null,null,null,null,null,null,null,null,null,"11100101",229,null,null,null,null,null,{"$f":"GRAY(GRAY(GRAY(GRAY(GRAY(GRAY(GRAY(M187)))))))","v":185},null,null,null,null,null,null,null,{"$f":"GRAY(GRAY(GRAY(GRAY(GRAY(GRAY(GRAY(GRAY(GRAY(GRAY(GRAY(GRAY(GRAY(GRAY(GRAY(M187)))))))))))))))","v":185}]
[null,null,null,null,null,null,null,null,null,null,null,"11100111",231,null,null,null,null,null,{"$f":"GRAY(GRAY(GRAY(GRAY(GRAY(GRAY(GRAY(M188)))))))","v":186},null,null,null,null,null,null,null,{"$f":"GRAY(GRAY(GRAY(GRAY(GRAY(GRAY(GRAY(GRAY(GRAY(GRAY(GRAY(GRAY(GRAY(GRAY(GRAY(M188)))))))))))))))","v":186}]
[null,null,null,null,null,null,null,null,null,null,null,"11100110",230,null,null,null,null,null,{"$f":"GRAY(GRAY(GRAY(GRAY(GRAY(GRAY(GRAY(M189)))))))","v":187},null,null,null,null,null,null,null,{"$f":"GRAY(GRAY(GRAY(GRAY(GRAY(GRAY(GRAY(GRAY(GRAY(GRAY(GRAY(GRAY(GRAY(GRAY(GRAY(M189)))))))))))))))","v":187}]
[null,null,null,null,null,null,null,null,null,null,null,"11100010",226,null,null,null,null,null,{"$f":"GRAY(GRAY(GRAY(GRAY(GRAY(GRAY(GRAY(M190)))))))","v":188},null,null,null,null,null,null,null,{"$f":"GRAY(GRAY(GRAY(GRAY(GRAY(GRAY(GRAY(GRAY(GRAY(GRAY(GRAY(GRAY(GRAY(GRAY(GRAY(M190)))))))))))))))","v":188}]
[null,null,null,null,null,null,null,null,null,null,null,"11100011",227,null,null,null,null,null,{"$f":"GRAY(GRAY(GRAY(GRAY(GRAY(GRAY(GRAY(M191)))))))","v":189},null,null,null,null,null,null,null,{"$f":"GRAY(GRAY(GRAY(GRAY(GRAY(GRAY(GRAY(GRAY(GRAY(GRAY(GRAY(GRAY(GRAY(GRAY(GRAY(M191)))))))))))))))","v":189}]
[null,null,null,null,null,null,null,null,null,null,null,"11100001",225,null,null,null,null,null,{"$f":"GRAY(GRAY(GRAY(GRAY(GRAY(GRAY(GRAY(M192)))))))","v":190},null,null,null,null,null,null,null,{"$f":"GRAY(GRAY(GRAY(GRAY(GRAY(GRAY(GRAY(GRAY(GRAY(GRAY(GRAY(GRAY(GRAY(GRAY(GRAY(M192)))))))))))))))","v":190}]
[null,null,null,null,null,null,null,null,null,null,null,"11100000",224,null,null,null,null,null,{"$f":"GRAY(GRAY(GRAY(GRAY(GRAY(GRAY(GRAY(M193)))))))","v":191},null,null,null,null,null,null,null,{"$f":"GRAY(GRAY(GRAY(GRAY(GRAY(GRAY(GRAY(GRAY(GRAY(GRAY(GRAY(GRAY(GRAY(GRAY(GRAY(M193)))))))))))))))","v":191}]
[null,null,null,null,null,null,null,null,null,null,null,"10100000",160,null,null,null,null,null,{"$f":"GRAY(GRAY(GRAY(GRAY(GRAY(GRAY(GRAY(M194)))))))","v":192},null,null,null,null,null,null,null,{"$f":"GRAY(GRAY(GRAY(GRAY(GRAY(GRAY(GRAY(GRAY(GRAY(GRAY(GRAY(GRAY(GRAY(GRAY(GRAY(M194)))))))))))))))","v":192}]
[null,null,null,null,null,null,null,null,null,null,null,"10100001",{"$f":"BIN2DEC(L195)","v":161},null,null,null,null,null,{"$f":"GRAY(GRAY(GRAY(GRAY(GRAY(GRAY(GRAY(M195)))))))","v":193},null,null,null,null,null,null,null,{"$f":"GRAY(GRAY(GRAY(GRAY(GRAY(GRAY(GRAY(GRAY(GRAY(GRAY(GRAY(GRAY(GRAY(GRAY(GRAY(M195)))))))))))))))","v":193}]
[null,null,null,null,null,null,null,null,null,null,null,"10100011",163,null,null,null,null,null,{"$f":"GRAY(GRAY(GRAY(GRAY(GRAY(GRAY(GRAY(M196)))))))","v":194},null,null,null,null,null,null,null,{"$f":"GRAY(GRAY(GRAY(GRAY(GRAY(GRAY(GRAY(GRAY(GRAY(GRAY(GRAY(GRAY(GRAY(GRAY(GRAY(M196)))))))))))))))","v":194}]
[null,null,null,null,null,null,null,null,null,null,null,"10100010",162,null,null,null,null,null,{"$f":"GRAY(GRAY(GRAY(GRAY(GRAY(GRAY(GRAY(M197)))))))","v":195},null,null,null,null,null,null,null,{"$f":"GRAY(GRAY(GRAY(GRAY(GRAY(GRAY(GRAY(GRAY(GRAY(GRAY(GRAY(GRAY(GRAY(GRAY(GRAY(M197)))))))))))))))","v":195}]
[null,null,null,null,null,null,null,null,null,null,null,"10100110",166,null,null,null,null,null,{"$f":"GRAY(GRAY(GRAY(GRAY(GRAY(GRAY(GRAY(M198)))))))","v":196},null,null,null,null,null,null,null,{"$f":"GRAY(GRAY(GRAY(GRAY(GRAY(GRAY(GRAY(GRAY(GRAY(GRAY(GRAY(GRAY(GRAY(GRAY(GRAY(M198)))))))))))))))","v":196}]
[null,null,null,null,null,null,null,null,null,null,null,"10100111",167,null,null,null,null,null,{"$f":"GRAY(GRAY(GRAY(GRAY(GRAY(GRAY(GRAY(M199)))))))","v":197},null,null,null,null,null,null,null,{"$f":"GRAY(GRAY(GRAY(GRAY(GRAY(GRAY(GRAY(GRAY(GRAY(GRAY(GRAY(GRAY(GRAY(GRAY(GRAY(M199)))))))))))))))","v":197}]
[null,null,null,null,null,null,null,null,null,null,null,"10100101",165,null,null,null,null,null,{"$f":"GRAY(GRAY(GRAY(GRAY(GRAY(GRAY(GRAY(M200)))))))","v":198},null,null,null,null,null,null,null,{"$f":"GRAY(GRAY(GRAY(GRAY(GRAY(GRAY(GRAY(GRAY(GRAY(GRAY(GRAY(GRAY(GRAY(GRAY(GRAY(M200)))))))))))))))","v":198}]
[null,null,null,null,null,null,null,null,null,null,null,"10100100",164,null,null,null,null,null,{"$f":"GRAY(GRAY(GRAY(GRAY(GRAY(GRAY(GRAY(M201)))))))","v":199},null,null,null,null,null,null,null,{"$f":"GRAY(GRAY(GRAY(GRAY(GRAY(GRAY(GRAY(GRAY(GRAY(GRAY(GRAY(GRAY(GRAY(GRAY(GRAY(M201)))))))))))))))","v":199}]
[null,null,null,null,null,null,null,null,null,null,null,"10101100",172,null,null,null,null,null,{"$f":"GRAY(GRAY(GRAY(GRAY(GRAY(GRAY(GRAY(M202)))))))","v":200},null,null,null,null,null,null,null,{"$f":"GRAY(GRAY(GRAY(GRAY(GRAY(GRAY(GRAY(GRAY(GRAY(GRAY(GRAY(GRAY(GRAY(GRAY(GRAY(M202)))))))))))))))","v":200}]
[null,null,null,null,null,null,null,null,null,null,null,"10101101",173,null,null,null,null,null,{"$f":"GRAY(GRAY(GRAY(GRAY(GRAY(GRAY(GRAY(M203)))))))","v":201},null,null,null,null,null,null,null,{"$f":"GRAY(GRAY(GRAY(GRAY(GRAY(GRAY(GRAY(GRAY(GRAY(GRAY(GRAY(GRAY(GRAY(GRAY(GRAY(M203)))))))))))))))","v":201}]
[null,null,null,null,null,null,null,null,null,null,null,"10101111",175,null,null,null,null,null,{"$f":"GRAY(GRAY(GRAY(GRAY(GRAY(GRAY(GRAY(M204)))))))","v":202},null,null,null,null,null,null,null,{"$f":"GRAY(GRAY(GRAY(GRAY(GRAY(GRAY(GRAY(GRAY(GRAY(GRAY(GRAY(GRAY(GRAY(GRAY(GRAY(M204)))))))))))))))","v":202}]
[null,null,null,null,null,null,null,null,null,null,null,"10101110",174,null,null,null,null,null,{"$f":"GRAY(GRAY(GRAY(GRAY(GRAY(GRAY(GRAY(M205)))))))","v":203},null,null,null,null,null,null,null,{"$f":"GRAY(GRAY(GRAY(GRAY(GRAY(GRAY(GRAY(GRAY(GRAY(GRAY(GRAY(GRAY(GRAY(GRAY(GRAY(M205)))))))))))))))","v":203}]
[null,null,null,null,null,null,null,null,null,null,null,"10101010",170,null,null,null,null,null,{"$f":"GRAY(GRAY(GRAY(GRAY(GRAY(GRAY(GRAY(M206)))))))","v":204},null,null,null,null,null,null,null,{"$f":"GRAY(GRAY(GRAY(GRAY(GRAY(GRAY(GRAY(GRAY(GRAY(GRAY(GRAY(GRAY(GRAY(GRAY(GRAY(M206)))))))))))))))","v":204}]
[null,null,null,null,null,null,null,null,null,null,null,"10101011",171,null,null,null,null,null,{"$f":"GRAY(GRAY(GRAY(GRAY(GRAY(GRAY(GRAY(M207)))))))","v":205},null,null,null,null,null,null,null,{"$f":"GRAY(GRAY(GRAY(GRAY(GRAY(GRAY(GRAY(GRAY(GRAY(GRAY(GRAY(GRAY(GRAY(GRAY(GRAY(M207)))))))))))))))","v":205}]
[null,null,null,null,null,null,null,null,null,null,null,"10101001",169,null,null,null,null,null,{"$f":"GRAY(GRAY(GRAY(GRAY(GRAY(GRAY(GRAY(M208)))))))","v":206},null,null,null,null,null,null,null,{"$f":"GRAY(GRAY(GRAY(GRAY(GRAY(GRAY(GRAY(GRAY(GRAY(GRAY(GRAY(GRAY(GRAY(GRAY(GRAY(M208)))))))))))))))","v":206}]
[null,null,null,null,null,null,null,null,null,null,null,"10101000",168,null,null,null,null,null,{"$f":"GRAY(GRAY(GRAY(GRAY(GRAY(GRAY(GRAY(M209)))))))","v":207},null,null,null,null,null,null,null,{"$f":"GRAY(GRAY(GRAY(GRAY(GRAY(GRAY(GRAY(GRAY(GRAY(GRAY(GRAY(GRAY(GRAY(GRAY(GRAY(M209)))))))))))))))","v":207}]
[null,null,null,null,null,null,null,null,null,null,null,"10111000",184,null,null,null,null,null,{"$f":"GRAY(GRAY(GRAY(GRAY(GRAY(GRAY(GRAY(M210)))))))","v":208},null,null,null,null,null,null,null,{"$f":"GRAY(GRAY(GRAY(GRAY(GRAY(GRAY(GRAY(GRAY(GRAY(GRAY(GRAY(GRAY(GRAY(GRAY(GRAY(M210)))))))))))))))","v":208}]
[null,null,null,null,null,null,null,null,null,null,null,"10111001",185,null,null,null,null,null,{"$f":"GRAY(GRAY(GRAY(GRAY(GRAY(GRAY(GRAY(M211)))))))","v":209},null,null,null,null,null,null,null,{"$f":"GRAY(GRAY(GRAY(GRAY(GRAY(GRAY(GRAY(GRAY(GRAY(GRAY(GRAY(GRAY(GRAY(GRAY(GRAY(M211)))))))))))))))","v":209}]
[null,null,null,null,null,null,null,null,null,null,null,"10111011",187,null,null,null,null,null,{"$f":"GRAY(GRAY(GRAY(GRAY(GRAY(GRAY(GRAY(M212)))))))","v":210},null,null,null,null,null,null,null,{"$f":"GRAY(GRAY(GRAY(GRAY(GRAY(GRAY(GRAY(GRAY(GRAY(GRAY(GRAY(GRAY(GRAY(GRAY(GRAY(M212)))))))))))))))","v":210}]
[null,null,null,null,null,null,null,null,null,null,null,"10111010",186,null,null,null,null,null,{"$f":"GRAY(GRAY(GRAY(GRAY(GRAY(GRAY(GRAY(M213)))))))","v":211},null,null,null,null,null,null,null,{"$f":"GRAY(GRAY(GRAY(GRAY(GRAY(GRAY(GRAY(GRAY(GRAY(GRAY(GRAY(GRAY(GRAY(GRAY(GRAY(M213)))))))))))))))","v":211}]
[null,null,null,null,null,null,null,null,null,null,null,"10111110",190,null,null,null,null,null,{"$f":"GRAY(GRAY(GRAY(GRAY(GRAY(GRAY(GRAY(M214)))))))","v":212},null,null,null,null,null,null,null,{"$f":"GRAY(GRAY(GRAY(GRAY(GRAY(GRAY(GRAY(GRAY(GRAY(GRAY(GRAY(GRAY(GRAY(GRAY(GRAY(M214)))))))))))))))","v":212}]
[null,null,null,null,null,null,null,null,null,null,null,"10111111",191,null,null,null,null,null,{"$f":"GRAY(GRAY(GRAY(GRAY(GRAY(GRAY(GRAY(M215)))))))","v":213},null,null,null,null,null,null,null,{"$f":"GRAY(GRAY(GRAY(GRAY(GRAY(GRAY(GRAY(GRAY(GRAY(GRAY(GRAY(GRAY(GRAY(GRAY(GRAY(M215)))))))))))))))","v":213}]
[null,null,null,null,null,null,null,null,null,null,null,"10111101",189,null,null,null,null,null,{"$f":"GRAY(GRAY(GRAY(GRAY(GRAY(GRAY(GRAY(M216)))))))","v":214},null,null,null,null,null,null,null,{"$f":"GRAY(GRAY(GRAY(GRAY(GRAY(GRAY(GRAY(GRAY(GRAY(GRAY(GRAY(GRAY(GRAY(GRAY(GRAY(M216)))))))))))))))","v":214}]
[null,null,null,null,null,null,null,null,null,null,null,"10111100",188,null,null,null,null,null,{"$f":"GRAY(GRAY(GRAY(GRAY(GRAY(GRAY(GRAY(M217)))))))","v":215},null,null,null,null,null,null,null,{"$f":"GRAY(GRAY(GRAY(GRAY(GRAY(GRAY(GRAY(GRAY(GRAY(GRAY(GRAY(GRAY(GRAY(GRAY(GRAY(M217)))))))))))))))","v":215}]
[null,null,null,null,null,null,null,null,null,null,null,"10110100",180,null,null,null,null,null,{"$f":"GRAY(GRAY(GRAY(GRAY(GRAY(GRAY(GRAY(M218)))))))","v":216},null,null,null,null,null,null,null,{"$f":"GRAY(GRAY(GRAY(GRAY(GRAY(GRAY(GRAY(GRAY(GRAY(GRAY(GRAY(GRAY(GRAY(GRAY(GRAY(M218)))))))))))))))","v":216}]
[null,null,null,null,null,null,null,null,null,null,null,"10110101",181,null,null,null,null,null,{"$f":"GRAY(GRAY(GRAY(GRAY(GRAY(GRAY(GRAY(M219)))))))","v":217},null,null,null,null,null,null,null,{"$f":"GRAY(GRAY(GRAY(GRAY(GRAY(GRAY(GRAY(GRAY(GRAY(GRAY(GRAY(GRAY(GRAY(GRAY(GRAY(M219)))))))))))))))","v":217}]
[null,null,null,null,null,null,null,null,null,null,null,"10110111",183,null,null,null,null,null,{"$f":"GRAY(GRAY(GRAY(GRAY(GRAY(GRAY(GRAY(M220)))))))","v":218},null,null,null,null,null,null,null,{"$f":"GRAY(GRAY(GRAY(GRAY(GRAY(GRAY(GRAY(GRAY(GRAY(GRAY(GRAY(GRAY(GRAY(GRAY(GRAY(M220)))))))))))))))","v":218}]
[null,null,null,null,null,null,null,null,null,null,null,"10110110",182,null,null,null,null,null,{"$f":"GRAY(GRAY(GRAY(GRAY(GRAY(GRAY(GRAY(M221)))))))","v":219},null,null,null,null,null,null,null,{"$f":"GRAY(GRAY(GRAY(GRAY(GRAY(GRAY(GRAY(GRAY(GRAY(GRAY(GRAY(GRAY(GRAY(GRAY(GRAY(M221)))))))))))))))","v":219}]
[null,null,null,null,null,null,null,null,null,null,null,"10110010",178,null,null,null,null,null,{"$f":"GRAY(GRAY(GRAY(GRAY(GRAY(GRAY(GRAY(M222)))))))","v":220},null,null,null,null,null,null,null,{"$f":"GRAY(GRAY(GRAY(GRAY(GRAY(GRAY(GRAY(GRAY(GRAY(GRAY(GRAY(GRAY(GRAY(GRAY(GRAY(M222)))))))))))))))","v":220}]
[null,null,null,null,null,null,null,null,null,null,null,"10110011",179,null,null,null,null,null,{"$f":"GRAY(GRAY(GRAY(GRAY(GRAY(GRAY(GRAY(M223)))))))","v":221},null,null,null,null,null,null,null,{"$f":"GRAY(GRAY(GRAY(GRAY(GRAY(GRAY(GRAY(GRAY(GRAY(GRAY(GRAY(GRAY(GRAY(GRAY(GRAY(M223)))))))))))))))","v":221}]
[null,null,null,null,null,null,null,null,null,null,null,"10110001",177,null,null,null,null,null,{"$f":"GRAY(GRAY(GRAY(GRAY(GRAY(GRAY(GRAY(M224)))))))","v":222},null,null,null,null,null,null,null,{"$f":"GRAY(GRAY(GRAY(GRAY(GRAY(GRAY(GRAY(GRAY(GRAY(GRAY(GRAY(GRAY(GRAY(GRAY(GRAY(M224)))))))))))))))","v":222}]
[null,null,null,null,null,null,null,null,null,null,null,"10110000",176,null,null,null,null,null,{"$f":"GRAY(GRAY(GRAY(GRAY(GRAY(GRAY(GRAY(M225)))))))","v":223},null,null,null,null,null,null,null,{"$f":"GRAY(GRAY(GRAY(GRAY(GRAY(GRAY(GRAY(GRAY(GRAY(GRAY(GRAY(GRAY(GRAY(GRAY(GRAY(M225)))))))))))))))","v":223}]
[null,null,null,null,null,null,null,null,null,null,null,"10010000",144,null,null,null,null,null,{"$f":"GRAY(GRAY(GRAY(GRAY(GRAY(GRAY(GRAY(M226)))))))","v":224},null,null,null,null,null,null,null,{"$f":"GRAY(GRAY(GRAY(GRAY(GRAY(GRAY(GRAY(GRAY(GRAY(GRAY(GRAY(GRAY(GRAY(GRAY(GRAY(M226)))))))))))))))","v":224}]
[null,null,null,null,null,null,null,null,null,null,null,"10010001",145,null,null,null,null,null,{"$f":"GRAY(GRAY(GRAY(GRAY(GRAY(GRAY(GRAY(M227)))))))","v":225},null,null,null,null,null,null,null,{"$f":"GRAY(GRAY(GRAY(GRAY(GRAY(GRAY(GRAY(GRAY(GRAY(GRAY(GRAY(GRAY(GRAY(GRAY(GRAY(M227)))))))))))))))","v":225}]
[null,null,null,null,null,null,null,null,null,null,null,"10010011",147,null,null,null,null,null,{"$f":"GRAY(GRAY(GRAY(GRAY(GRAY(GRAY(GRAY(M228)))))))","v":226},null,null,null,null,null,null,null,{"$f":"GRAY(GRAY(GRAY(GRAY(GRAY(GRAY(GRAY(GRAY(GRAY(GRAY(GRAY(GRAY(GRAY(GRAY(GRAY(M228)))))))))))))))","v":226}]
[null,null,null,null,null,null,null,null,null,null,null,"10010010",146,null,null,null,null,null,{"$f":"GRAY(GRAY(GRAY(GRAY(GRAY(GRAY(GRAY(M229)))))))","v":227},null,null,null,null,null,null,null,{"$f":"GRAY(GRAY(GRAY(GRAY(GRAY(GRAY(GRAY(GRAY(GRAY(GRAY(GRAY(GRAY(GRAY(GRAY(GRAY(M229)))))))))))))))","v":227}]
[null,null,null,null,null,null,null,null,null,null,null,"10010110",150,null,null,null,null,null,{"$f":"GRAY(GRAY(GRAY(GRAY(GRAY(GRAY(GRAY(M230)))))))","v":228},null,null,null,null,null,null,null,{"$f":"GRAY(GRAY(GRAY(GRAY(GRAY(GRAY(GRAY(GRAY(GRAY(GRAY(GRAY(GRAY(GRAY(GRAY(GRAY(M230)))))))))))))))","v":228}]
[null,null,null,null,null,null,null,null,null,null,null,"10010111",151,null,null,null,null,null,{"$f":"GRAY(GRAY(GRAY(GRAY(GRAY(GRAY(GRAY(M231)))))))","v":229},null,null,null,null,null,null,null,{"$f":"GRAY(GRAY(GRAY(GRAY(GRAY(GRAY(GRAY(GRAY(GRAY(GRAY(GRAY(GRAY(GRAY(GRAY(GRAY(M231)))))))))))))))","v":229}]
[null,null,null,null,null,null,null,null,null,null,null,"10010101",149,null,null,null,null,null,{"$f":"GRAY(GRAY(GRAY(GRAY(GRAY(GRAY(GRAY(M232)))))))","v":230},null,null,null,null,null,null,null,{"$f":"GRAY(GRAY(GRAY(GRAY(GRAY(GRAY(GRAY(GRAY(GRAY(GRAY(GRAY(GRAY(GRAY(GRAY(GRAY(M232)))))))))))))))","v":230}]
[null,null,null,null,null,null,null,null,null,null,null,"10010100",148,null,null,null,null,null,{"$f":"GRAY(GRAY(GRAY(GRAY(GRAY(GRAY(GRAY(M233)))))))","v":231},null,null,null,null,null,null,null,{"$f":"GRAY(GRAY(GRAY(GRAY(GRAY(GRAY(GRAY(GRAY(GRAY(GRAY(GRAY(GRAY(GRAY(GRAY(GRAY(M233)))))))))))))))","v":231}]
[null,null,null,null,null,null,null,null,null,null,null,"10011100",156,null,null,null,null,null,{"$f":"GRAY(GRAY(GRAY(GRAY(GRAY(GRAY(GRAY(M234)))))))","v":232},null,null,null,null,null,null,null,{"$f":"GRAY(GRAY(GRAY(GRAY(GRAY(GRAY(GRAY(GRAY(GRAY(GRAY(GRAY(GRAY(GRAY(GRAY(GRAY(M234)))))))))))))))","v":232}]
[null,null,null,null,null,null,null,null,null,null,null,"10011101",157,null,null,null,null,null,{"$f":"GRAY(GRAY(GRAY(GRAY(GRAY(GRAY(GRAY(M235)))))))","v":233},null,null,null,null,null,null,null,{"$f":"GRAY(GRAY(GRAY(GRAY(GRAY(GRAY(GRAY(GRAY(GRAY(GRAY(GRAY(GRAY(GRAY(GRAY(GRAY(M235)))))))))))))))","v":233}]
[null,null,null,null,null,null,null,null,null,null,null,"10011111",159,null,null,null,null,null,{"$f":"GRAY(GRAY(GRAY(GRAY(GRAY(GRAY(GRAY(M236)))))))","v":234},null,null,null,null,null,null,null,{"$f":"GRAY(GRAY(GRAY(GRAY(GRAY(GRAY(GRAY(GRAY(GRAY(GRAY(GRAY(GRAY(GRAY(GRAY(GRAY(M236)))))))))))))))","v":234}]
[null,null,null,null,null,null,null,null,null,null,null,"10011110",158,null,null,null,null,null,{"$f":"GRAY(GRAY(GRAY(GRAY(GRAY(GRAY(GRAY(M237)))))))","v":235},null,null,null,null,null,null,null,{"$f":"GRAY(GRAY(GRAY(GRAY(GRAY(GRAY(GRAY(GRAY(GRAY(GRAY(GRAY(GRAY(GRAY(GRAY(GRAY(M237)))))))))))))))","v":235}]
[null,null,null,null,null,null,null,null,null,null,null,"10011010",154,null,null,null,null,null,{"$f":"GRAY(GRAY(GRAY(GRAY(GRAY(GRAY(GRAY(M238)))))))","v":236},null,null,null,null,null,null,null,{"$f":"GRAY(GRAY(GRAY(GRAY(GRAY(GRAY(GRAY(GRAY(GRAY(GRAY(GRAY(GRAY(GRAY(GRAY(GRAY(M238)))))))))))))))","v":236}]
[null,null,null,null,null,null,null,null,null,null,null,"10011011",155,null,null,null,null,null,{"$f":"GRAY(GRAY(GRAY(GRAY(GRAY(GRAY(GRAY(M239)))))))","v":237},null,null,null,null,null,null,null,{"$f":"GRAY(GRAY(GRAY(GRAY(GRAY(GRAY(GRAY(GRAY(GRAY(GRAY(GRAY(GRAY(GRAY(GRAY(GRAY(M239)))))))))))))))","v":237}]
[null,null,null,null,null,null,null,null,null,null,null,"10011001",153,null,null,null,null,null,{"$f":"GRAY(GRAY(GRAY(GRAY(GRAY(GRAY(GRAY(M240)))))))","v":238},null,null,null,null,null,null,null,{"$f":"GRAY(GRAY(GRAY(GRAY(GRAY(GRAY(GRAY(GRAY(GRAY(GRAY(GRAY(GRAY(GRAY(GRAY(GRAY(M240)))))))))))))))","v":238}]
[null,null,null,null,null,null,null,null,null,null,null,"10011000",152,null,null,null,null,null,{"$f":"GRAY(GRAY(GRAY(GRAY(GRAY(GRAY(GRAY(M241)))))))","v":239},null,null,null,null,null,null,null,{"$f":"GRAY(GRAY(GRAY(GRAY(GRAY(GRAY(GRAY(GRAY(GRAY(GRAY(GRAY(GRAY(GRAY(GRAY(GRAY(M241)))))))))))))))","v":239}]
[null,null,null,null,null,null,null,null,null,null,null,"10001000",136,null,null,null,null,null,{"$f":"GRAY(GRAY(GRAY(GRAY(GRAY(GRAY(GRAY(M242)))))))","v":240},null,null,null,null,null,null,null,{"$f":"GRAY(GRAY(GRAY(GRAY(GRAY(GRAY(GRAY(GRAY(GRAY(GRAY(GRAY(GRAY(GRAY(GRAY(GRAY(M242)))))))))))))))","v":240}]
[null,null,null,null,null,null,null,null,null,null,null,"10001001",137,null,null,null,null,null,{"$f":"GRAY(GRAY(GRAY(GRAY(GRAY(GRAY(GRAY(M243)))))))","v":241},null,null,null,null,null,null,null,{"$f":"GRAY(GRAY(GRAY(GRAY(GRAY(GRAY(GRAY(GRAY(GRAY(GRAY(GRAY(GRAY(GRAY(GRAY(GRAY(M243)))))))))))))))","v":241}]
[null,null,null,null,null,null,null,null,null,null,null,"10001011",139,null,null,null,null,null,{"$f":"GRAY(GRAY(GRAY(GRAY(GRAY(GRAY(GRAY(M244)))))))","v":242},null,null,null,null,null,null,null,{"$f":"GRAY(GRAY(GRAY(GRAY(GRAY(GRAY(GRAY(GRAY(GRAY(GRAY(GRAY(GRAY(GRAY(GRAY(GRAY(M244)))))))))))))))","v":242}]
[null,null,null,null,null,null,null,null,null,null,null,"10001010",138,null,null,null,null,null,{"$f":"GRAY(GRAY(GRAY(GRAY(GRAY(GRAY(GRAY(M245)))))))","v":243},null,null,null,null,null,null,null,{"$f":"GRAY(GRAY(GRAY(GRAY(GRAY(GRAY(GRAY(GRAY(GRAY(GRAY(GRAY(GRAY(GRAY(GRAY(GRAY(M245)))))))))))))))","v":243}]
[null,null,null,null,null,null,null,null,null,null,null,"10001110",142,null,null,null,null,null,{"$f":"GRAY(GRAY(GRAY(GRAY(GRAY(GRAY(GRAY(M246)))))))","v":244},null,null,null,null,null,null,null,{"$f":"GRAY(GRAY(GRAY(GRAY(GRAY(GRAY(GRAY(GRAY(GRAY(GRAY(GRAY(GRAY(GRAY(GRAY(GRAY(M246)))))))))))))))","v":244}]
[null,null,null,null,null,null,null,null,null,null,null,"10001111",143,null,null,null,null,null,{"$f":"GRAY(GRAY(GRAY(GRAY(GRAY(GRAY(GRAY(M247)))))))","v":245},null,null,null,null,null,null,null,{"$f":"GRAY(GRAY(GRAY(GRAY(GRAY(GRAY(GRAY(GRAY(GRAY(GRAY(GRAY(GRAY(GRAY(GRAY(GRAY(M247)))))))))))))))","v":245}]
[null,null,null,null,null,null,null,null,null,null,null,"10001101",141,null,null,null,null,null,{"$f":"GRAY(GRAY(GRAY(GRAY(GRAY(GRAY(GRAY(M248)))))))","v":246},null,null,null,null,null,null,null,{"$f":"GRAY(GRAY(GRAY(GRAY(GRAY(GRAY(GRAY(GRAY(GRAY(GRAY(GRAY(GRAY(GRAY(GRAY(GRAY(M248)))))))))))))))","v":246}]
[null,null,null,null,null,null,null,null,null,null,null,"10001100",140,null,null,null,null,null,{"$f":"GRAY(GRAY(GRAY(GRAY(GRAY(GRAY(GRAY(M249)))))))","v":247},null,null,null,null,null,null,null,{"$f":"GRAY(GRAY(GRAY(GRAY(GRAY(GRAY(GRAY(GRAY(GRAY(GRAY(GRAY(GRAY(GRAY(GRAY(GRAY(M249)))))))))))))))","v":247}]
[null,null,null,null,null,null,null,null,null,null,null,"10000100",132,null,null,null,null,null,{"$f":"GRAY(GRAY(GRAY(GRAY(GRAY(GRAY(GRAY(M250)))))))","v":248},null,null,null,null,null,null,null,{"$f":"GRAY(GRAY(GRAY(GRAY(GRAY(GRAY(GRAY(GRAY(GRAY(GRAY(GRAY(GRAY(GRAY(GRAY(GRAY(M250)))))))))))))))","v":248}]
[null,null,null,null,null,null,null,null,null,null,null,"10000101",133,null,null,null,null,null,{"$f":"GRAY(GRAY(GRAY(GRAY(GRAY(GRAY(GRAY(M251)))))))","v":249},null,null,null,null,null,null,null,{"$f":"GRAY(GRAY(GRAY(GRAY(GRAY(GRAY(GRAY(GRAY(GRAY(GRAY(GRAY(GRAY(GRAY(GRAY(GRAY(M251)))))))))))))))","v":249}]
[null,null,null,null,null,null,null,null,null,null,null,"10000111",135,null,null,null,null,null,{"$f":"GRAY(GRAY(GRAY(GRAY(GRAY(GRAY(GRAY(M252)))))))","v":250},null,null,null,null,null,null,null,{"$f":"GRAY(GRAY(GRAY(GRAY(GRAY(GRAY(GRAY(GRAY(GRAY(GRAY(GRAY(GRAY(GRAY(GRAY(GRAY(M252)))))))))))))))","v":250}]
[null,null,null,null,null,null,null,null,null,null,null,"10000110",134,null,null,null,null,null,{"$f":"GRAY(GRAY(GRAY(GRAY(GRAY(GRAY(GRAY(M253)))))))","v":251},null,null,null,null,null,null,null,{"$f":"GRAY(GRAY(GRAY(GRAY(GRAY(GRAY(GRAY(GRAY(GRAY(GRAY(GRAY(GRAY(GRAY(GRAY(GRAY(M253)))))))))))))))","v":251}]
[null,null,null,null,null,null,null,null,null,null,null,"10000010",130,null,null,null,null,null,{"$f":"GRAY(GRAY(GRAY(GRAY(GRAY(GRAY(GRAY(M254)))))))","v":252},null,null,null,null,null,null,null,{"$f":"GRAY(GRAY(GRAY(GRAY(GRAY(GRAY(GRAY(GRAY(GRAY(GRAY(GRAY(GRAY(GRAY(GRAY(GRAY(M254)))))))))))))))","v":252}]
[null,null,null,null,null,null,null,null,null,null,null,"10000011",131,null,null,null,null,null,{"$f":"GRAY(GRAY(GRAY(GRAY(GRAY(GRAY(GRAY(M255)))))))","v":253},null,null,null,null,null,null,null,{"$f":"GRAY(GRAY(GRAY(GRAY(GRAY(GRAY(GRAY(GRAY(GRAY(GRAY(GRAY(GRAY(GRAY(GRAY(GRAY(M255)))))))))))))))","v":253}]
[null,null,null,null,null,null,null,null,null,null,null,"10000001",129,null,null,null,null,null,{"$f":"GRAY(GRAY(GRAY(GRAY(GRAY(GRAY(GRAY(M256)))))))","v":254},null,null,null,null,null,null,null,{"$f":"GRAY(GRAY(GRAY(GRAY(GRAY(GRAY(GRAY(GRAY(GRAY(GRAY(GRAY(GRAY(GRAY(GRAY(GRAY(M256)))))))))))))))","v":254}]
[null,null,null,null,null,null,null,null,null,null,null,"10000000",128,null,null,null,null,null,{"$f":"GRAY(GRAY(GRAY(GRAY(GRAY(GRAY(GRAY(M257)))))))","v":255},null,null,null,null,null,null,null,{"$f":"GRAY(GRAY(GRAY(GRAY(GRAY(GRAY(GRAY(GRAY(GRAY(GRAY(GRAY(GRAY(GRAY(GRAY(GRAY(M257)))))))))))))))","v":255}]
[null,null,null,null,null,null,null,null,null,null,null,"110000000",384,null,null,null,null,null,{"$f":"GRAY(GRAY(GRAY(GRAY(GRAY(GRAY(GRAY(M258)))))))","v":257},null,null,null,null,null,null,null,{"$f":"GRAY(GRAY(GRAY(GRAY(GRAY(GRAY(GRAY(GRAY(GRAY(GRAY(GRAY(GRAY(GRAY(GRAY(GRAY(M258)))))))))))))))","v":256}]
[null,null,null,null,null,null,null,null,null,null,null,"110000001",{"$f":"BIN2DEC(L259)","v":385},null,null,null,null,null,{"$f":"GRAY(GRAY(GRAY(GRAY(GRAY(GRAY(GRAY(M259)))))))","v":256},null,null,null,null,null,null,null,{"$f":"GRAY(GRAY(GRAY(GRAY(GRAY(GRAY(GRAY(GRAY(GRAY(GRAY(GRAY(GRAY(GRAY(GRAY(GRAY(M259)))))))))))))))","v":257}]
[null,null,null,null,null,null,null,null,null,null,null,"110000011",387,null,null,null,null,null,{"$f":"GRAY(GRAY(GRAY(GRAY(GRAY(GRAY(GRAY(M260)))))))","v":259},null,null,null,null,null,null,null,{"$f":"GRAY(GRAY(GRAY(GRAY(GRAY(GRAY(GRAY(GRAY(GRAY(GRAY(GRAY(GRAY(GRAY(GRAY(GRAY(M260)))))))))))))))","v":258}]
[null,null,null,null,null,null,null,null,null,null,null,"110000010",386,null,null,null,null,null,{"$f":"GRAY(GRAY(GRAY(GRAY(GRAY(GRAY(GRAY(M261)))))))","v":258},null,null,null,null,null,null,null,{"$f":"GRAY(GRAY(GRAY(GRAY(GRAY(GRAY(GRAY(GRAY(GRAY(GRAY(GRAY(GRAY(GRAY(GRAY(GRAY(M261)))))))))))))))","v":259}]
[null,null,null,null,null,null,null,null,null,null,null,"110000110",390,null,null,null,null,null,{"$f":"GRAY(GRAY(GRAY(GRAY(GRAY(GRAY(GRAY(M262)))))))","v":261},null,null,null,null,null,null,null,{"$f":"GRAY(GRAY(GRAY(GRAY(GRAY(GRAY(GRAY(GRAY(GRAY(GRAY(GRAY(GRAY(GRAY(GRAY(GRAY(M262)))))))))))))))","v":260}]
[null,null,null,null,null,null,null,null,null,null,null,"110000111",391,null,null,null,null,null,{"$f":"GRAY(GRAY(GRAY(GRAY(GRAY(GRAY(GRAY(M263)))))))","v":260},null,null,null,null,null,null,null,{"$f":"GRAY(GRAY(GRAY(GRAY(GRAY(GRAY(GRAY(GRAY(GRAY(GRAY(GRAY(GRAY(GRAY(GRAY(GRAY(M263)))))))))))))))","v":261}]
[null,null,null,null,null,null,null,null,null,null,null,"110000101",389,null,null,null,null,null,{"$f":"GRAY(GRAY(GRAY(GRAY(GRAY(GRAY(GRAY(M264)))))))","v":263},null,null,null,null,null,null,null,{"$f":"GRAY(GRAY(GRAY(GRAY(GRAY(GRAY(GRAY(GRAY(GRAY(GRAY(GRAY(GRAY(GRAY(GRAY(GRAY(M264)))))))))))))))","v":262}]
[null,null,null,null,null,null,null,null,null,null,null,"110000100",388,null,null,null,null,null,{"$f":"GRAY(GRAY(GRAY(GRAY(GRAY(GRAY(GRAY(M265)))))))","v":262},null,null,null,null,null,null,null,{"$f":"GRAY(GRAY(GRAY(GRAY(GRAY(GRAY(GRAY(GRAY(GRAY(GRAY(GRAY(GRAY(GRAY(GRAY(GRAY(M265)))))))))))))))","v":263}]
[null,null,null,null,null,null,null,null,null,null,null,"110001100",396,null,null,null,null,null,{"$f":"GRAY(GRAY(GRAY(GRAY(GRAY(GRAY(GRAY(M266)))))))","v":265},null,null,null,null,null,null,null,{"$f":"GRAY(GRAY(GRAY(GRAY(GRAY(GRAY(GRAY(GRAY(GRAY(GRAY(GRAY(GRAY(GRAY(GRAY(GRAY(M266)))))))))))))))","v":264}]
[null,null,null,null,null,null,null,null,null,null,null,"110001101",397,null,null,null,null,null,{"$f":"GRAY(GRAY(GRAY(GRAY(GRAY(GRAY(GRAY(M267)))))))","v":264},null,null,null,null,null,null,null,{"$f":"GRAY(GRAY(GRAY(GRAY(GRAY(GRAY(GRAY(GRAY(GRAY(GRAY(GRAY(GRAY(GRAY(GRAY(GRAY(M267)))))))))))))))","v":265}]
[null,null,null,null,null,null,null,null,null,null,null,"110001111",399,null,null,null,null,null,{"$f":"GRAY(GRAY(GRAY(GRAY(GRAY(GRAY(GRAY(M268)))))))","v":267},null,null,null,null,null,null,null,{"$f":"GRAY(GRAY(GRAY(GRAY(GRAY(GRAY(GRAY(GRAY(GRAY(GRAY(GRAY(GRAY(GRAY(GRAY(GRAY(M268)))))))))))))))","v":266}]
[null,null,null,null,null,null,null,null,null,null,null,"110001110",398,null,null,null,null,null,{"$f":"GRAY(GRAY(GRAY(GRAY(GRAY(GRAY(GRAY(M269)))))))","v":266},null,null,null,null,null,null,null,{"$f":"GRAY(GRAY(GRAY(GRAY(GRAY(GRAY(GRAY(GRAY(GRAY(GRAY(GRAY(GRAY(GRAY(GRAY(GRAY(M269)))))))))))))))","v":267}]
[null,null,null,null,null,null,null,null,null,null,null,"110001010",394,null,null,null,null,null,{"$f":"GRAY(GRAY(GRAY(GRAY(GRAY(GRAY(GRAY(M270)))))))","v":269},null,null,null,null,null,null,null,{"$f":"GRAY(GRAY(GRAY(GRAY(GRAY(GRAY(GRAY(GRAY(GRAY(GRAY(GRAY(GRAY(GRAY(GRAY(GRAY(M270)))))))))))))))","v":268}]
[null,null,null,null,null,null,null,null,null,null,null,"110001011",395,null,null,null,null,null,{"$f":"GRAY(GRAY(GRAY(GRAY(GRAY(GRAY(GRAY(M271)))))))","v":268},null,null,null,null,null,null,null,{"$f":"GRAY(GRAY(GRAY(GRAY(GRAY(GRAY(GRAY(GRAY(GRAY(GRAY(GRAY(GRAY(GRAY(GRAY(GRAY(M271)))))))))))))))","v":269}]
[null,null,null,null,null,null,null,null,null,null,null,"110001001",393,null,null,null,null,null,{"$f":"GRAY(GRAY(GRAY(GRAY(GRAY(GRAY(GRAY(M272)))))))","v":271},null,null,null,null,null,null,null,{"$f":"GRAY(GRAY(GRAY(GRAY(GRAY(GRAY(GRAY(GRAY(GRAY(GRAY(GRAY(GRAY(GRAY(GRAY(GRAY(M272)))))))))))))))","v":270}]
[null,null,null,null,null,null,null,null,null,null,null,"110001000",392,null,null,null,null,null,{"$f":"GRAY(GRAY(GRAY(GRAY(GRAY(GRAY(GRAY(M273)))))))","v":270},null,null,null,null,null,null,null,{"$f":"GRAY(GRAY(GRAY(GRAY(GRAY(GRAY(GRAY(GRAY(GRAY(GRAY(GRAY(GRAY(GRAY(GRAY(GRAY(M273)))))))))))))))","v":271}]
[null,null,null,null,null,null,null,null,null,null,null,"110011000",408,null,null,null,null,null,{"$f":"GRAY(GRAY(GRAY(GRAY(GRAY(GRAY(GRAY(M274)))))))","v":273},null,null,null,null,null,null,null,{"$f":"GRAY(GRAY(GRAY(GRAY(GRAY(GRAY(GRAY(GRAY(GRAY(GRAY(GRAY(GRAY(GRAY(GRAY(GRAY(M274)))))))))))))))","v":272}]
[null,null,null,null,null,null,null,null,null,null,null,"110011001",409,null,null,null,null,null,{"$f":"GRAY(GRAY(GRAY(GRAY(GRAY(GRAY(GRAY(M275)))))))","v":272},null,null,null,null,null,null,null,{"$f":"GRAY(GRAY(GRAY(GRAY(GRAY(GRAY(GRAY(GRAY(GRAY(GRAY(GRAY(GRAY(GRAY(GRAY(GRAY(M275)))))))))))))))","v":273}]
[null,null,null,null,null,null,null,null,null,null,null,"110011011",411,null,null,null,null,null,{"$f":"GRAY(GRAY(GRAY(GRAY(GRAY(GRAY(GRAY(M276)))))))","v":275},null,null,null,null,null,null,null,{"$f":"GRAY(GRAY(GRAY(GRAY(GRAY(GRAY(GRAY(GRAY(GRAY(GRAY(GRAY(GRAY(GRAY(GRAY(GRAY(M276)))))))))))))))","v":274}]
[null,null,null,null,null,null,null,null,null,null,null,"110011010",410,null,null,null,null,null,{"$f":"GRAY(GRAY(GRAY(GRAY(GRAY(GRAY(GRAY(M277)))))))","v":274},null,null,null,null,null,null,null,{"$f":"GRAY(GRAY(GRAY(GRAY(GRAY(GRAY(GRAY(GRAY(GRAY(GRAY(GRAY(GRAY(GRAY(GRAY(GRAY(M277)))))))))))))))","v":275}]
[null,null,null,null,null,null,null,null,null,null,null,"110011110",414,null,null,null,null,null,{"$f":"GRAY(GRAY(GRAY(GRAY(GRAY(GRAY(GRAY(M278)))))))","v":277},null,null,null,null,null,null,null,{"$f":"GRAY(GRAY(GRAY(GRAY(GRAY(GRAY(GRAY(GRAY(GRAY(GRAY(GRAY(GRAY(GRAY(GRAY(GRAY(M278)))))))))))))))","v":276}]
[null,null,null,null,null,null,null,null,null,null,null,"110011111",415,null,null,null,null,null,{"$f":"GRAY(GRAY(GRAY(GRAY(GRAY(GRAY(GRAY(M279)))))))","v":276},null,null,null,null,null,null,null,{"$f":"GRAY(GRAY(GRAY(GRAY(GRAY(GRAY(GRAY(GRAY(GRAY(GRAY(GRAY(GRAY(GRAY(GRAY(GRAY(M279)))))))))))))))","v":277}]
[null,null,null,null,null,null,null,null,null,null,null,"110011101",413,null,null,null,null,null,{"$f":"GRAY(GRAY(GRAY(GRAY(GRAY(GRAY(GRAY(M280)))))))","v":279},null,null,null,null,null,null,null,{"$f":"GRAY(GRAY(GRAY(GRAY(GRAY(GRAY(GRAY(GRAY(GRAY(GRAY(GRAY(GRAY(GRAY(GRAY(GRAY(M280)))))))))))))))","v":278}]
[null,null,null,null,null,null,null,null,null,null,null,"110011100",412,null,null,null,null,null,{"$f":"GRAY(GRAY(GRAY(GRAY(GRAY(GRAY(GRAY(M281)))))))","v":278},null,null,null,null,null,null,null,{"$f":"GRAY(GRAY(GRAY(GRAY(GRAY(GRAY(GRAY(GRAY(GRAY(GRAY(GRAY(GRAY(GRAY(GRAY(GRAY(M281)))))))))))))))","v":279}]
[null,null,null,null,null,null,null,null,null,null,null,"110010100",404,null,null,null,null,null,{"$f":"GRAY(GRAY(GRAY(GRAY(GRAY(GRAY(GRAY(M282)))))))","v":281},null,null,null,null,null,null,null,{"$f":"GRAY(GRAY(GRAY(GRAY(GRAY(GRAY(GRAY(GRAY(GRAY(GRAY(GRAY(GRAY(GRAY(GRAY(GRAY(M282)))))))))))))))","v":280}]
[null,null,null,null,null,null,null,null,null,null,null,"110010101",405,null,null,null,null,null,{"$f":"GRAY(GRAY(GRAY(GRAY(GRAY(GRAY(GRAY(M283)))))))","v":280},null,null,null,null,null,null,null,{"$f":"GRAY(GRAY(GRAY(GRAY(GRAY(GRAY(GRAY(GRAY(GRAY(GRAY(GRAY(GRAY(GRAY(GRAY(GRAY(M283)))))))))))))))","v":281}]
[null,null,null,null,null,null,null,null,null,null,null,"110010111",407,null,null,null,null,null,{"$f":"GRAY(GRAY(GRAY(GRAY(GRAY(GRAY(GRAY(M284)))))))","v":283},null,null,null,null,null,null,null,{"$f":"GRAY(GRAY(GRAY(GRAY(GRAY(GRAY(GRAY(GRAY(GRAY(GRAY(GRAY(GRAY(GRAY(GRAY(GRAY(M284)))))))))))))))","v":282}]
[null,null,null,null,null,null,null,null,null,null,null,"110010110",406,null,null,null,null,null,{"$f":"GRAY(GRAY(GRAY(GRAY(GRAY(GRAY(GRAY(M285)))))))","v":282},null,null,null,null,null,null,null,{"$f":"GRAY(GRAY(GRAY(GRAY(GRAY(GRAY(GRAY(GRAY(GRAY(GRAY(GRAY(GRAY(GRAY(GRAY(GRAY(M285)))))))))))))))","v":283}]
[null,null,null,null,null,null,null,null,null,null,null,"110010010",402,null,null,null,null,null,{"$f":"GRAY(GRAY(GRAY(GRAY(GRAY(GRAY(GRAY(M286)))))))","v":285},null,null,null,null,null,null,null,{"$f":"GRAY(GRAY(GRAY(GRAY(GRAY(GRAY(GRAY(GRAY(GRAY(GRAY(GRAY(GRAY(GRAY(GRAY(GRAY(M286)))))))))))))))","v":284}]
[null,null,null,null,null,null,null,null,null,null,null,"110010011",403,null,null,null,null,null,{"$f":"GRAY(GRAY(GRAY(GRAY(GRAY(GRAY(GRAY(M287)))))))","v":284},null,null,null,null,null,null,null,{"$f":"GRAY(GRAY(GRAY(GRAY(GRAY(GRAY(GRAY(GRAY(GRAY(GRAY(GRAY(GRAY(GRAY(GRAY(GRAY(M287)))))))))))))))","v":285}]
[null,null,null,null,null,null,null,null,null,null,null,"110010001",401,null,null,null,null,null,{"$f":"GRAY(GRAY(GRAY(GRAY(GRAY(GRAY(GRAY(M288)))))))","v":287},null,null,null,null,null,null,null,{"$f":"GRAY(GRAY(GRAY(GRAY(GRAY(GRAY(GRAY(GRAY(GRAY(GRAY(GRAY(GRAY(GRAY(GRAY(GRAY(M288)))))))))))))))","v":286}]
[null,null,null,null,null,null,null,null,null,null,null,"110010000",400,null,null,null,null,null,{"$f":"GRAY(GRAY(GRAY(GRAY(GRAY(GRAY(GRAY(M289)))))))","v":286},null,null,null,null,null,null,null,{"$f":"GRAY(GRAY(GRAY(GRAY(GRAY(GRAY(GRAY(GRAY(GRAY(GRAY(GRAY(GRAY(GRAY(GRAY(GRAY(M289)))))))))))))))","v":287}]
[null,null,null,null,null,null,null,null,null,null,null,"110110000",432,null,null,null,null,null,{"$f":"GRAY(GRAY(GRAY(GRAY(GRAY(GRAY(GRAY(M290)))))))","v":289},null,null,null,null,null,null,null,{"$f":"GRAY(GRAY(GRAY(GRAY(GRAY(GRAY(GRAY(GRAY(GRAY(GRAY(GRAY(GRAY(GRAY(GRAY(GRAY(M290)))))))))))))))","v":288}]
[null,null,null,null,null,null,null,null,null,null,null,"110110001",433,null,null,null,null,null,{"$f":"GRAY(GRAY(GRAY(GRAY(GRAY(GRAY(GRAY(M291)))))))","v":288},null,null,null,null,null,null,null,{"$f":"GRAY(GRAY(GRAY(GRAY(GRAY(GRAY(GRAY(GRAY(GRAY(GRAY(GRAY(GRAY(GRAY(GRAY(GRAY(M291)))))))))))))))","v":289}]
[null,null,null,null,null,null,null,null,null,null,null,"110110011",435,null,null,null,null,null,{"$f":"GRAY(GRAY(GRAY(GRAY(GRAY(GRAY(GRAY(M292)))))))","v":291},null,null,null,null,null,null,null,{"$f":"GRAY(GRAY(GRAY(GRAY(GRAY(GRAY(GRAY(GRAY(GRAY(GRAY(GRAY(GRAY(GRAY(GRAY(GRAY(M292)))))))))))))))","v":290}]
[null,null,null,null,null,null,null,null,null,null,null,"110110010",434,null,null,null,null,null,{"$f":"GRAY(GRAY(GRAY(GRAY(GRAY(GRAY(GRAY(M293)))))))","v":290},null,null,null,null,null,null,null,{"$f":"GRAY(GRAY(GRAY(GRAY(GRAY(GRAY(GRAY(GRAY(GRAY(GRAY(GRAY(GRAY(GRAY(GRAY(GRAY(M293)))))))))))))))","v":291}]
[null,null,null,null,null,null,null,null,null,null,null,"110110110",438,null,null,null,null,null,{"$f":"GRAY(GRAY(GRAY(GRAY(GRAY(GRAY(GRAY(M294)))))))","v":293},null,null,null,null,null,null,null,{"$f":"GRAY(GRAY(GRAY(GRAY(GRAY(GRAY(GRAY(GRAY(GRAY(GRAY(GRAY(GRAY(GRAY(GRAY(GRAY(M294)))))))))))))))","v":292}]
[null,null,null,null,null,null,null,null,null,null,null,"110110111",439,null,null,null,null,null,{"$f":"GRAY(GRAY(GRAY(GRAY(GRAY(GRAY(GRAY(M295)))))))","v":292},null,null,null,null,null,null,null,{"$f":"GRAY(GRAY(GRAY(GRAY(GRAY(GRAY(GRAY(GRAY(GRAY(GRAY(GRAY(GRAY(GRAY(GRAY(GRAY(M295)))))))))))))))","v":293}]
[null,null,null,null,null,null,null,null,null,null,null,"110110101",437,null,null,null,null,null,{"$f":"GRAY(GRAY(GRAY(GRAY(GRAY(GRAY(GRAY(M296)))))))","v":295},null,null,null,null,null,null,null,{"$f":"GRAY(GRAY(GRAY(GRAY(GRAY(GRAY(GRAY(GRAY(GRAY(GRAY(GRAY(GRAY(GRAY(GRAY(GRAY(M296)))))))))))))))","v":294}]
[null,null,null,null,null,null,null,null,null,null,null,"110110100",436,null,null,null,null,null,{"$f":"GRAY(GRAY(GRAY(GRAY(GRAY(GRAY(GRAY(M297)))))))","v":294},null,null,null,null,null,null,null,{"$f":"GRAY(GRAY(GRAY(GRAY(GRAY(GRAY(GRAY(GRAY(GRAY(GRAY(GRAY(GRAY(GRAY(GRAY(GRAY(M297)))))))))))))))","v":295}]
[null,null,null,null,null,null,null,null,null,null,null,"110111100",444,null,null,null,null,null,{"$f":"GRAY(GRAY(GRAY(GRAY(GRAY(GRAY(GRAY(M298)))))))","v":297},null,null,null,null,null,null,null,{"$f":"GRAY(GRAY(GRAY(GRAY(GRAY(GRAY(GRAY(GRAY(GRAY(GRAY(GRAY(GRAY(GRAY(GRAY(GRAY(M298)))))))))))))))","v":296}]
[null,null,null,null,null,null,null,null,null,null,null,"110111101",445,null,null,null,null,null,{"$f":"GRAY(GRAY(GRAY(GRAY(GRAY(GRAY(GRAY(M299)))))))","v":296},null,null,null,null,null,null,null,{"$f":"GRAY(GRAY(GRAY(GRAY(GRAY(GRAY(GRAY(GRAY(GRAY(GRAY(GRAY(GRAY(GRAY(GRAY(GRAY(M299)))))))))))))))","v":297}]
[null,null,null,null,null,null,null,null,null,null,null,"110111111",447,null,null,null,null,null,{"$f":"GRAY(GRAY(GRAY(GRAY(GRAY(GRAY(GRAY(M300)))))))","v":299},null,null,null,null,null,null,null,{"$f":"GRAY(GRAY(GRAY(GRAY(GRAY(GRAY(GRAY(GRAY(GRAY(GRAY(GRAY(GRAY(GRAY(GRAY(GRAY(M300)))))))))))))))","v":298}]
[null,null,null,null,null,null,null,null,null,null,null,"110111110",446,null,null,null,null,null,{"$f":"GRAY(GRAY(GRAY(GRAY(GRAY(GRAY(GRAY(M301)))))))","v":298},null,null,null,null,null,null,null,{"$f":"GRAY(GRAY(GRAY(GRAY(GRAY(GRAY(GRAY(GRAY(GRAY(GRAY(GRAY(GRAY(GRAY(GRAY(GRAY(M301)))))))))))))))","v":299}]
[null,null,null,null,null,null,null,null,null,null,null,"110111010",442,null,null,null,null,null,{"$f":"GRAY(GRAY(GRAY(GRAY(GRAY(GRAY(GRAY(M302)))))))","v":301},null,null,null,null,null,null,null,{"$f":"GRAY(GRAY(GRAY(GRAY(GRAY(GRAY(GRAY(GRAY(GRAY(GRAY(GRAY(GRAY(GRAY(GRAY(GRAY(M302)))))))))))))))","v":300}]
[null,null,null,null,null,null,null,null,null,null,null,"110111011",443,null,null,null,null,null,{"$f":"GRAY(GRAY(GRAY(GRAY(GRAY(GRAY(GRAY(M303)))))))","v":300},null,null,null,null,null,null,null,{"$f":"GRAY(GRAY(GRAY(GRAY(GRAY(GRAY(GRAY(GRAY(GRAY(GRAY(GRAY(GRAY(GRAY(GRAY(GRAY(M303)))))))))))))))","v":301}]
[null,null,null,null,null,null,null,null,null,null,null,"110111001",441,null,null,null,null,null,{"$f":"GRAY(GRAY(GRAY(GRAY(GRAY(GRAY(GRAY(M304)))))))","v":303},null,null,null,null,null,null,null,{"$f":"GRAY(GRAY(GRAY(GRAY(GRAY(GRAY(GRAY(GRAY(GRAY(GRAY(GRAY(GRAY(GRAY(GRAY(GRAY(M304)))))))))))))))","v":302}]
[null,null,null,null,null,null,null,null,null,null,null,"110111000",440,null,null,null,null,null,{"$f":"GRAY(GRAY(GRAY(GRAY(GRAY(GRAY(GRAY(M305)))))))","v":302},null,null,null,null,null,null,null,{"$f":"GRAY(GRAY(GRAY(GRAY(GRAY(GRAY(GRAY(GRAY(GRAY(GRAY(GRAY(GRAY(GRAY(GRAY(GRAY(M305)))))))))))))))","v":303}]
[null,null,null,null,null,null,null,null,null,null,null,"110101000",424,null,null,null,null,null,{"$f":"GRAY(GRAY(GRAY(GRAY(GRAY(GRAY(GRAY(M306)))))))","v":305},null,null,null,null,null,null,null,{"$f":"GRAY(GRAY(GRAY(GRAY(GRAY(GRAY(GRAY(GRAY(GRAY(GRAY(GRAY(GRAY(GRAY(GRAY(GRAY(M306)))))))))))))))","v":304}]
[null,null,null,null,null,null,null,null,null,null,null,"110101001",425,null,null,null,null,null,{"$f":"GRAY(GRAY(GRAY(GRAY(GRAY(GRAY(GRAY(M307)))))))","v":304},null,null,null,null,null,null,null,{"$f":"GRAY(GRAY(GRAY(GRAY(GRAY(GRAY(GRAY(GRAY(GRAY(GRAY(GRAY(GRAY(GRAY(GRAY(GRAY(M307)))))))))))))))","v":305}]
[null,null,null,null,null,null,null,null,null,null,null,"110101011",427,null,null,null,null,null,{"$f":"GRAY(GRAY(GRAY(GRAY(GRAY(GRAY(GRAY(M308)))))))","v":307},null,null,null,null,null,null,null,{"$f":"GRAY(GRAY(GRAY(GRAY(GRAY(GRAY(GRAY(GRAY(GRAY(GRAY(GRAY(GRAY(GRAY(GRAY(GRAY(M308)))))))))))))))","v":306}]
[null,null,null,null,null,null,null,null,null,null,null,"110101010",426,null,null,null,null,null,{"$f":"GRAY(GRAY(GRAY(GRAY(GRAY(GRAY(GRAY(M309)))))))","v":306},null,null,null,null,null,null,null,{"$f":"GRAY(GRAY(GRAY(GRAY(GRAY(GRAY(GRAY(GRAY(GRAY(GRAY(GRAY(GRAY(GRAY(GRAY(GRAY(M309)))))))))))))))","v":307}]
[null,null,null,null,null,null,null,null,null,null,null,"110101110",430,null,null,null,null,null,{"$f":"GRAY(GRAY(GRAY(GRAY(GRAY(GRAY(GRAY(M310)))))))","v":309},null,null,null,null,null,null,null,{"$f":"GRAY(GRAY(GRAY(GRAY(GRAY(GRAY(GRAY(GRAY(GRAY(GRAY(GRAY(GRAY(GRAY(GRAY(GRAY(M310)))))))))))))))","v":308}]
[null,null,null,null,null,null,null,null,null,null,null,"110101111",431,null,null,null,null,null,{"$f":"GRAY(GRAY(GRAY(GRAY(GRAY(GRAY(GRAY(M311)))))))","v":308},null,null,null,null,null,null,null,{"$f":"GRAY(GRAY(GRAY(GRAY(GRAY(GRAY(GRAY(GRAY(GRAY(GRAY(GRAY(GRAY(GRAY(GRAY(GRAY(M311)))))))))))))))","v":309}]
[null,null,null,null,null,null,null,null,null,null,null,"110101101",429,null,null,null,null,null,{"$f":"GRAY(GRAY(GRAY(GRAY(GRAY(GRAY(GRAY(M312)))))))","v":311},null,null,null,null,null,null,null,{"$f":"GRAY(GRAY(GRAY(GRAY(GRAY(GRAY(GRAY(GRAY(GRAY(GRAY(GRAY(GRAY(GRAY(GRAY(GRAY(M312)))))))))))))))","v":310}]
[null,null,null,null,null,null,null,null,null,null,null,"110101100",428,null,null,null,null,null,{"$f":"GRAY(GRAY(GRAY(GRAY(GRAY(GRAY(GRAY(M313)))))))","v":310},null,null,null,null,null,null,null,{"$f":"GRAY(GRAY(GRAY(GRAY(GRAY(GRAY(GRAY(GRAY(GRAY(GRAY(GRAY(GRAY(GRAY(GRAY(GRAY(M313)))))))))))))))","v":311}]
[null,null,null,null,null,null,null,null,null,null,null,"110100100",420,null,null,null,null,null,{"$f":"GRAY(GRAY(GRAY(GRAY(GRAY(GRAY(GRAY(M314)))))))","v":313},null,null,null,null,null,null,null,{"$f":"GRAY(GRAY(GRAY(GRAY(GRAY(GRAY(GRAY(GRAY(GRAY(GRAY(GRAY(GRAY(GRAY(GRAY(GRAY(M314)))))))))))))))","v":312}]
[null,null,null,null,null,null,null,null,null,null,null,"110100101",421,null,null,null,null,null,{"$f":"GRAY(GRAY(GRAY(GRAY(GRAY(GRAY(GRAY(M315)))))))","v":312},null,null,null,null,null,null,null,{"$f":"GRAY(GRAY(GRAY(GRAY(GRAY(GRAY(GRAY(GRAY(GRAY(GRAY(GRAY(GRAY(GRAY(GRAY(GRAY(M315)))))))))))))))","v":313}]
[null,null,null,null,null,null,null,null,null,null,null,"110100111",423,null,null,null,null,null,{"$f":"GRAY(GRAY(GRAY(GRAY(GRAY(GRAY(GRAY(M316)))))))","v":315},null,null,null,null,null,null,null,{"$f":"GRAY(GRAY(GRAY(GRAY(GRAY(GRAY(GRAY(GRAY(GRAY(GRAY(GRAY(GRAY(GRAY(GRAY(GRAY(M316)))))))))))))))","v":314}]
[null,null,null,null,null,null,null,null,null,null,null,"110100110",422,null,null,null,null,null,{"$f":"GRAY(GRAY(GRAY(GRAY(GRAY(GRAY(GRAY(M317)))))))","v":314},null,null,null,null,null,null,null,{"$f":"GRAY(GRAY(GRAY(GRAY(GRAY(GRAY(GRAY(GRAY(GRAY(GRAY(GRAY(GRAY(GRAY(GRAY(GRAY(M317)))))))))))))))","v":315}]
[null,null,null,null,null,null,null,null,null,null,null,"110100010",418,null,null,null,null,null,{"$f":"GRAY(GRAY(GRAY(GRAY(GRAY(GRAY(GRAY(M318)))))))","v":317},null,null,null,null,null,null,null,{"$f":"GRAY(GRAY(GRAY(GRAY(GRAY(GRAY(GRAY(GRAY(GRAY(GRAY(GRAY(GRAY(GRAY(GRAY(GRAY(M318)))))))))))))))","v":316}]
[null,null,null,null,null,null,null,null,null,null,null,"110100011",419,null,null,null,null,null,{"$f":"GRAY(GRAY(GRAY(GRAY(GRAY(GRAY(GRAY(M319)))))))","v":316},null,null,null,null,null,null,null,{"$f":"GRAY(GRAY(GRAY(GRAY(GRAY(GRAY(GRAY(GRAY(GRAY(GRAY(GRAY(GRAY(GRAY(GRAY(GRAY(M319)))))))))))))))","v":317}]
[null,null,null,null,null,null,null,null,null,null,null,"110100001",417,null,null,null,null,null,{"$f":"GRAY(GRAY(GRAY(GRAY(GRAY(GRAY(GRAY(M320)))))))","v":319},null,null,null,null,null,null,null,{"$f":"GRAY(GRAY(GRAY(GRAY(GRAY(GRAY(GRAY(GRAY(GRAY(GRAY(GRAY(GRAY(GRAY(GRAY(GRAY(M320)))))))))))))))","v":318}]
[null,null,null,null,null,null,null,null,null,null,null,"110100000",416,null,null,null,null,null,{"$f":"GRAY(GRAY(GRAY(GRAY(GRAY(GRAY(GRAY(M321)))))))","v":318},null,null,null,null,null,null,null,{"$f":"GRAY(GRAY(GRAY(GRAY(GRAY(GRAY(GRAY(GRAY(GRAY(GRAY(GRAY(GRAY(GRAY(GRAY(GRAY(M321)))))))))))))))","v":319}]
[null,null,null,null,null,null,null,null,null,null,null,"111100000",480,null,null,null,null,null,{"$f":"GRAY(GRAY(GRAY(GRAY(GRAY(GRAY(GRAY(M322)))))))","v":321},null,null,null,null,null,null,null,{"$f":"GRAY(GRAY(GRAY(GRAY(GRAY(GRAY(GRAY(GRAY(GRAY(GRAY(GRAY(GRAY(GRAY(GRAY(GRAY(M322)))))))))))))))","v":320}]
[null,null,null,null,null,null,null,null,null,null,null,"111100001",{"$f":"BIN2DEC(L323)","v":481},null,null,null,null,null,{"$f":"GRAY(GRAY(GRAY(GRAY(GRAY(GRAY(GRAY(M323)))))))","v":320},null,null,null,null,null,null,null,{"$f":"GRAY(GRAY(GRAY(GRAY(GRAY(GRAY(GRAY(GRAY(GRAY(GRAY(GRAY(GRAY(GRAY(GRAY(GRAY(M323)))))))))))))))","v":321}]
[null,null,null,null,null,null,null,null,null,null,null,"111100011",483,null,null,null,null,null,{"$f":"GRAY(GRAY(GRAY(GRAY(GRAY(GRAY(GRAY(M324)))))))","v":323},null,null,null,null,null,null,null,{"$f":"GRAY(GRAY(GRAY(GRAY(GRAY(GRAY(GRAY(GRAY(GRAY(GRAY(GRAY(GRAY(GRAY(GRAY(GRAY(M324)))))))))))))))","v":322}]
[null,null,null,null,null,null,null,null,null,null,null,"111100010",482,null,null,null,null,null,{"$f":"GRAY(GRAY(GRAY(GRAY(GRAY(GRAY(GRAY(M325)))))))","v":322},null,null,null,null,null,null,null,{"$f":"GRAY(GRAY(GRAY(GRAY(GRAY(GRAY(GRAY(GRAY(GRAY(GRAY(GRAY(GRAY(GRAY(GRAY(GRAY(M325)))))))))))))))","v":323}]
[null,null,null,null,null,null,null,null,null,null,null,"111100110",486,null,null,null,null,null,{"$f":"GRAY(GRAY(GRAY(GRAY(GRAY(GRAY(GRAY(M326)))))))","v":325},null,null,null,null,null,null,null,{"$f":"GRAY(GRAY(GRAY(GRAY(GRAY(GRAY(GRAY(GRAY(GRAY(GRAY(GRAY(GRAY(GRAY(GRAY(GRAY(M326)))))))))))))))","v":324}]
[null,null,null,null,null,null,null,null,null,null,null,"111100111",487,null,null,null,null,null,{"$f":"GRAY(GRAY(GRAY(GRAY(GRAY(GRAY(GRAY(M327)))))))","v":324},null,null,null,null,null,null,null,{"$f":"GRAY(GRAY(GRAY(GRAY(GRAY(GRAY(GRAY(GRAY(GRAY(GRAY(GRAY(GRAY(GRAY(GRAY(GRAY(M327)))))))))))))))","v":325}]
[null,null,null,null,null,null,null,null,null,null,null,"111100101",485,null,null,null,null,null,{"$f":"GRAY(GRAY(GRAY(GRAY(GRAY(GRAY(GRAY(M328)))))))","v":327},null,null,null,null,null,null,null,{"$f":"GRAY(GRAY(GRAY(GRAY(GRAY(GRAY(GRAY(GRAY(GRAY(GRAY(GRAY(GRAY(GRAY(GRAY(GRAY(M328)))))))))))))))","v":326}]
[null,null,null,null,null,null,null,null,null,null,null,"111100100",484,null,null,null,null,null,{"$f":"GRAY(GRAY(GRAY(GRAY(GRAY(GRAY(GRAY(M329)))))))","v":326},null,null,null,null,null,null,null,{"$f":"GRAY(GRAY(GRAY(GRAY(GRAY(GRAY(GRAY(GRAY(GRAY(GRAY(GRAY(GRAY(GRAY(GRAY(GRAY(M329)))))))))))))))","v":327}]
[null,null,null,null,null,null,null,null,null,null,null,"111101100",492,null,null,null,null,null,{"$f":"GRAY(GRAY(GRAY(GRAY(GRAY(GRAY(GRAY(M330)))))))","v":329},null,null,null,null,null,null,null,{"$f":"GRAY(GRAY(GRAY(GRAY(GRAY(GRAY(GRAY(GRAY(GRAY(GRAY(GRAY(GRAY(GRAY(GRAY(GRAY(M330)))))))))))))))","v":328}]
[null,null,null,null,null,null,null,null,null,null,null,"111101101",493,null,null,null,null,null,{"$f":"GRAY(GRAY(GRAY(GRAY(GRAY(GRAY(GRAY(M331)))))))","v":328},null,null,null,null,null,null,null,{"$f":"GRAY(GRAY(GRAY(GRAY(GRAY(GRAY(GRAY(GRAY(GRAY(GRAY(GRAY(GRAY(GRAY(GRAY(GRAY(M331)))))))))))))))","v":329}]
[null,null,null,null,null,null,null,null,null,null,null,"111101111",495,null,null,null,null,null,{"$f":"GRAY(GRAY(GRAY(GRAY(GRAY(GRAY(GRAY(M332)))))))","v":331},null,null,null,null,null,null,null,{"$f":"GRAY(GRAY(GRAY(GRAY(GRAY(GRAY(GRAY(GRAY(GRAY(GRAY(GRAY(GRAY(GRAY(GRAY(GRAY(M332)))))))))))))))","v":330}]
[null,null,null,null,null,null,null,null,null,null,null,"111101110",494,null,null,null,null,null,{"$f":"GRAY(GRAY(GRAY(GRAY(GRAY(GRAY(GRAY(M333)))))))","v":330},null,null,null,null,null,null,null,{"$f":"GRAY(GRAY(GRAY(GRAY(GRAY(GRAY(GRAY(GRAY(GRAY(GRAY(GRAY(GRAY(GRAY(GRAY(GRAY(M333)))))))))))))))","v":331}]
[null,null,null,null,null,null,null,null,null,null,null,"111101010",490,null,null,null,null,null,{"$f":"GRAY(GRAY(GRAY(GRAY(GRAY(GRAY(GRAY(M334)))))))","v":333},null,null,null,null,null,null,null,{"$f":"GRAY(GRAY(GRAY(GRAY(GRAY(GRAY(GRAY(GRAY(GRAY(GRAY(GRAY(GRAY(GRAY(GRAY(GRAY(M334)))))))))))))))","v":332}]
[null,null,null,null,null,null,null,null,null,null,null,"111101011",491,null,null,null,null,null,{"$f":"GRAY(GRAY(GRAY(GRAY(GRAY(GRAY(GRAY(M335)))))))","v":332},null,null,null,null,null,null,null,{"$f":"GRAY(GRAY(GRAY(GRAY(GRAY(GRAY(GRAY(GRAY(GRAY(GRAY(GRAY(GRAY(GRAY(GRAY(GRAY(M335)))))))))))))))","v":333}]
[null,null,null,null,null,null,null,null,null,null,null,"111101001",489,null,null,null,null,null,{"$f":"GRAY(GRAY(GRAY(GRAY(GRAY(GRAY(GRAY(M336)))))))","v":335},null,null,null,null,null,null,null,{"$f":"GRAY(GRAY(GRAY(GRAY(GRAY(GRAY(GRAY(GRAY(GRAY(GRAY(GRAY(GRAY(GRAY(GRAY(GRAY(M336)))))))))))))))","v":334}]
[null,null,null,null,null,null,null,null,null,null,null,"111101000",488,null,null,null,null,null,{"$f":"GRAY(GRAY(GRAY(GRAY(GRAY(GRAY(GRAY(M337)))))))","v":334},null,null,null,null,null,null,null,{"$f":"GRAY(GRAY(GRAY(GRAY(GRAY(GRAY(GRAY(GRAY(GRAY(GRAY(GRAY(GRAY(GRAY(GRAY(GRAY(M337)))))))))))))))","v":335}]
[null,null,null,null,null,null,null,null,null,null,null,"111111000",504,null,null,null,null,null,{"$f":"GRAY(GRAY(GRAY(GRAY(GRAY(GRAY(GRAY(M338)))))))","v":337},null,null,null,null,null,null,null,{"$f":"GRAY(GRAY(GRAY(GRAY(GRAY(GRAY(GRAY(GRAY(GRAY(GRAY(GRAY(GRAY(GRAY(GRAY(GRAY(M338)))))))))))))))","v":336}]
[null,null,null,null,null,null,null,null,null,null,null,"111111001",505,null,null,null,null,null,{"$f":"GRAY(GRAY(GRAY(GRAY(GRAY(GRAY(GRAY(M339)))))))","v":336},null,null,null,null,null,null,null,{"$f":"GRAY(GRAY(GRAY(GRAY(GRAY(GRAY(GRAY(GRAY(GRAY(GRAY(GRAY(GRAY(GRAY(GRAY(GRAY(M339)))))))))))))))","v":337}]
[null,null,null,null,null,null,null,null,null,null,null,"111111011",507,null,null,null,null,null,{"$f":"GRAY(GRAY(GRAY(GRAY(GRAY(GRAY(GRAY(M340)))))))","v":339},null,null,null,null,null,null,null,{"$f":"GRAY(GRAY(GRAY(GRAY(GRAY(GRAY(GRAY(GRAY(GRAY(GRAY(GRAY(GRAY(GRAY(GRAY(GRAY(M340)))))))))))))))","v":338}]
[null,null,null,null,null,null,null,null,null,null,null,"111111010",506,null,null,null,null,null,{"$f":"GRAY(GRAY(GRAY(GRAY(GRAY(GRAY(GRAY(M341)))))))","v":338},null,null,null,null,null,null,null,{"$f":"GRAY(GRAY(GRAY(GRAY(GRAY(GRAY(GRAY(GRAY(GRAY(GRAY(GRAY(GRAY(GRAY(GRAY(GRAY(M341)))))))))))))))","v":339}]
[null,null,null,null,null,null,null,null,null,null,null,"111111110",510,null,null,null,null,null,{"$f":"GRAY(GRAY(GRAY(GRAY(GRAY(GRAY(GRAY(M342)))))))","v":341},null,null,null,null,null,null,null,{"$f":"GRAY(GRAY(GRAY(GRAY(GRAY(GRAY(GRAY(GRAY(GRAY(GRAY(GRAY(GRAY(GRAY(GRAY(GRAY(M342)))))))))))))))","v":340}]
[null,null,null,null,null,null,null,null,null,null,null,"111111111",511,null,null,null,null,null,{"$f":"GRAY(GRAY(GRAY(GRAY(GRAY(GRAY(GRAY(M343)))))))","v":340},null,null,null,null,null,null,null,{"$f":"GRAY(GRAY(GRAY(GRAY(GRAY(GRAY(GRAY(GRAY(GRAY(GRAY(GRAY(GRAY(GRAY(GRAY(GRAY(M343)))))))))))))))","v":341}]
[null,null,null,null,null,null,null,null,null,null,null,"111111101",509,null,null,null,null,null,{"$f":"GRAY(GRAY(GRAY(GRAY(GRAY(GRAY(GRAY(M344)))))))","v":343},null,null,null,null,null,null,null,{"$f":"GRAY(GRAY(GRAY(GRAY(GRAY(GRAY(GRAY(GRAY(GRAY(GRAY(GRAY(GRAY(GRAY(GRAY(GRAY(M344)))))))))))))))","v":342}]
[null,null,null,null,null,null,null,null,null,null,null,"111111100",508,null,null,null,null,null,{"$f":"GRAY(GRAY(GRAY(GRAY(GRAY(GRAY(GRAY(M345)))))))","v":342},null,null,null,null,null,null,null,{"$f":"GRAY(GRAY(GRAY(GRAY(GRAY(GRAY(GRAY(GRAY(GRAY(GRAY(GRAY(GRAY(GRAY(GRAY(GRAY(M345)))))))))))))))","v":343}]
[null,null,null,null,null,null,null,null,null,null,null,"111110100",500,null,null,null,null,null,{"$f":"GRAY(GRAY(GRAY(GRAY(GRAY(GRAY(GRAY(M346)))))))","v":345},null,null,null,null,null,null,null,{"$f":"GRAY(GRAY(GRAY(GRAY(GRAY(GRAY(GRAY(GRAY(GRAY(GRAY(GRAY(GRAY(GRAY(GRAY(GRAY(M346)))))))))))))))","v":344}]
[null,null,null,null,null,null,null,null,null,null,null,"111110101",501,null,null,null,null,null,{"$f":"GRAY(GRAY(GRAY(GRAY(GRAY(GRAY(GRAY(M347)))))))","v":344},null,null,null,null,null,null,null,{"$f":"GRAY(GRAY(GRAY(GRAY(GRAY(GRAY(GRAY(GRAY(GRAY(GRAY(GRAY(GRAY(GRAY(GRAY(GRAY(M347)))))))))))))))","v":345}]
[null,null,null,null,null,null,null,null,null,null,null,"111110111",503,null,null,null,null,null,{"$f":"GRAY(GRAY(GRAY(GRAY(GRAY(GRAY(GRAY(M348)))))))","v":347},null,null,null,null,null,null,null,{"$f":"GRAY(GRAY(GRAY(GRAY(GRAY(GRAY(GRAY(GRAY(GRAY(GRAY(GRAY(GRAY(GRAY(GRAY(GRAY(M348)))))))))))))))","v":346}]
[null,null,null,null,null,null,null,null,null,null,null,"111110110",502,null,null,null,null,null,{"$f":"GRAY(GRAY(GRAY(GRAY(GRAY(GRAY(GRAY(M349)))))))","v":346},null,null,null,null,null,null,null,{"$f":"GRAY(GRAY(GRAY(GRAY(GRAY(GRAY(GRAY(GRAY(GRAY(GRAY(GRAY(GRAY(GRAY(GRAY(GRAY(M349)))))))))))))))","v":347}]
[null,null,null,null,null,null,null,null,null,null,null,"111110010",498,null,null,null,null,null,{"$f":"GRAY(GRAY(GRAY(GRAY(GRAY(GRAY(GRAY(M350)))))))","v":349},null,null,null,null,null,null,null,{"$f":"GRAY(GRAY(GRAY(GRAY(GRAY(GRAY(GRAY(GRAY(GRAY(GRAY(GRAY(GRAY(GRAY(GRAY(GRAY(M350)))))))))))))))","v":348}]
[null,null,null,null,null,null,null,null,null,null,null,"111110011",499,null,null,null,null,null,{"$f":"GRAY(GRAY(GRAY(GRAY(GRAY(GRAY(GRAY(M351)))))))","v":348},null,null,null,null,null,null,null,{"$f":"GRAY(GRAY(GRAY(GRAY(GRAY(GRAY(GRAY(GRAY(GRAY(GRAY(GRAY(GRAY(GRAY(GRAY(GRAY(M351)))))))))))))))","v":349}]
[null,null,null,null,null,null,null,null,null,null,null,"111110001",497,null,null,null,null,null,{"$f":"GRAY(GRAY(GRAY(GRAY(GRAY(GRAY(GRAY(M352)))))))","v":351},null,null,null,null,null,null,null,{"$f":"GRAY(GRAY(GRAY(GRAY(GRAY(GRAY(GRAY(GRAY(GRAY(GRAY(GRAY(GRAY(GRAY(GRAY(GRAY(M352)))))))))))))))","v":350}]
[null,null,null,null,null,null,null,null,null,null,null,"111110000",496,null,null,null,null,null,{"$f":"GRAY(GRAY(GRAY(GRAY(GRAY(GRAY(GRAY(M353)))))))","v":350},null,null,null,null,null,null,null,{"$f":"GRAY(GRAY(GRAY(GRAY(GRAY(GRAY(GRAY(GRAY(GRAY(GRAY(GRAY(GRAY(GRAY(GRAY(GRAY(M353)))))))))))))))","v":351}]
[null,null,null,null,null,null,null,null,null,null,null,"111010000",464,null,null,null,null,null,{"$f":"GRAY(GRAY(GRAY(GRAY(GRAY(GRAY(GRAY(M354)))))))","v":353},null,null,null,null,null,null,null,{"$f":"GRAY(GRAY(GRAY(GRAY(GRAY(GRAY(GRAY(GRAY(GRAY(GRAY(GRAY(GRAY(GRAY(GRAY(GRAY(M354)))))))))))))))","v":352}]
[null,null,null,null,null,null,null,null,null,null,null,"111010001",465,null,null,null,null,null,{"$f":"GRAY(GRAY(GRAY(GRAY(GRAY(GRAY(GRAY(M355)))))))","v":352},null,null,null,null,null,null,null,{"$f":"GRAY(GRAY(GRAY(GRAY(GRAY(GRAY(GRAY(GRAY(GRAY(GRAY(GRAY(GRAY(GRAY(GRAY(GRAY(M355)))))))))))))))","v":353}]
[null,null,null,null,null,null,null,null,null,null,null,"111010011",467,null,null,null,null,null,{"$f":"GRAY(GRAY(GRAY(GRAY(GRAY(GRAY(GRAY(M356)))))))","v":355},null,null,null,null,null,null,null,{"$f":"GRAY(GRAY(GRAY(GRAY(GRAY(GRAY(GRAY(GRAY(GRAY(GRAY(GRAY(GRAY(GRAY(GRAY(GRAY(M356)))))))))))))))","v":354}]
[null,null,null,null,null,null,null,null,null,null,null,"111010010",466,null,null,null,null,null,{"$f":"GRAY(GRAY(GRAY(GRAY(GRAY(GRAY(GRAY(M357)))))))","v":354},null,null,null,null,null,null,null,{"$f":"GRAY(GRAY(GRAY(GRAY(GRAY(GRAY(GRAY(GRAY(GRAY(GRAY(GRAY(GRAY(GRAY(GRAY(GRAY(M357)))))))))))))))","v":355}]
[null,null,null,null,null,null,null,null,null,null,null,"111010110",470,null,null,null,null,null,{"$f":"GRAY(GRAY(GRAY(GRAY(GRAY(GRAY(GRAY(M358)))))))","v":357},null,null,null,null,null,null,null,{"$f":"GRAY(GRAY(GRAY(GRAY(GRAY(GRAY(GRAY(GRAY(GRAY(GRAY(GRAY(GRAY(GRAY(GRAY(GRAY(M358)))))))))))))))","v":356}]
[null,null,null,null,null,null,null,null,null,null,null,"111010111",471,null,null,null,null,null,{"$f":"GRAY(GRAY(GRAY(GRAY(GRAY(GRAY(GRAY(M359)))))))","v":356},null,null,null,null,null,null,null,{"$f":"GRAY(GRAY(GRAY(GRAY(GRAY(GRAY(GRAY(GRAY(GRAY(GRAY(GRAY(GRAY(GRAY(GRAY(GRAY(M359)))))))))))))))","v":357}]
[null,null,null,null,null,null,null,null,null,null,null,"111010101",469,null,null,null,null,null,{"$f":"GRAY(GRAY(GRAY(GRAY(GRAY(GRAY(GRAY(M360)))))))","v":359},null,null,null,null,null,null,null,{"$f":"GRAY(GRAY(GRAY(GRAY(GRAY(GRAY(GRAY(GRAY(GRAY(GRAY(GRAY(GRAY(GRAY(GRAY(GRAY(M360)))))))))))))))","v":358}]
[null,null,null,null,null,null,null,null,null,null,null,"111010100",468,null,null,null,null,null,{"$f":"GRAY(GRAY(GRAY(GRAY(GRAY(GRAY(GRAY(M361)))))))","v":358},null,null,null,null,null,null,null,{"$f":"GRAY(GRAY(GRAY(GRAY(GRAY(GRAY(GRAY(GRAY(GRAY(GRAY(GRAY(GRAY(GRAY(GRAY(GRAY(M361)))))))))))))))","v":359}]
[null,null,null,null,null,null,null,null,null,null,null,"111011100",476,null,null,null,null,null,{"$f":"GRAY(GRAY(GRAY(GRAY(GRAY(GRAY(GRAY(M362)))))))","v":361},null,null,null,null,null,null,null,{"$f":"GRAY(GRAY(GRAY(GRAY(GRAY(GRAY(GRAY(GRAY(GRAY(GRAY(GRAY(GRAY(GRAY(GRAY(GRAY(M362)))))))))))))))","v":360}]
[null,null,null,null,null,null,null,null,null,null,null,"111011101",477,null,null,null,null,null,{"$f":"GRAY(GRAY(GRAY(GRAY(GRAY(GRAY(GRAY(M363)))))))","v":360},null,null,null,null,null,null,null,{"$f":"GRAY(GRAY(GRAY(GRAY(GRAY(GRAY(GRAY(GRAY(GRAY(GRAY(GRAY(GRAY(GRAY(GRAY(GRAY(M363)))))))))))))))","v":361}]
[null,null,null,null,null,null,null,null,null,null,null,"111011111",479,null,null,null,null,null,{"$f":"GRAY(GRAY(GRAY(GRAY(GRAY(GRAY(GRAY(M364)))))))","v":363},null,null,null,null,null,null,null,{"$f":"GRAY(GRAY(GRAY(GRAY(GRAY(GRAY(GRAY(GRAY(GRAY(GRAY(GRAY(GRAY(GRAY(GRAY(GRAY(M364)))))))))))))))","v":362}]
[null,null,null,null,null,null,null,null,null,null,null,"111011110",478,null,null,null,null,null,{"$f":"GRAY(GRAY(GRAY(GRAY(GRAY(GRAY(GRAY(M365)))))))","v":362},null,null,null,null,null,null,null,{"$f":"GRAY(GRAY(GRAY(GRAY(GRAY(GRAY(GRAY(GRAY(GRAY(GRAY(GRAY(GRAY(GRAY(GRAY(GRAY(M365)))))))))))))))","v":363}]
[null,null,null,null,null,null,null,null,null,null,null,"111011010",474,null,null,null,null,null,{"$f":"GRAY(GRAY(GRAY(GRAY(GRAY(GRAY(GRAY(M366)))))))","v":365},null,null,null,null,null,null,null,{"$f":"GRAY(GRAY(GRAY(GRAY(GRAY(GRAY(GRAY(GRAY(GRAY(GRAY(GRAY(GRAY(GRAY(GRAY(GRAY(M366)))))))))))))))","v":364}]
[null,null,null,null,null,null,null,null,null,null,null,"111011011",475,null,null,null,null,null,{"$f":"GRAY(GRAY(GRAY(GRAY(GRAY(GRAY(GRAY(M367)))))))","v":364},null,null,null,null,null,null,null,{"$f":"GRAY(GRAY(GRAY(GRAY(GRAY(GRAY(GRAY(GRAY(GRAY(GRAY(GRAY(GRAY(GRAY(GRAY(GRAY(M367)))))))))))))))","v":365}]
[null,null,null,null,null,null,null,null,null,null,null,"111011001",473,null,null,null,null,null,{"$f":"GRAY(GRAY(GRAY(GRAY(GRAY(GRAY(GRAY(M368)))))))","v":367},null,null,null,null,null,null,null,{"$f":"GRAY(GRAY(GRAY(GRAY(GRAY(GRAY(GRAY(GRAY(GRAY(GRAY(GRAY(GRAY(GRAY(GRAY(GRAY(M368)))))))))))))))","v":366}]
[null,null,null,null,null,null,null,null,null,null,null,"111011000",472,null,null,null,null,null,{"$f":"GRAY(GRAY(GRAY(GRAY(GRAY(GRAY(GRAY(M369)))))))","v":366},null,null,null,null,null,null,null,{"$f":"GRAY(GRAY(GRAY(GRAY(GRAY(GRAY(GRAY(GRAY(GRAY(GRAY(GRAY(GRAY(GRAY(GRAY(GRAY(M369)))))))))))))))","v":367}]
[null,null,null,null,null,null,null,null,null,null,null,"111001000",456,null,null,null,null,null,{"$f":"GRAY(GRAY(GRAY(GRAY(GRAY(GRAY(GRAY(M370)))))))","v":369},null,null,null,null,null,null,null,{"$f":"GRAY(GRAY(GRAY(GRAY(GRAY(GRAY(GRAY(GRAY(GRAY(GRAY(GRAY(GRAY(GRAY(GRAY(GRAY(M370)))))))))))))))","v":368}]
[null,null,null,null,null,null,null,null,null,null,null,"111001001",457,null,null,null,null,null,{"$f":"GRAY(GRAY(GRAY(GRAY(GRAY(GRAY(GRAY(M371)))))))","v":368},null,null,null,null,null,null,null,{"$f":"GRAY(GRAY(GRAY(GRAY(GRAY(GRAY(GRAY(GRAY(GRAY(GRAY(GRAY(GRAY(GRAY(GRAY(GRAY(M371)))))))))))))))","v":369}]
[null,null,null,null,null,null,null,null,null,null,null,"111001011",459,null,null,null,null,null,{"$f":"GRAY(GRAY(GRAY(GRAY(GRAY(GRAY(GRAY(M372)))))))","v":371},null,null,null,null,null,null,null,{"$f":"GRAY(GRAY(GRAY(GRAY(GRAY(GRAY(GRAY(GRAY(GRAY(GRAY(GRAY(GRAY(GRAY(GRAY(GRAY(M372)))))))))))))))","v":370}]
[null,null,null,null,null,null,null,null,null,null,null,"111001010",458,null,null,null,null,null,{"$f":"GRAY(GRAY(GRAY(GRAY(GRAY(GRAY(GRAY(M373)))))))","v":370},null,null,null,null,null,null,null,{"$f":"GRAY(GRAY(GRAY(GRAY(GRAY(GRAY(GRAY(GRAY(GRAY(GRAY(GRAY(GRAY(GRAY(GRAY(GRAY(M373)))))))))))))))","v":371}]
[null,null,null,null,null,null,null,null,null,null,null,"111001110",462,null,null,null,null,null,{"$f":"GRAY(GRAY(GRAY(GRAY(GRAY(GRAY(GRAY(M374)))))))","v":373},null,null,null,null,null,null,null,{"$f":"GRAY(GRAY(GRAY(GRAY(GRAY(GRAY(GRAY(GRAY(GRAY(GRAY(GRAY(GRAY(GRAY(GRAY(GRAY(M374)))))))))))))))","v":372}]
[null,null,null,null,null,null,null,null,null,null,null,"111001111",463,null,null,null,null,null,{"$f":"GRAY(GRAY(GRAY(GRAY(GRAY(GRAY(GRAY(M375)))))))","v":372},null,null,null,null,null,null,null,{"$f":"GRAY(GRAY(GRAY(GRAY(GRAY(GRAY(GRAY(GRAY(GRAY(GRAY(GRAY(GRAY(GRAY(GRAY(GRAY(M375)))))))))))))))","v":373}]
[null,null,null,null,null,null,null,null,null,null,null,"111001101",461,null,null,null,null,null,{"$f":"GRAY(GRAY(GRAY(GRAY(GRAY(GRAY(GRAY(M376)))))))","v":375},null,null,null,null,null,null,null,{"$f":"GRAY(GRAY(GRAY(GRAY(GRAY(GRAY(GRAY(GRAY(GRAY(GRAY(GRAY(GRAY(GRAY(GRAY(GRAY(M376)))))))))))))))","v":374}]
[null,null,null,null,null,null,null,null,null,null,null,"111001100",460,null,null,null,null,null,{"$f":"GRAY(GRAY(GRAY(GRAY(GRAY(GRAY(GRAY(M377)))))))","v":374},null,null,null,null,null,null,null,{"$f":"GRAY(GRAY(GRAY(GRAY(GRAY(GRAY(GRAY(GRAY(GRAY(GRAY(GRAY(GRAY(GRAY(GRAY(GRAY(M377)))))))))))))))","v":375}]
[null,null,null,null,null,null,null,null,null,null,null,"111000100",452,null,null,null,null,null,{"$f":"GRAY(GRAY(GRAY(GRAY(GRAY(GRAY(GRAY(M378)))))))","v":377},null,null,null,null,null,null,null,{"$f":"GRAY(GRAY(GRAY(GRAY(GRAY(GRAY(GRAY(GRAY(GRAY(GRAY(GRAY(GRAY(GRAY(GRAY(GRAY(M378)))))))))))))))","v":376}]
[null,null,null,null,null,null,null,null,null,null,null,"111000101",453,null,null,null,null,null,{"$f":"GRAY(GRAY(GRAY(GRAY(GRAY(GRAY(GRAY(M379)))))))","v":376},null,null,null,null,null,null,null,{"$f":"GRAY(GRAY(GRAY(GRAY(GRAY(GRAY(GRAY(GRAY(GRAY(GRAY(GRAY(GRAY(GRAY(GRAY(GRAY(M379)))))))))))))))","v":377}]
[null,null,null,null,null,null,null,null,null,null,null,"111000111",455,null,null,null,null,null,{"$f":"GRAY(GRAY(GRAY(GRAY(GRAY(GRAY(GRAY(M380)))))))","v":379},null,null,null,null,null,null,null,{"$f":"GRAY(GRAY(GRAY(GRAY(GRAY(GRAY(GRAY(GRAY(GRAY(GRAY(GRAY(GRAY(GRAY(GRAY(GRAY(M380)))))))))))))))","v":378}]
[null,null,null,null,null,null,null,null,null,null,null,"111000110",454,null,null,null,null,null,{"$f":"GRAY(GRAY(GRAY(GRAY(GRAY(GRAY(GRAY(M381)))))))","v":378},null,null,null,null,null,null,null,{"$f":"GRAY(GRAY(GRAY(GRAY(GRAY(GRAY(GRAY(GRAY(GRAY(GRAY(GRAY(GRAY(GRAY(GRAY(GRAY(M381)))))))))))))))","v":379}]
[null,null,null,null,null,null,null,null,null,null,null,"111000010",450,null,null,null,null,null,{"$f":"GRAY(GRAY(GRAY(GRAY(GRAY(GRAY(GRAY(M382)))))))","v":381},null,null,null,null,null,null,null,{"$f":"GRAY(GRAY(GRAY(GRAY(GRAY(GRAY(GRAY(GRAY(GRAY(GRAY(GRAY(GRAY(GRAY(GRAY(GRAY(M382)))))))))))))))","v":380}]
[null,null,null,null,null,null,null,null,null,null,null,"111000011",451,null,null,null,null,null,{"$f":"GRAY(GRAY(GRAY(GRAY(GRAY(GRAY(GRAY(M383)))))))","v":380},null,null,null,null,null,null,null,{"$f":"GRAY(GRAY(GRAY(GRAY(GRAY(GRAY(GRAY(GRAY(GRAY(GRAY(GRAY(GRAY(GRAY(GRAY(GRAY(M383)))))))))))))))","v":381}]
[null,null,null,null,null,null,null,null,null,null,null,"111000001",449,null,null,null,null,null,{"$f":"GRAY(GRAY(GRAY(GRAY(GRAY(GRAY(GRAY(M384)))))))","v":383},null,null,null,null,null,null,null,{"$f":"GRAY(GRAY(GRAY(GRAY(GRAY(GRAY(GRAY(GRAY(GRAY(GRAY(GRAY(GRAY(GRAY(GRAY(GRAY(M384)))))))))))))))","v":382}]
[null,null,null,null,null,null,null,null,null,null,null,"111000000",448,null,null,null,null,null,{"$f":"GRAY(GRAY(GRAY(GRAY(GRAY(GRAY(GRAY(M385)))))))","v":382},null,null,null,null,null,null,null,{"$f":"GRAY(GRAY(GRAY(GRAY(GRAY(GRAY(GRAY(GRAY(GRAY(GRAY(GRAY(GRAY(GRAY(GRAY(GRAY(M385)))))))))))))))","v":383}]
[null,null,null,null,null,null,null,null,null,null,null,"101000000",320,null,null,null,null,null,{"$f":"GRAY(GRAY(GRAY(GRAY(GRAY(GRAY(GRAY(M386)))))))","v":385},null,null,null,null,null,null,null,{"$f":"GRAY(GRAY(GRAY(GRAY(GRAY(GRAY(GRAY(GRAY(GRAY(GRAY(GRAY(GRAY(GRAY(GRAY(GRAY(M386)))))))))))))))","v":384}]
[null,null,null,null,null,null,null,null,null,null,null,"101000001",{"$f":"BIN2DEC(L387)","v":321},null,null,null,null,null,{"$f":"GRAY(GRAY(GRAY(GRAY(GRAY(GRAY(GRAY(M387)))))))","v":384},null,null,null,null,null,null,null,{"$f":"GRAY(GRAY(GRAY(GRAY(GRAY(GRAY(GRAY(GRAY(GRAY(GRAY(GRAY(GRAY(GRAY(GRAY(GRAY(M387)))))))))))))))","v":385}]
[null,null,null,null,null,null,null,null,null,null,null,"101000011",323,null,null,null,null,null,{"$f":"GRAY(GRAY(GRAY(GRAY(GRAY(GRAY(GRAY(M388)))))))","v":387},null,null,null,null,null,null,null,{"$f":"GRAY(GRAY(GRAY(GRAY(GRAY(GRAY(GRAY(GRAY(GRAY(GRAY(GRAY(GRAY(GRAY(GRAY(GRAY(M388)))))))))))))))","v":386}]
[null,null,null,null,null,null,null,null,null,null,null,"101000010",322,null,null,null,null,null,{"$f":"GRAY(GRAY(GRAY(GRAY(GRAY(GRAY(GRAY(M389)))))))","v":386},null,null,null,null,null,null,null,{"$f":"GRAY(GRAY(GRAY(GRAY(GRAY(GRAY(GRAY(GRAY(GRAY(GRAY(GRAY(GRAY(GRAY(GRAY(GRAY(M389)))))))))))))))","v":387}]
[null,null,null,null,null,null,null,null,null,null,null,"101000110",326,null,null,null,null,null,{"$f":"GRAY(GRAY(GRAY(GRAY(GRAY(GRAY(GRAY(M390)))))))","v":389},null,null,null,null,null,null,null,{"$f":"GRAY(GRAY(GRAY(GRAY(GRAY(GRAY(GRAY(GRAY(GRAY(GRAY(GRAY(GRAY(GRAY(GRAY(GRAY(M390)))))))))))))))","v":388}]
[null,null,null,null,null,null,null,null,null,null,null,"101000111",327,null,null,null,null,null,{"$f":"GRAY(GRAY(GRAY(GRAY(GRAY(GRAY(GRAY(M391)))))))","v":388},null,null,null,null,null,null,null,{"$f":"GRAY(GRAY(GRAY(GRAY(GRAY(GRAY(GRAY(GRAY(GRAY(GRAY(GRAY(GRAY(GRAY(GRAY(GRAY(M391)))))))))))))))","v":389}]
[null,null,null,null,null,null,null,null,null,null,null,"101000101",325,null,null,null,null,null,{"$f":"GRAY(GRAY(GRAY(GRAY(GRAY(GRAY(GRAY(M392)))))))","v":391},null,null,null,null,null,null,null,{"$f":"GRAY(GRAY(GRAY(GRAY(GRAY(GRAY(GRAY(GRAY(GRAY(GRAY(GRAY(GRAY(GRAY(GRAY(GRAY(M392)))))))))))))))","v":390}]
[null,null,null,null,null,null,null,null,null,null,null,"101000100",324,null,null,null,null,null,{"$f":"GRAY(GRAY(GRAY(GRAY(GRAY(GRAY(GRAY(M393)))))))","v":390},null,null,null,null,null,null,null,{"$f":"GRAY(GRAY(GRAY(GRAY(GRAY(GRAY(GRAY(GRAY(GRAY(GRAY(GRAY(GRAY(GRAY(GRAY(GRAY(M393)))))))))))))))","v":391}]
[null,null,null,null,null,null,null,null,null,null,null,"101001100",332,null,null,null,null,null,{"$f":"GRAY(GRAY(GRAY(GRAY(GRAY(GRAY(GRAY(M394)))))))","v":393},null,null,null,null,null,null,null,{"$f":"GRAY(GRAY(GRAY(GRAY(GRAY(GRAY(GRAY(GRAY(GRAY(GRAY(GRAY(GRAY(GRAY(GRAY(GRAY(M394)))))))))))))))","v":392}]
[null,null,null,null,null,null,null,null,null,null,null,"101001101",333,null,null,null,null,null,{"$f":"GRAY(GRAY(GRAY(GRAY(GRAY(GRAY(GRAY(M395)))))))","v":392},null,null,null,null,null,null,null,{"$f":"GRAY(GRAY(GRAY(GRAY(GRAY(GRAY(GRAY(GRAY(GRAY(GRAY(GRAY(GRAY(GRAY(GRAY(GRAY(M395)))))))))))))))","v":393}]
[null,null,null,null,null,null,null,null,null,null,null,"101001111",335,null,null,null,null,null,{"$f":"GRAY(GRAY(GRAY(GRAY(GRAY(GRAY(GRAY(M396)))))))","v":395},null,null,null,null,null,null,null,{"$f":"GRAY(GRAY(GRAY(GRAY(GRAY(GRAY(GRAY(GRAY(GRAY(GRAY(GRAY(GRAY(GRAY(GRAY(GRAY(M396)))))))))))))))","v":394}]
[null,null,null,null,null,null,null,null,null,null,null,"101001110",334,null,null,null,null,null,{"$f":"GRAY(GRAY(GRAY(GRAY(GRAY(GRAY(GRAY(M397)))))))","v":394},null,null,null,null,null,null,null,{"$f":"GRAY(GRAY(GRAY(GRAY(GRAY(GRAY(GRAY(GRAY(GRAY(GRAY(GRAY(GRAY(GRAY(GRAY(GRAY(M397)))))))))))))))","v":395}]
[null,null,null,null,null,null,null,null,null,null,null,"101001010",330,null,null,null,null,null,{"$f":"GRAY(GRAY(GRAY(GRAY(GRAY(GRAY(GRAY(M398)))))))","v":397},null,null,null,null,null,null,null,{"$f":"GRAY(GRAY(GRAY(GRAY(GRAY(GRAY(GRAY(GRAY(GRAY(GRAY(GRAY(GRAY(GRAY(GRAY(GRAY(M398)))))))))))))))","v":396}]
[null,null,null,null,null,null,null,null,null,null,null,"101001011",331,null,null,null,null,null,{"$f":"GRAY(GRAY(GRAY(GRAY(GRAY(GRAY(GRAY(M399)))))))","v":396},null,null,null,null,null,null,null,{"$f":"GRAY(GRAY(GRAY(GRAY(GRAY(GRAY(GRAY(GRAY(GRAY(GRAY(GRAY(GRAY(GRAY(GRAY(GRAY(M399)))))))))))))))","v":397}]
[null,null,null,null,null,null,null,null,null,null,null,"101001001",329,null,null,null,null,null,{"$f":"GRAY(GRAY(GRAY(GRAY(GRAY(GRAY(GRAY(M400)))))))","v":399},null,null,null,null,null,null,null,{"$f":"GRAY(GRAY(GRAY(GRAY(GRAY(GRAY(GRAY(GRAY(GRAY(GRAY(GRAY(GRAY(GRAY(GRAY(GRAY(M400)))))))))))))))","v":398}]
[null,null,null,null,null,null,null,null,null,null,null,"101001000",328,null,null,null,null,null,{"$f":"GRAY(GRAY(GRAY(GRAY(GRAY(GRAY(GRAY(M401)))))))","v":398},null,null,null,null,null,null,null,{"$f":"GRAY(GRAY(GRAY(GRAY(GRAY(GRAY(GRAY(GRAY(GRAY(GRAY(GRAY(GRAY(GRAY(GRAY(GRAY(M401)))))))))))))))","v":399}]
[null,null,null,null,null,null,null,null,null,null,null,"101011000",344,null,null,null,null,null,{"$f":"GRAY(GRAY(GRAY(GRAY(GRAY(GRAY(GRAY(M402)))))))","v":401},null,null,null,null,null,null,null,{"$f":"GRAY(GRAY(GRAY(GRAY(GRAY(GRAY(GRAY(GRAY(GRAY(GRAY(GRAY(GRAY(GRAY(GRAY(GRAY(M402)))))))))))))))","v":400}]
[null,null,null,null,null,null,null,null,null,null,null,"101011001",345,null,null,null,null,null,{"$f":"GRAY(GRAY(GRAY(GRAY(GRAY(GRAY(GRAY(M403)))))))","v":400},null,null,null,null,null,null,null,{"$f":"GRAY(GRAY(GRAY(GRAY(GRAY(GRAY(GRAY(GRAY(GRAY(GRAY(GRAY(GRAY(GRAY(GRAY(GRAY(M403)))))))))))))))","v":401}]
[null,null,null,null,null,null,null,null,null,null,null,"101011011",347,null,null,null,null,null,{"$f":"GRAY(GRAY(GRAY(GRAY(GRAY(GRAY(GRAY(M404)))))))","v":403},null,null,null,null,null,null,null,{"$f":"GRAY(GRAY(GRAY(GRAY(GRAY(GRAY(GRAY(GRAY(GRAY(GRAY(GRAY(GRAY(GRAY(GRAY(GRAY(M404)))))))))))))))","v":402}]
[null,null,null,null,null,null,null,null,null,null,null,"101011010",346,null,null,null,null,null,{"$f":"GRAY(GRAY(GRAY(GRAY(GRAY(GRAY(GRAY(M405)))))))","v":402},null,null,null,null,null,null,null,{"$f":"GRAY(GRAY(GRAY(GRAY(GRAY(GRAY(GRAY(GRAY(GRAY(GRAY(GRAY(GRAY(GRAY(GRAY(GRAY(M405)))))))))))))))","v":403}]
[null,null,null,null,null,null,null,null,null,null,null,"101011110",350,null,null,null,null,null,{"$f":"GRAY(GRAY(GRAY(GRAY(GRAY(GRAY(GRAY(M406)))))))","v":405},null,null,null,null,null,null,null,{"$f":"GRAY(GRAY(GRAY(GRAY(GRAY(GRAY(GRAY(GRAY(GRAY(GRAY(GRAY(GRAY(GRAY(GRAY(GRAY(M406)))))))))))))))","v":404}]
[null,null,null,null,null,null,null,null,null,null,null,"101011111",351,null,null,null,null,null,{"$f":"GRAY(GRAY(GRAY(GRAY(GRAY(GRAY(GRAY(M407)))))))","v":404},null,null,null,null,null,null,null,{"$f":"GRAY(GRAY(GRAY(GRAY(GRAY(GRAY(GRAY(GRAY(GRAY(GRAY(GRAY(GRAY(GRAY(GRAY(GRAY(M407)))))))))))))))","v":405}]
[null,null,null,null,null,null,null,null,null,null,null,"101011101",349,null,null,null,null,null,{"$f":"GRAY(GRAY(GRAY(GRAY(GRAY(GRAY(GRAY(M408)))))))","v":407},null,null,null,null,null,null,null,{"$f":"GRAY(GRAY(GRAY(GRAY(GRAY(GRAY(GRAY(GRAY(GRAY(GRAY(GRAY(GRAY(GRAY(GRAY(GRAY(M408)))))))))))))))","v":406}]
[null,null,null,null,null,null,null,null,null,null,null,"101011100",348,null,null,null,null,null,{"$f":"GRAY(GRAY(GRAY(GRAY(GRAY(GRAY(GRAY(M409)))))))","v":406},null,null,null,null,null,null,null,{"$f":"GRAY(GRAY(GRAY(GRAY(GRAY(GRAY(GRAY(GRAY(GRAY(GRAY(GRAY(GRAY(GRAY(GRAY(GRAY(M409)))))))))))))))","v":407}]
[null,null,null,null,null,null,null,null,null,null,null,"101010100",340,null,null,null,null,null,{"$f":"GRAY(GRAY(GRAY(GRAY(GRAY(GRAY(GRAY(M410)))))))","v":409},null,null,null,null,null,null,null,{"$f":"GRAY(GRAY(GRAY(GRAY(GRAY(GRAY(GRAY(GRAY(GRAY(GRAY(GRAY(GRAY(GRAY(GRAY(GRAY(M410)))))))))))))))","v":408}]
[null,null,null,null,null,null,null,null,null,null,null,"101010101",341,null,null,null,null,null,{"$f":"GRAY(GRAY(GRAY(GRAY(GRAY(GRAY(GRAY(M411)))))))","v":408},null,null,null,null,null,null,null,{"$f":"GRAY(GRAY(GRAY(GRAY(GRAY(GRAY(GRAY(GRAY(GRAY(GRAY(GRAY(GRAY(GRAY(GRAY(GRAY(M411)))))))))))))))","v":409}]
[null,null,null,null,null,null,null,null,null,null,null,"101010111",343,null,null,null,null,null,{"$f":"GRAY(GRAY(GRAY(GRAY(GRAY(GRAY(GRAY(M412)))))))","v":411},null,null,null,null,null,null,null,{"$f":"GRAY(GRAY(GRAY(GRAY(GRAY(GRAY(GRAY(GRAY(GRAY(GRAY(GRAY(GRAY(GRAY(GRAY(GRAY(M412)))))))))))))))","v":410}]
[null,null,null,null,null,null,null,null,null,null,null,"101010110",342,null,null,null,null,null,{"$f":"GRAY(GRAY(GRAY(GRAY(GRAY(GRAY(GRAY(M413)))))))","v":410},null,null,null,null,null,null,null,{"$f":"GRAY(GRAY(GRAY(GRAY(GRAY(GRAY(GRAY(GRAY(GRAY(GRAY(GRAY(GRAY(GRAY(GRAY(GRAY(M413)))))))))))))))","v":411}]
[null,null,null,null,null,null,null,null,null,null,null,"101010010",338,null,null,null,null,null,{"$f":"GRAY(GRAY(GRAY(GRAY(GRAY(GRAY(GRAY(M414)))))))","v":413},null,null,null,null,null,null,null,{"$f":"GRAY(GRAY(GRAY(GRAY(GRAY(GRAY(GRAY(GRAY(GRAY(GRAY(GRAY(GRAY(GRAY(GRAY(GRAY(M414)))))))))))))))","v":412}]
[null,null,null,null,null,null,null,null,null,null,null,"101010011",339,null,null,null,null,null,{"$f":"GRAY(GRAY(GRAY(GRAY(GRAY(GRAY(GRAY(M415)))))))","v":412},null,null,null,null,null,null,null,{"$f":"GRAY(GRAY(GRAY(GRAY(GRAY(GRAY(GRAY(GRAY(GRAY(GRAY(GRAY(GRAY(GRAY(GRAY(GRAY(M415)))))))))))))))","v":413}]
[null,null,null,null,null,null,null,null,null,null,null,"101010001",337,null,null,null,null,null,{"$f":"GRAY(GRAY(GRAY(GRAY(GRAY(GRAY(GRAY(M416)))))))","v":415},null,null,null,null,null,null,null,{"$f":"GRAY(GRAY(GRAY(GRAY(GRAY(GRAY(GRAY(GRAY(GRAY(GRAY(GRAY(GRAY(GRAY(GRAY(GRAY(M416)))))))))))))))","v":414}]
[null,null,null,null,null,null,null,null,null,null,null,"101010000",336,null,null,null,null,null,{"$f":"GRAY(GRAY(GRAY(GRAY(GRAY(GRAY(GRAY(M417)))))))","v":414},null,null,null,null,null,null,null,{"$f":"GRAY(GRAY(GRAY(GRAY(GRAY(GRAY(GRAY(GRAY(GRAY(GRAY(GRAY(GRAY(GRAY(GRAY(GRAY(M417)))))))))))))))","v":415}]
[null,null,null,null,null,null,null,null,null,null,null,"101110000",368,null,null,null,null,null,{"$f":"GRAY(GRAY(GRAY(GRAY(GRAY(GRAY(GRAY(M418)))))))","v":417},null,null,null,null,null,null,null,{"$f":"GRAY(GRAY(GRAY(GRAY(GRAY(GRAY(GRAY(GRAY(GRAY(GRAY(GRAY(GRAY(GRAY(GRAY(GRAY(M418)))))))))))))))","v":416}]
[null,null,null,null,null,null,null,null,null,null,null,"101110001",369,null,null,null,null,null,{"$f":"GRAY(GRAY(GRAY(GRAY(GRAY(GRAY(GRAY(M419)))))))","v":416},null,null,null,null,null,null,null,{"$f":"GRAY(GRAY(GRAY(GRAY(GRAY(GRAY(GRAY(GRAY(GRAY(GRAY(GRAY(GRAY(GRAY(GRAY(GRAY(M419)))))))))))))))","v":417}]
[null,null,null,null,null,null,null,null,null,null,null,"101110011",371,null,null,null,null,null,{"$f":"GRAY(GRAY(GRAY(GRAY(GRAY(GRAY(GRAY(M420)))))))","v":419},null,null,null,null,null,null,null,{"$f":"GRAY(GRAY(GRAY(GRAY(GRAY(GRAY(GRAY(GRAY(GRAY(GRAY(GRAY(GRAY(GRAY(GRAY(GRAY(M420)))))))))))))))","v":418}]
[null,null,null,null,null,null,null,null,null,null,null,"101110010",370,null,null,null,null,null,{"$f":"GRAY(GRAY(GRAY(GRAY(GRAY(GRAY(GRAY(M421)))))))","v":418},null,null,null,null,null,null,null,{"$f":"GRAY(GRAY(GRAY(GRAY(GRAY(GRAY(GRAY(GRAY(GRAY(GRAY(GRAY(GRAY(GRAY(GRAY(GRAY(M421)))))))))))))))","v":419}]
[null,null,null,null,null,null,null,null,null,null,null,"101110110",374,null,null,null,null,null,{"$f":"GRAY(GRAY(GRAY(GRAY(GRAY(GRAY(GRAY(M422)))))))","v":421},null,null,null,null,null,null,null,{"$f":"GRAY(GRAY(GRAY(GRAY(GRAY(GRAY(GRAY(GRAY(GRAY(GRAY(GRAY(GRAY(GRAY(GRAY(GRAY(M422)))))))))))))))","v":420}]
[null,null,null,null,null,null,null,null,null,null,null,"101110111",375,null,null,null,null,null,{"$f":"GRAY(GRAY(GRAY(GRAY(GRAY(GRAY(GRAY(M423)))))))","v":420},null,null,null,null,null,null,null,{"$f":"GRAY(GRAY(GRAY(GRAY(GRAY(GRAY(GRAY(GRAY(GRAY(GRAY(GRAY(GRAY(GRAY(GRAY(GRAY(M423)))))))))))))))","v":421}]
[null,null,null,null,null,null,null,null,null,null,null,"101110101",373,null,null,null,null,null,{"$f":"GRAY(GRAY(GRAY(GRAY(GRAY(GRAY(GRAY(M424)))))))","v":423},null,null,null,null,null,null,null,{"$f":"GRAY(GRAY(GRAY(GRAY(GRAY(GRAY(GRAY(GRAY(GRAY(GRAY(GRAY(GRAY(GRAY(GRAY(GRAY(M424)))))))))))))))","v":422}]
[null,null,null,null,null,null,null,null,null,null,null,"101110100",372,null,null,null,null,null,{"$f":"GRAY(GRAY(GRAY(GRAY(GRAY(GRAY(GRAY(M425)))))))","v":422},null,null,null,null,null,null,null,{"$f":"GRAY(GRAY(GRAY(GRAY(GRAY(GRAY(GRAY(GRAY(GRAY(GRAY(GRAY(GRAY(GRAY(GRAY(GRAY(M425)))))))))))))))","v":423}]
[null,null,null,null,null,null,null,null,null,null,null,"101111100",380,null,null,null,null,null,{"$f":"GRAY(GRAY(GRAY(GRAY(GRAY(GRAY(GRAY(M426)))))))","v":425},null,null,null,null,null,null,null,{"$f":"GRAY(GRAY(GRAY(GRAY(GRAY(GRAY(GRAY(GRAY(GRAY(GRAY(GRAY(GRAY(GRAY(GRAY(GRAY(M426)))))))))))))))","v":424}]
[null,null,null,null,null,null,null,null,null,null,null,"101111101",381,null,null,null,null,null,{"$f":"GRAY(GRAY(GRAY(GRAY(GRAY(GRAY(GRAY(M427)))))))","v":424},null,null,null,null,null,null,null,{"$f":"GRAY(GRAY(GRAY(GRAY(GRAY(GRAY(GRAY(GRAY(GRAY(GRAY(GRAY(GRAY(GRAY(GRAY(GRAY(M427)))))))))))))))","v":425}]
[null,null,null,null,null,null,null,null,null,null,null,"101111111",383,null,null,null,null,null,{"$f":"GRAY(GRAY(GRAY(GRAY(GRAY(GRAY(GRAY(M428)))))))","v":427},null,null,null,null,null,null,null,{"$f":"GRAY(GRAY(GRAY(GRAY(GRAY(GRAY(GRAY(GRAY(GRAY(GRAY(GRAY(GRAY(GRAY(GRAY(GRAY(M428)))))))))))))))","v":426}]
[null,null,null,null,null,null,null,null,null,null,null,"101111110",382,null,null,null,null,null,{"$f":"GRAY(GRAY(GRAY(GRAY(GRAY(GRAY(GRAY(M429)))))))","v":426},null,null,null,null,null,null,null,{"$f":"GRAY(GRAY(GRAY(GRAY(GRAY(GRAY(GRAY(GRAY(GRAY(GRAY(GRAY(GRAY(GRAY(GRAY(GRAY(M429)))))))))))))))","v":427}]
[null,null,null,null,null,null,null,null,null,null,null,"101111010",378,null,null,null,null,null,{"$f":"GRAY(GRAY(GRAY(GRAY(GRAY(GRAY(GRAY(M430)))))))","v":429},null,null,null,null,null,null,null,{"$f":"GRAY(GRAY(GRAY(GRAY(GRAY(GRAY(GRAY(GRAY(GRAY(GRAY(GRAY(GRAY(GRAY(GRAY(GRAY(M430)))))))))))))))","v":428}]
[null,null,null,null,null,null,null,null,null,null,null,"101111011",379,null,null,null,null,null,{"$f":"GRAY(GRAY(GRAY(GRAY(GRAY(GRAY(GRAY(M431)))))))","v":428},null,null,null,null,null,null,null,{"$f":"GRAY(GRAY(GRAY(GRAY(GRAY(GRAY(GRAY(GRAY(GRAY(GRAY(GRAY(GRAY(GRAY(GRAY(GRAY(M431)))))))))))))))","v":429}]
[null,null,null,null,null,null,null,null,null,null,null,"101111001",377,null,null,null,null,null,{"$f":"GRAY(GRAY(GRAY(GRAY(GRAY(GRAY(GRAY(M432)))))))","v":431},null,null,null,null,null,null,null,{"$f":"GRAY(GRAY(GRAY(GRAY(GRAY(GRAY(GRAY(GRAY(GRAY(GRAY(GRAY(GRAY(GRAY(GRAY(GRAY(M432)))))))))))))))","v":430}]
[null,null,null,null,null,null,null,null,null,null,null,"101111000",376,null,null,null,null,null,{"$f":"GRAY(GRAY(GRAY(GRAY(GRAY(GRAY(GRAY(M433)))))))","v":430},null,null,null,null,null,null,null,{"$f":"GRAY(GRAY(GRAY(GRAY(GRAY(GRAY(GRAY(GRAY(GRAY(GRAY(GRAY(GRAY(GRAY(GRAY(GRAY(M433)))))))))))))))","v":431}]
[null,null,null,null,null,null,null,null,null,null,null,"101101000",360,null,null,null,null,null,{"$f":"GRAY(GRAY(GRAY(GRAY(GRAY(GRAY(GRAY(M434)))))))","v":433},null,null,null,null,null,null,null,{"$f":"GRAY(GRAY(GRAY(GRAY(GRAY(GRAY(GRAY(GRAY(GRAY(GRAY(GRAY(GRAY(GRAY(GRAY(GRAY(M434)))))))))))))))","v":432}]
[null,null,null,null,null,null,null,null,null,null,null,"101101001",361,null,null,null,null,null,{"$f":"GRAY(GRAY(GRAY(GRAY(GRAY(GRAY(GRAY(M435)))))))","v":432},null,null,null,null,null,null,null,{"$f":"GRAY(GRAY(GRAY(GRAY(GRAY(GRAY(GRAY(GRAY(GRAY(GRAY(GRAY(GRAY(GRAY(GRAY(GRAY(M435)))))))))))))))","v":433}]
[null,null,null,null,null,null,null,null,null,null,null,"101101011",363,null,null,null,null,null,{"$f":"GRAY(GRAY(GRAY(GRAY(GRAY(GRAY(GRAY(M436)))))))","v":435},null,null,null,null,null,null,null,{"$f":"GRAY(GRAY(GRAY(GRAY(GRAY(GRAY(GRAY(GRAY(GRAY(GRAY(GRAY(GRAY(GRAY(GRAY(GRAY(M436)))))))))))))))","v":434}]
[null,null,null,null,null,null,null,null,null,null,null,"101101010",362,null,null,null,null,null,{"$f":"GRAY(GRAY(GRAY(GRAY(GRAY(GRAY(GRAY(M437)))))))","v":434},null,null,null,null,null,null,null,{"$f":"GRAY(GRAY(GRAY(GRAY(GRAY(GRAY(GRAY(GRAY(GRAY(GRAY(GRAY(GRAY(GRAY(GRAY(GRAY(M437)))))))))))))))","v":435}]
[null,null,null,null,null,null,null,null,null,null,null,"101101110",366,null,null,null,null,null,{"$f":"GRAY(GRAY(GRAY(GRAY(GRAY(GRAY(GRAY(M438)))))))","v":437},null,null,null,null,null,null,null,{"$f":"GRAY(GRAY(GRAY(GRAY(GRAY(GRAY(GRAY(GRAY(GRAY(GRAY(GRAY(GRAY(GRAY(GRAY(GRAY(M438)))))))))))))))","v":436}]
[null,null,null,null,null,null,null,null,null,null,null,"101101111",367,null,null,null,null,null,{"$f":"GRAY(GRAY(GRAY(GRAY(GRAY(GRAY(GRAY(M439)))))))","v":436},null,null,null,null,null,null,null,{"$f":"GRAY(GRAY(GRAY(GRAY(GRAY(GRAY(GRAY(GRAY(GRAY(GRAY(GRAY(GRAY(GRAY(GRAY(GRAY(M439)))))))))))))))","v":437}]
[null,null,null,null,null,null,null,null,null,null,null,"101101101",365,null,null,null,null,null,{"$f":"GRAY(GRAY(GRAY(GRAY(GRAY(GRAY(GRAY(M440)))))))","v":439},null,null,null,null,null,null,null,{"$f":"GRAY(GRAY(GRAY(GRAY(GRAY(GRAY(GRAY(GRAY(GRAY(GRAY(GRAY(GRAY(GRAY(GRAY(GRAY(M440)))))))))))))))","v":438}]
[null,null,null,null,null,null,null,null,null,null,null,"101101100",364,null,null,null,null,null,{"$f":"GRAY(GRAY(GRAY(GRAY(GRAY(GRAY(GRAY(M441)))))))","v":438},null,null,null,null,null,null,null,{"$f":"GRAY(GRAY(GRAY(GRAY(GRAY(GRAY(GRAY(GRAY(GRAY(GRAY(GRAY(GRAY(GRAY(GRAY(GRAY(M441)))))))))))))))","v":439}]
[null,null,null,null,null,null,null,null,null,null,null,"101100100",356,null,null,null,null,null,{"$f":"GRAY(GRAY(GRAY(GRAY(GRAY(GRAY(GRAY(M442)))))))","v":441},null,null,null,null,null,null,null,{"$f":"GRAY(GRAY(GRAY(GRAY(GRAY(GRAY(GRAY(GRAY(GRAY(GRAY(GRAY(GRAY(GRAY(GRAY(GRAY(M442)))))))))))))))","v":440}]
[null,null,null,null,null,null,null,null,null,null,null,"101100101",357,null,null,null,null,null,{"$f":"GRAY(GRAY(GRAY(GRAY(GRAY(GRAY(GRAY(M443)))))))","v":440},null,null,null,null,null,null,null,{"$f":"GRAY(GRAY(GRAY(GRAY(GRAY(GRAY(GRAY(GRAY(GRAY(GRAY(GRAY(GRAY(GRAY(GRAY(GRAY(M443)))))))))))))))","v":441}]
[null,null,null,null,null,null,null,null,null,null,null,"101100111",359,null,null,null,null,null,{"$f":"GRAY(GRAY(GRAY(GRAY(GRAY(GRAY(GRAY(M444)))))))","v":443},null,null,null,null,null,null,null,{"$f":"GRAY(GRAY(GRAY(GRAY(GRAY(GRAY(GRAY(GRAY(GRAY(GRAY(GRAY(GRAY(GRAY(GRAY(GRAY(M444)))))))))))))))","v":442}]
[null,null,null,null,null,null,null,null,null,null,null,"101100110",358,null,null,null,null,null,{"$f":"GRAY(GRAY(GRAY(GRAY(GRAY(GRAY(GRAY(M445)))))))","v":442},null,null,null,null,null,null,null,{"$f":"GRAY(GRAY(GRAY(GRAY(GRAY(GRAY(GRAY(GRAY(GRAY(GRAY(GRAY(GRAY(GRAY(GRAY(GRAY(M445)))))))))))))))","v":443}]
[null,null,null,null,null,null,null,null,null,null,null,"101100010",354,null,null,null,null,null,{"$f":"GRAY(GRAY(GRAY(GRAY(GRAY(GRAY(GRAY(M446)))))))","v":445},null,null,null,null,null,null,null,{"$f":"GRAY(GRAY(GRAY(GRAY(GRAY(GRAY(GRAY(GRAY(GRAY(GRAY(GRAY(GRAY(GRAY(GRAY(GRAY(M446)))))))))))))))","v":444}]
[null,null,null,null,null,null,null,null,null,null,null,"101100011",355,null,null,null,null,null,{"$f":"GRAY(GRAY(GRAY(GRAY(GRAY(GRAY(GRAY(M447)))))))","v":444},null,null,null,null,null,null,null,{"$f":"GRAY(GRAY(GRAY(GRAY(GRAY(GRAY(GRAY(GRAY(GRAY(GRAY(GRAY(GRAY(GRAY(GRAY(GRAY(M447)))))))))))))))","v":445}]
[null,null,null,null,null,null,null,null,null,null,null,"101100001",353,null,null,null,null,null,{"$f":"GRAY(GRAY(GRAY(GRAY(GRAY(GRAY(GRAY(M448)))))))","v":447},null,null,null,null,null,null,null,{"$f":"GRAY(GRAY(GRAY(GRAY(GRAY(GRAY(GRAY(GRAY(GRAY(GRAY(GRAY(GRAY(GRAY(GRAY(GRAY(M448)))))))))))))))","v":446}]
[null,null,null,null,null,null,null,null,null,null,null,"101100000",352,null,null,null,null,null,{"$f":"GRAY(GRAY(GRAY(GRAY(GRAY(GRAY(GRAY(M449)))))))","v":446},null,null,null,null,null,null,null,{"$f":"GRAY(GRAY(GRAY(GRAY(GRAY(GRAY(GRAY(GRAY(GRAY(GRAY(GRAY(GRAY(GRAY(GRAY(GRAY(M449)))))))))))))))","v":447}]
[null,null,null,null,null,null,null,null,null,null,null,"100100000",288,null,null,null,null,null,{"$f":"GRAY(GRAY(GRAY(GRAY(GRAY(GRAY(GRAY(M450)))))))","v":449},null,null,null,null,null,null,null,{"$f":"GRAY(GRAY(GRAY(GRAY(GRAY(GRAY(GRAY(GRAY(GRAY(GRAY(GRAY(GRAY(GRAY(GRAY(GRAY(M450)))))))))))))))","v":448}]
[null,null,null,null,null,null,null,null,null,null,null,"100100001",{"$f":"BIN2DEC(L451)","v":289},null,null,null,null,null,{"$f":"GRAY(GRAY(GRAY(GRAY(GRAY(GRAY(GRAY(M451)))))))","v":448},null,null,null,null,null,null,null,{"$f":"GRAY(GRAY(GRAY(GRAY(GRAY(GRAY(GRAY(GRAY(GRAY(GRAY(GRAY(GRAY(GRAY(GRAY(GRAY(M451)))))))))))))))","v":449}]
[null,null,null,null,null,null,null,null,null,null,null,"100100011",291,null,null,null,null,null,{"$f":"GRAY(GRAY(GRAY(GRAY(GRAY(GRAY(GRAY(M452)))))))","v":451},null,null,null,null,null,null,null,{"$f":"GRAY(GRAY(GRAY(GRAY(GRAY(GRAY(GRAY(GRAY(GRAY(GRAY(GRAY(GRAY(GRAY(GRAY(GRAY(M452)))))))))))))))","v":450}]
[null,null,null,null,null,null,null,null,null,null,null,"100100010",290,null,null,null,null,null,{"$f":"GRAY(GRAY(GRAY(GRAY(GRAY(GRAY(GRAY(M453)))))))","v":450},null,null,null,null,null,null,null,{"$f":"GRAY(GRAY(GRAY(GRAY(GRAY(GRAY(GRAY(GRAY(GRAY(GRAY(GRAY(GRAY(GRAY(GRAY(GRAY(M453)))))))))))))))","v":451}]
[null,null,null,null,null,null,null,null,null,null,null,"100100110",294,null,null,null,null,null,{"$f":"GRAY(GRAY(GRAY(GRAY(GRAY(GRAY(GRAY(M454)))))))","v":453},null,null,null,null,null,null,null,{"$f":"GRAY(GRAY(GRAY(GRAY(GRAY(GRAY(GRAY(GRAY(GRAY(GRAY(GRAY(GRAY(GRAY(GRAY(GRAY(M454)))))))))))))))","v":452}]
[null,null,null,null,null,null,null,null,null,null,null,"100100111",295,null,null,null,null,null,{"$f":"GRAY(GRAY(GRAY(GRAY(GRAY(GRAY(GRAY(M455)))))))","v":452},null,null,null,null,null,null,null,{"$f":"GRAY(GRAY(GRAY(GRAY(GRAY(GRAY(GRAY(GRAY(GRAY(GRAY(GRAY(GRAY(GRAY(GRAY(GRAY(M455)))))))))))))))","v":453}]
[null,null,null,null,null,null,null,null,null,null,null,"100100101",293,null,null,null,null,null,{"$f":"GRAY(GRAY(GRAY(GRAY(GRAY(GRAY(GRAY(M456)))))))","v":455},null,null,null,null,null,null,null,{"$f":"GRAY(GRAY(GRAY(GRAY(GRAY(GRAY(GRAY(GRAY(GRAY(GRAY(GRAY(GRAY(GRAY(GRAY(GRAY(M456)))))))))))))))","v":454}]
[null,null,null,null,null,null,null,null,null,null,null,"100100100",292,null,null,null,null,null,{"$f":"GRAY(GRAY(GRAY(GRAY(GRAY(GRAY(GRAY(M457)))))))","v":454},null,null,null,null,null,null,null,{"$f":"GRAY(GRAY(GRAY(GRAY(GRAY(GRAY(GRAY(GRAY(GRAY(GRAY(GRAY(GRAY(GRAY(GRAY(GRAY(M457)))))))))))))))","v":455}]
[null,null,null,null,null,null,null,null,null,null,null,"100101100",300,null,null,null,null,null,{"$f":"GRAY(GRAY(GRAY(GRAY(GRAY(GRAY(GRAY(M458)))))))","v":457},null,null,null,null,null,null,null,{"$f":"GRAY(GRAY(GRAY(GRAY(GRAY(GRAY(GRAY(GRAY(GRAY(GRAY(GRAY(GRAY(GRAY(GRAY(GRAY(M458)))))))))))))))","v":456}]
[null,null,null,null,null,null,null,null,null,null,null,"100101101",301,null,null,null,null,null,{"$f":"GRAY(GRAY(GRAY(GRAY(GRAY(GRAY(GRAY(M459)))))))","v":456},null,null,null,null,null,null,null,{"$f":"GRAY(GRAY(GRAY(GRAY(GRAY(GRAY(GRAY(GRAY(GRAY(GRAY(GRAY(GRAY(GRAY(GRAY(GRAY(M459)))))))))))))))","v":457}]
[null,null,null,null,null,null,null,null,null,null,null,"100101111",303,null,null,null,null,null,{"$f":"GRAY(GRAY(GRAY(GRAY(GRAY(GRAY(GRAY(M460)))))))","v":459},null,null,null,null,null,null,null,{"$f":"GRAY(GRAY(GRAY(GRAY(GRAY(GRAY(GRAY(GRAY(GRAY(GRAY(GRAY(GRAY(GRAY(GRAY(GRAY(M460)))))))))))))))","v":458}]
[null,null,null,null,null,null,null,null,null,null,null,"100101110",302,null,null,null,null,null,{"$f":"GRAY(GRAY(GRAY(GRAY(GRAY(GRAY(GRAY(M461)))))))","v":458},null,null,null,null,null,null,null,{"$f":"GRAY(GRAY(GRAY(GRAY(GRAY(GRAY(GRAY(GRAY(GRAY(GRAY(GRAY(GRAY(GRAY(GRAY(GRAY(M461)))))))))))))))","v":459}]
[null,null,null,null,null,null,null,null,null,null,null,"100101010",298,null,null,null,null,null,{"$f":"GRAY(GRAY(GRAY(GRAY(GRAY(GRAY(GRAY(M462)))))))","v":461},null,null,null,null,null,null,null,{"$f":"GRAY(GRAY(GRAY(GRAY(GRAY(GRAY(GRAY(GRAY(GRAY(GRAY(GRAY(GRAY(GRAY(GRAY(GRAY(M462)))))))))))))))","v":460}]
[null,null,null,null,null,null,null,null,null,null,null,"100101011",299,null,null,null,null,null,{"$f":"GRAY(GRAY(GRAY(GRAY(GRAY(GRAY(GRAY(M463)))))))","v":460},null,null,null,null,null,null,null,{"$f":"GRAY(GRAY(GRAY(GRAY(GRAY(GRAY(GRAY(GRAY(GRAY(GRAY(GRAY(GRAY(GRAY(GRAY(GRAY(M463)))))))))))))))","v":461}]
[null,null,null,null,null,null,null,null,null,null,null,"100101001",297,null,null,null,null,null,{"$f":"GRAY(GRAY(GRAY(GRAY(GRAY(GRAY(GRAY(M464)))))))","v":463},null,null,null,null,null,null,null,{"$f":"GRAY(GRAY(GRAY(GRAY(GRAY(GRAY(GRAY(GRAY(GRAY(GRAY(GRAY(GRAY(GRAY(GRAY(GRAY(M464)))))))))))))))","v":462}]
[null,null,null,null,null,null,null,null,null,null,null,"100101000",296,null,null,null,null,null,{"$f":"GRAY(GRAY(GRAY(GRAY(GRAY(GRAY(GRAY(M465)))))))","v":462},null,null,null,null,null,null,null,{"$f":"GRAY(GRAY(GRAY(GRAY(GRAY(GRAY(GRAY(GRAY(GRAY(GRAY(GRAY(GRAY(GRAY(GRAY(GRAY(M465)))))))))))))))","v":463}]
[null,null,null,null,null,null,null,null,null,null,null,"100111000",312,null,null,null,null,null,{"$f":"GRAY(GRAY(GRAY(GRAY(GRAY(GRAY(GRAY(M466)))))))","v":465},null,null,null,null,null,null,null,{"$f":"GRAY(GRAY(GRAY(GRAY(GRAY(GRAY(GRAY(GRAY(GRAY(GRAY(GRAY(GRAY(GRAY(GRAY(GRAY(M466)))))))))))))))","v":464}]
[null,null,null,null,null,null,null,null,null,null,null,"100111001",313,null,null,null,null,null,{"$f":"GRAY(GRAY(GRAY(GRAY(GRAY(GRAY(GRAY(M467)))))))","v":464},null,null,null,null,null,null,null,{"$f":"GRAY(GRAY(GRAY(GRAY(GRAY(GRAY(GRAY(GRAY(GRAY(GRAY(GRAY(GRAY(GRAY(GRAY(GRAY(M467)))))))))))))))","v":465}]
[null,null,null,null,null,null,null,null,null,null,null,"100111011",315,null,null,null,null,null,{"$f":"GRAY(GRAY(GRAY(GRAY(GRAY(GRAY(GRAY(M468)))))))","v":467},null,null,null,null,null,null,null,{"$f":"GRAY(GRAY(GRAY(GRAY(GRAY(GRAY(GRAY(GRAY(GRAY(GRAY(GRAY(GRAY(GRAY(GRAY(GRAY(M468)))))))))))))))","v":466}]
[null,null,null,null,null,null,null,null,null,null,null,"100111010",314,null,null,null,null,null,{"$f":"GRAY(GRAY(GRAY(GRAY(GRAY(GRAY(GRAY(M469)))))))","v":466},null,null,null,null,null,null,null,{"$f":"GRAY(GRAY(GRAY(GRAY(GRAY(GRAY(GRAY(GRAY(GRAY(GRAY(GRAY(GRAY(GRAY(GRAY(GRAY(M469)))))))))))))))","v":467}]
[null,null,null,null,null,null,null,null,null,null,null,"100111110",318,null,null,null,null,null,{"$f":"GRAY(GRAY(GRAY(GRAY(GRAY(GRAY(GRAY(M470)))))))","v":469},null,null,null,null,null,null,null,{"$f":"GRAY(GRAY(GRAY(GRAY(GRAY(GRAY(GRAY(GRAY(GRAY(GRAY(GRAY(GRAY(GRAY(GRAY(GRAY(M470)))))))))))))))","v":468}]
[null,null,null,null,null,null,null,null,null,null,null,"100111111",319,null,null,null,null,null,{"$f":"GRAY(GRAY(GRAY(GRAY(GRAY(GRAY(GRAY(M471)))))))","v":468},null,null,null,null,null,null,null,{"$f":"GRAY(GRAY(GRAY(GRAY(GRAY(GRAY(GRAY(GRAY(GRAY(GRAY(GRAY(GRAY(GRAY(GRAY(GRAY(M471)))))))))))))))","v":469}]
[null,null,null,null,null,null,null,null,null,null,null,"100111101",317,null,null,null,null,null,{"$f":"GRAY(GRAY(GRAY(GRAY(GRAY(GRAY(GRAY(M472)))))))","v":471},null,null,null,null,null,null,null,{"$f":"GRAY(GRAY(GRAY(GRAY(GRAY(GRAY(GRAY(GRAY(GRAY(GRAY(GRAY(GRAY(GRAY(GRAY(GRAY(M472)))))))))))))))","v":470}]
[null,null,null,null,null,null,null,null,null,null,null,"100111100",316,null,null,null,null,null,{"$f":"GRAY(GRAY(GRAY(GRAY(GRAY(GRAY(GRAY(M473)))))))","v":470},null,null,null,null,null,null,null,{"$f":"GRAY(GRAY(GRAY(GRAY(GRAY(GRAY(GRAY(GRAY(GRAY(GRAY(GRAY(GRAY(GRAY(GRAY(GRAY(M473)))))))))))))))","v":471}]
[null,null,null,null,null,null,null,null,null,null,null,"100110100",308,null,null,null,null,null,{"$f":"GRAY(GRAY(GRAY(GRAY(GRAY(GRAY(GRAY(M474)))))))","v":473},null,null,null,null,null,null,null,{"$f":"GRAY(GRAY(GRAY(GRAY(GRAY(GRAY(GRAY(GRAY(GRAY(GRAY(GRAY(GRAY(GRAY(GRAY(GRAY(M474)))))))))))))))","v":472}]
[null,null,null,null,null,null,null,null,null,null,null,"100110101",309,null,null,null,null,null,{"$f":"GRAY(GRAY(GRAY(GRAY(GRAY(GRAY(GRAY(M475)))))))","v":472},null,null,null,null,null,null,null,{"$f":"GRAY(GRAY(GRAY(GRAY(GRAY(GRAY(GRAY(GRAY(GRAY(GRAY(GRAY(GRAY(GRAY(GRAY(GRAY(M475)))))))))))))))","v":473}]
[null,null,null,null,null,null,null,null,null,null,null,"100110111",311,null,null,null,null,null,{"$f":"GRAY(GRAY(GRAY(GRAY(GRAY(GRAY(GRAY(M476)))))))","v":475},null,null,null,null,null,null,null,{"$f":"GRAY(GRAY(GRAY(GRAY(GRAY(GRAY(GRAY(GRAY(GRAY(GRAY(GRAY(GRAY(GRAY(GRAY(GRAY(M476)))))))))))))))","v":474}]
[null,null,null,null,null,null,null,null,null,null,null,"100110110",310,null,null,null,null,null,{"$f":"GRAY(GRAY(GRAY(GRAY(GRAY(GRAY(GRAY(M477)))))))","v":474},null,null,null,null,null,null,null,{"$f":"GRAY(GRAY(GRAY(GRAY(GRAY(GRAY(GRAY(GRAY(GRAY(GRAY(GRAY(GRAY(GRAY(GRAY(GRAY(M477)))))))))))))))","v":475}]
[null,null,null,null,null,null,null,null,null,null,null,"100110010",306,null,null,null,null,null,{"$f":"GRAY(GRAY(GRAY(GRAY(GRAY(GRAY(GRAY(M478)))))))","v":477},null,null,null,null,null,null,null,{"$f":"GRAY(GRAY(GRAY(GRAY(GRAY(GRAY(GRAY(GRAY(GRAY(GRAY(GRAY(GRAY(GRAY(GRAY(GRAY(M478)))))))))))))))","v":476}]
[null,null,null,null,null,null,null,null,null,null,null,"100110011",307,null,null,null,null,null,{"$f":"GRAY(GRAY(GRAY(GRAY(GRAY(GRAY(GRAY(M479)))))))","v":476},null,null,null,null,null,null,null,{"$f":"GRAY(GRAY(GRAY(GRAY(GRAY(GRAY(GRAY(GRAY(GRAY(GRAY(GRAY(GRAY(GRAY(GRAY(GRAY(M479)))))))))))))))","v":477}]
[null,null,null,null,null,null,null,null,null,null,null,"100110001",305,null,null,null,null,null,{"$f":"GRAY(GRAY(GRAY(GRAY(GRAY(GRAY(GRAY(M480)))))))","v":479},null,null,null,null,null,null,null,{"$f":"GRAY(GRAY(GRAY(GRAY(GRAY(GRAY(GRAY(GRAY(GRAY(GRAY(GRAY(GRAY(GRAY(GRAY(GRAY(M480)))))))))))))))","v":478}]
[null,null,null,null,null,null,null,null,null,null,null,"100110000",304,null,null,null,null,null,{"$f":"GRAY(GRAY(GRAY(GRAY(GRAY(GRAY(GRAY(M481)))))))","v":478},null,null,null,null,null,null,null,{"$f":"GRAY(GRAY(GRAY(GRAY(GRAY(GRAY(GRAY(GRAY(GRAY(GRAY(GRAY(GRAY(GRAY(GRAY(GRAY(M481)))))))))))))))","v":479}]
[null,null,null,null,null,null,null,null,null,null,null,"100010000",272,null,null,null,null,null,{"$f":"GRAY(GRAY(GRAY(GRAY(GRAY(GRAY(GRAY(M482)))))))","v":481},null,null,null,null,null,null,null,{"$f":"GRAY(GRAY(GRAY(GRAY(GRAY(GRAY(GRAY(GRAY(GRAY(GRAY(GRAY(GRAY(GRAY(GRAY(GRAY(M482)))))))))))))))","v":480}]
[null,null,null,null,null,null,null,null,null,null,null,"100010001",273,null,null,null,null,null,{"$f":"GRAY(GRAY(GRAY(GRAY(GRAY(GRAY(GRAY(M483)))))))","v":480},null,null,null,null,null,null,null,{"$f":"GRAY(GRAY(GRAY(GRAY(GRAY(GRAY(GRAY(GRAY(GRAY(GRAY(GRAY(GRAY(GRAY(GRAY(GRAY(M483)))))))))))))))","v":481}]
[null,null,null,null,null,null,null,null,null,null,null,"100010011",275,null,null,null,null,null,{"$f":"GRAY(GRAY(GRAY(GRAY(GRAY(GRAY(GRAY(M484)))))))","v":483},null,null,null,null,null,null,null,{"$f":"GRAY(GRAY(GRAY(GRAY(GRAY(GRAY(GRAY(GRAY(GRAY(GRAY(GRAY(GRAY(GRAY(GRAY(GRAY(M484)))))))))))))))","v":482}]
[null,null,null,null,null,null,null,null,null,null,null,"100010010",274,null,null,null,null,null,{"$f":"GRAY(GRAY(GRAY(GRAY(GRAY(GRAY(GRAY(M485)))))))","v":482},null,null,null,null,null,null,null,{"$f":"GRAY(GRAY(GRAY(GRAY(GRAY(GRAY(GRAY(GRAY(GRAY(GRAY(GRAY(GRAY(GRAY(GRAY(GRAY(M485)))))))))))))))","v":483}]
[null,null,null,null,null,null,null,null,null,null,null,"100010110",278,null,null,null,null,null,{"$f":"GRAY(GRAY(GRAY(GRAY(GRAY(GRAY(GRAY(M486)))))))","v":485},null,null,null,null,null,null,null,{"$f":"GRAY(GRAY(GRAY(GRAY(GRAY(GRAY(GRAY(GRAY(GRAY(GRAY(GRAY(GRAY(GRAY(GRAY(GRAY(M486)))))))))))))))","v":484}]
[null,null,null,null,null,null,null,null,null,null,null,"100010111",279,null,null,null,null,null,{"$f":"GRAY(GRAY(GRAY(GRAY(GRAY(GRAY(GRAY(M487)))))))","v":484},null,null,null,null,null,null,null,{"$f":"GRAY(GRAY(GRAY(GRAY(GRAY(GRAY(GRAY(GRAY(GRAY(GRAY(GRAY(GRAY(GRAY(GRAY(GRAY(M487)))))))))))))))","v":485}]
[null,null,null,null,null,null,null,null,null,null,null,"100010101",277,null,null,null,null,null,{"$f":"GRAY(GRAY(GRAY(GRAY(GRAY(GRAY(GRAY(M488)))))))","v":487},null,null,null,null,null,null,null,{"$f":"GRAY(GRAY(GRAY(GRAY(GRAY(GRAY(GRAY(GRAY(GRAY(GRAY(GRAY(GRAY(GRAY(GRAY(GRAY(M488)))))))))))))))","v":486}]
[null,null,null,null,null,null,null,null,null,null,null,"100010100",276,null,null,null,null,null,{"$f":"GRAY(GRAY(GRAY(GRAY(GRAY(GRAY(GRAY(M489)))))))","v":486},null,null,null,null,null,null,null,{"$f":"GRAY(GRAY(GRAY(GRAY(GRAY(GRAY(GRAY(GRAY(GRAY(GRAY(GRAY(GRAY(GRAY(GRAY(GRAY(M489)))))))))))))))","v":487}]
[null,null,null,null,null,null,null,null,null,null,null,"100011100",284,null,null,null,null,null,{"$f":"GRAY(GRAY(GRAY(GRAY(GRAY(GRAY(GRAY(M490)))))))","v":489},null,null,null,null,null,null,null,{"$f":"GRAY(GRAY(GRAY(GRAY(GRAY(GRAY(GRAY(GRAY(GRAY(GRAY(GRAY(GRAY(GRAY(GRAY(GRAY(M490)))))))))))))))","v":488}]
[null,null,null,null,null,null,null,null,null,null,null,"100011101",285,null,null,null,null,null,{"$f":"GRAY(GRAY(GRAY(GRAY(GRAY(GRAY(GRAY(M491)))))))","v":488},null,null,null,null,null,null,null,{"$f":"GRAY(GRAY(GRAY(GRAY(GRAY(GRAY(GRAY(GRAY(GRAY(GRAY(GRAY(GRAY(GRAY(GRAY(GRAY(M491)))))))))))))))","v":489}]
[null,null,null,null,null,null,null,null,null,null,null,"100011111",287,null,null,null,null,null,{"$f":"GRAY(GRAY(GRAY(GRAY(GRAY(GRAY(GRAY(M492)))))))","v":491},null,null,null,null,null,null,null,{"$f":"GRAY(GRAY(GRAY(GRAY(GRAY(GRAY(GRAY(GRAY(GRAY(GRAY(GRAY(GRAY(GRAY(GRAY(GRAY(M492)))))))))))))))","v":490}]
[null,null,null,null,null,null,null,null,null,null,null,"100011110",286,null,null,null,null,null,{"$f":"GRAY(GRAY(GRAY(GRAY(GRAY(GRAY(GRAY(M493)))))))","v":490},null,null,null,null,null,null,null,{"$f":"GRAY(GRAY(GRAY(GRAY(GRAY(GRAY(GRAY(GRAY(GRAY(GRAY(GRAY(GRAY(GRAY(GRAY(GRAY(M493)))))))))))))))","v":491}]
[null,null,null,null,null,null,null,null,null,null,null,"100011010",282,null,null,null,null,null,{"$f":"GRAY(GRAY(GRAY(GRAY(GRAY(GRAY(GRAY(M494)))))))","v":493},null,null,null,null,null,null,null,{"$f":"GRAY(GRAY(GRAY(GRAY(GRAY(GRAY(GRAY(GRAY(GRAY(GRAY(GRAY(GRAY(GRAY(GRAY(GRAY(M494)))))))))))))))","v":492}]
[null,null,null,null,null,null,null,null,null,null,null,"100011011",283,null,null,null,null,null,{"$f":"GRAY(GRAY(GRAY(GRAY(GRAY(GRAY(GRAY(M495)))))))","v":492},null,null,null,null,null,null,null,{"$f":"GRAY(GRAY(GRAY(GRAY(GRAY(GRAY(GRAY(GRAY(GRAY(GRAY(GRAY(GRAY(GRAY(GRAY(GRAY(M495)))))))))))))))","v":493}]
[null,null,null,null,null,null,null,null,null,null,null,"100011001",281,null,null,null,null,null,{"$f":"GRAY(GRAY(GRAY(GRAY(GRAY(GRAY(GRAY(M496)))))))","v":495},null,null,null,null,null,null,null,{"$f":"GRAY(GRAY(GRAY(GRAY(GRAY(GRAY(GRAY(GRAY(GRAY(GRAY(GRAY(GRAY(GRAY(GRAY(GRAY(M496)))))))))))))))","v":494}]
[null,null,null,null,null,null,null,null,null,null,null,"100011000",280,null,null,null,null,null,{"$f":"GRAY(GRAY(GRAY(GRAY(GRAY(GRAY(GRAY(M497)))))))","v":494},null,null,null,null,null,null,null,{"$f":"GRAY(GRAY(GRAY(GRAY(GRAY(GRAY(GRAY(GRAY(GRAY(GRAY(GRAY(GRAY(GRAY(GRAY(GRAY(M497)))))))))))))))","v":495}]
[null,null,null,null,null,null,null,null,null,null,null,"100001000",264,null,null,null,null,null,{"$f":"GRAY(GRAY(GRAY(GRAY(GRAY(GRAY(GRAY(M498)))))))","v":497},null,null,null,null,null,null,null,{"$f":"GRAY(GRAY(GRAY(GRAY(GRAY(GRAY(GRAY(GRAY(GRAY(GRAY(GRAY(GRAY(GRAY(GRAY(GRAY(M498)))))))))))))))","v":496}]
[null,null,null,null,null,null,null,null,null,null,null,"100001001",265,null,null,null,null,null,{"$f":"GRAY(GRAY(GRAY(GRAY(GRAY(GRAY(GRAY(M499)))))))","v":496},null,null,null,null,null,null,null,{"$f":"GRAY(GRAY(GRAY(GRAY(GRAY(GRAY(GRAY(GRAY(GRAY(GRAY(GRAY(GRAY(GRAY(GRAY(GRAY(M499)))))))))))))))","v":497}]
[null,null,null,null,null,null,null,null,null,null,null,"100001011",267,null,null,null,null,null,{"$f":"GRAY(GRAY(GRAY(GRAY(GRAY(GRAY(GRAY(M500)))))))","v":499},null,null,null,null,null,null,null,{"$f":"GRAY(GRAY(GRAY(GRAY(GRAY(GRAY(GRAY(GRAY(GRAY(GRAY(GRAY(GRAY(GRAY(GRAY(GRAY(M500)))))))))))))))","v":498}]
[null,null,null,null,null,null,null,null,null,null,null,"100001010",266,null,null,null,null,null,{"$f":"GRAY(GRAY(GRAY(GRAY(GRAY(GRAY(GRAY(M501)))))))","v":498},null,null,null,null,null,null,null,{"$f":"GRAY(GRAY(GRAY(GRAY(GRAY(GRAY(GRAY(GRAY(GRAY(GRAY(GRAY(GRAY(GRAY(GRAY(GRAY(M501)))))))))))))))","v":499}]
[null,null,null,null,null,null,null,null,null,null,null,"100001110",270,null,null,null,null,null,{"$f":"GRAY(GRAY(GRAY(GRAY(GRAY(GRAY(GRAY(M502)))))))","v":501},null,null,null,null,null,null,null,{"$f":"GRAY(GRAY(GRAY(GRAY(GRAY(GRAY(GRAY(GRAY(GRAY(GRAY(GRAY(GRAY(GRAY(GRAY(GRAY(M502)))))))))))))))","v":500}]
[null,null,null,null,null,null,null,null,null,null,null,"100001111",271,null,null,null,null,null,{"$f":"GRAY(GRAY(GRAY(GRAY(GRAY(GRAY(GRAY(M503)))))))","v":500},null,null,null,null,null,null,null,{"$f":"GRAY(GRAY(GRAY(GRAY(GRAY(GRAY(GRAY(GRAY(GRAY(GRAY(GRAY(GRAY(GRAY(GRAY(GRAY(M503)))))))))))))))","v":501}]
[null,null,null,null,null,null,null,null,null,null,null,"100001101",269,null,null,null,null,null,{"$f":"GRAY(GRAY(GRAY(GRAY(GRAY(GRAY(GRAY(M504)))))))","v":503},null,null,null,null,null,null,null,{"$f":"GRAY(GRAY(GRAY(GRAY(GRAY(GRAY(GRAY(GRAY(GRAY(GRAY(GRAY(GRAY(GRAY(GRAY(GRAY(M504)))))))))))))))","v":502}]
[null,null,null,null,null,null,null,null,null,null,null,"100001100",268,null,null,null,null,null,{"$f":"GRAY(GRAY(GRAY(GRAY(GRAY(GRAY(GRAY(M505)))))))","v":502},null,null,null,null,null,null,null,{"$f":"GRAY(GRAY(GRAY(GRAY(GRAY(GRAY(GRAY(GRAY(GRAY(GRAY(GRAY(GRAY(GRAY(GRAY(GRAY(M505)))))))))))))))","v":503}]
[null,null,null,null,null,null,null,null,null,null,null,"100000100",260,null,null,null,null,null,{"$f":"GRAY(GRAY(GRAY(GRAY(GRAY(GRAY(GRAY(M506)))))))","v":505},null,null,null,null,null,null,null,{"$f":"GRAY(GRAY(GRAY(GRAY(GRAY(GRAY(GRAY(GRAY(GRAY(GRAY(GRAY(GRAY(GRAY(GRAY(GRAY(M506)))))))))))))))","v":504}]
[null,null,null,null,null,null,null,null,null,null,null,"100000101",261,null,null,null,null,null,{"$f":"GRAY(GRAY(GRAY(GRAY(GRAY(GRAY(GRAY(M507)))))))","v":504},null,null,null,null,null,null,null,{"$f":"GRAY(GRAY(GRAY(GRAY(GRAY(GRAY(GRAY(GRAY(GRAY(GRAY(GRAY(GRAY(GRAY(GRAY(GRAY(M507)))))))))))))))","v":505}]
[null,null,null,null,null,null,null,null,null,null,null,"100000111",263,null,null,null,null,null,{"$f":"GRAY(GRAY(GRAY(GRAY(GRAY(GRAY(GRAY(M508)))))))","v":507},null,null,null,null,null,null,null,{"$f":"GRAY(GRAY(GRAY(GRAY(GRAY(GRAY(GRAY(GRAY(GRAY(GRAY(GRAY(GRAY(GRAY(GRAY(GRAY(M508)))))))))))))))","v":506}]
[null,null,null,null,null,null,null,null,null,null,null,"100000110",262,null,null,null,null,null,{"$f":"GRAY(GRAY(GRAY(GRAY(GRAY(GRAY(GRAY(M509)))))))","v":506},null,null,null,null,null,null,null,{"$f":"GRAY(GRAY(GRAY(GRAY(GRAY(GRAY(GRAY(GRAY(GRAY(GRAY(GRAY(GRAY(GRAY(GRAY(GRAY(M509)))))))))))))))","v":507}]
[null,null,null,null,null,null,null,null,null,null,null,"100000010",258,null,null,null,null,null,{"$f":"GRAY(GRAY(GRAY(GRAY(GRAY(GRAY(GRAY(M510)))))))","v":509},null,null,null,null,null,null,null,{"$f":"GRAY(GRAY(GRAY(GRAY(GRAY(GRAY(GRAY(GRAY(GRAY(GRAY(GRAY(GRAY(GRAY(GRAY(GRAY(M510)))))))))))))))","v":508}]
[null,null,null,null,null,null,null,null,null,null,null,"100000011",259,null,null,null,null,null,{"$f":"GRAY(GRAY(GRAY(GRAY(GRAY(GRAY(GRAY(M511)))))))","v":508},null,null,null,null,null,null,null,{"$f":"GRAY(GRAY(GRAY(GRAY(GRAY(GRAY(GRAY(GRAY(GRAY(GRAY(GRAY(GRAY(GRAY(GRAY(GRAY(M511)))))))))))))))","v":509}]
[null,null,null,null,null,null,null,null,null,null,null,"100000001",257,null,null,null,null,null,{"$f":"GRAY(GRAY(GRAY(GRAY(GRAY(GRAY(GRAY(M512)))))))","v":511},null,null,null,null,null,null,null,{"$f":"GRAY(GRAY(GRAY(GRAY(GRAY(GRAY(GRAY(GRAY(GRAY(GRAY(GRAY(GRAY(GRAY(GRAY(GRAY(M512)))))))))))))))","v":510}]
[null,null,null,null,null,null,null,null,null,null,null,"100000000",256,null,null,null,null,null,{"$f":"GRAY(GRAY(GRAY(GRAY(GRAY(GRAY(GRAY(M513)))))))","v":510},null,null,null,null,null,null,null,{"$f":"GRAY(GRAY(GRAY(GRAY(GRAY(GRAY(GRAY(GRAY(GRAY(GRAY(GRAY(GRAY(GRAY(GRAY(GRAY(M513)))))))))))))))","v":511}]
[null,null,null,null,null,null,null,null,null,null,null,"1100000000",-256]
[null,null,null,null,null,null,null,null,null,null,null,"1100000001",{"$f":"BIN2DEC(L515)","v":-255}]
[null,null,null,null,null,null,null,null,null,null,null,"1100000011",-253]
[null,null,null,null,null,null,null,null,null,null,null,"1100000010",-254]
[null,null,null,null,null,null,null,null,null,null,null,"1100000110",-250]
[null,null,null,null,null,null,null,null,null,null,null,"1100000111",-249]
[null,null,null,null,null,null,null,null,null,null,null,"1100000101",-251]
[null,null,null,null,null,null,null,null,null,null,null,"1100000100",-252]
[null,null,null,null,null,null,null,null,null,null,null,"1100001100",-244]
[null,null,null,null,null,null,null,null,null,null,null,"1100001101",-243]
[null,null,null,null,null,null,null,null,null,null,null,"1100001111",-241]
[null,null,null,null,null,null,null,null,null,null,null,"1100001110",-242]
[null,null,null,null,null,null,null,null,null,null,null,"1100001010",-246]
[null,null,null,null,null,null,null,null,null,null,null,"1100001011",-245]
[null,null,null,null,null,null,null,null,null,null,null,"1100001001",-247]
[null,null,null,null,null,null,null,null,null,null,null,"1100001000",-248]
[null,null,null,null,null,null,null,null,null,null,null,"1100011000",-232]
[null,null,null,null,null,null,null,null,null,null,null,"1100011001",-231]
[null,null,null,null,null,null,null,null,null,null,null,"1100011011",-229]
[null,null,null,null,null,null,null,null,null,null,null,"1100011010",-230]
[null,null,null,null,null,null,null,null,null,null,null,"1100011110",-226]
[null,null,null,null,null,null,null,null,null,null,null,"1100011111",-225]
[null,null,null,null,null,null,null,null,null,null,null,"1100011101",-227]
[null,null,null,null,null,null,null,null,null,null,null,"1100011100",-228]
[null,null,null,null,null,null,null,null,null,null,null,"1100010100",-236]
[null,null,null,null,null,null,null,null,null,null,null,"1100010101",-235]
[null,null,null,null,null,null,null,null,null,null,null,"1100010111",-233]
[null,null,null,null,null,null,null,null,null,null,null,"1100010110",-234]
[null,null,null,null,null,null,null,null,null,null,null,"1100010010",-238]
[null,null,null,null,null,null,null,null,null,null,null,"1100010011",-237]
[null,null,null,null,null,null,null,null,null,null,null,"1100010001",-239]
[null,null,null,null,null,null,null,null,null,null,null,"1100010000",-240]
[null,null,null,null,null,null,null,null,null,null,null,"1100110000",-208]
[null,null,null,null,null,null,null,null,null,null,null,"1100110001",-207]
[null,null,null,null,null,null,null,null,null,null,null,"1100110011",-205]
[null,null,null,null,null,null,null,null,null,null,null,"1100110010",-206]
[null,null,null,null,null,null,null,null,null,null,null,"1100110110",-202]
[null,null,null,null,null,null,null,null,null,null,null,"1100110111",-201]
[null,null,null,null,null,null,null,null,null,null,null,"1100110101",-203]
[null,null,null,null,null,null,null,null,null,null,null,"1100110100",-204]
[null,null,null,null,null,null,null,null,null,null,null,"1100111100",-196]
[null,null,null,null,null,null,null,null,null,null,null,"1100111101",-195]
[null,null,null,null,null,null,null,null,null,null,null,"1100111111",-193]
[null,null,null,null,null,null,null,null,null,null,null,"1100111110",-194]
[null,null,null,null,null,null,null,null,null,null,null,"1100111010",-198]
[null,null,null,null,null,null,null,null,null,null,null,"1100111011",-197]
[null,null,null,null,null,null,null,null,null,null,null,"1100111001",-199]
[null,null,null,null,null,null,null,null,null,null,null,"1100111000",-200]
[null,null,null,null,null,null,null,null,null,null,null,"1100101000",-216]
[null,null,null,null,null,null,null,null,null,null,null,"1100101001",-215]
[null,null,null,null,null,null,null,null,null,null,null,"1100101011",-213]
[null,null,null,null,null,null,null,null,null,null,null,"1100101010",-214]
[null,null,null,null,null,null,null,null,null,null,null,"1100101110",-210]
[null,null,null,null,null,null,null,null,null,null,null,"1100101111",-209]
[null,null,null,null,null,null,null,null,null,null,null,"1100101101",-211]
[null,null,null,null,null,null,null,null,null,null,null,"1100101100",-212]
[null,null,null,null,null,null,null,null,null,null,null,"1100100100",-220]
[null,null,null,null,null,null,null,null,null,null,null,"1100100101",-219]
[null,null,null,null,null,null,null,null,null,null,null,"1100100111",-217]
[null,null,null,null,null,null,null,null,null,null,null,"1100100110",-218]
[null,null,null,null,null,null,null,null,null,null,null,"1100100010",-222]
[null,null,null,null,null,null,null,null,null,null,null,"1100100011",-221]
[null,null,null,null,null,null,null,null,null,null,null,"1100100001",-223]
[null,null,null,null,null,null,null,null,null,null,null,"1100100000",-224]
[null,null,null,null,null,null,null,null,null,null,null,"1101100000",-160]
[null,null,null,null,null,null,null,null,null,null,null,"1101100001",{"$f":"BIN2DEC(L579)","v":-159}]
[null,null,null,null,null,null,null,null,null,null,null,"1101100011",-157]
[null,null,null,null,null,null,null,null,null,null,null,"1101100010",-158]
[null,null,null,null,null,null,null,null,null,null,null,"1101100110",-154]
[null,null,null,null,null,null,null,null,null,null,null,"1101100111",-153]
[null,null,null,null,null,null,null,null,null,null,null,"1101100101",-155]
[null,null,null,null,null,null,null,null,null,null,null,"1101100100",-156]
[null,null,null,null,null,null,null,null,null,null,null,"1101101100",-148]
[null,null,null,null,null,null,null,null,null,null,null,"1101101101",-147]
[null,null,null,null,null,null,null,null,null,null,null,"1101101111",-145]
[null,null,null,null,null,null,null,null,null,null,null,"1101101110",-146]
[null,null,null,null,null,null,null,null,null,null,null,"1101101010",-150]
[null,null,null,null,null,null,null,null,null,null,null,"1101101011",-149]
[null,null,null,null,null,null,null,null,null,null,null,"1101101001",-151]
[null,null,null,null,null,null,null,null,null,null,null,"1101101000",-152]
[null,null,null,null,null,null,null,null,null,null,null,"1101111000",-136]
[null,null,null,null,null,null,null,null,null,null,null,"1101111001",-135]
[null,null,null,null,null,null,null,null,null,null,null,"1101111011",-133]
[null,null,null,null,null,null,null,null,null,null,null,"1101111010",-134]
[null,null,null,null,null,null,null,null,null,null,null,"1101111110",-130]
[null,null,null,null,null,null,null,null,null,null,null,"1101111111",-129]
[null,null,null,null,null,null,null,null,null,null,null,"1101111101",-131]
[null,null,null,null,null,null,null,null,null,null,null,"1101111100",-132]
[null,null,null,null,null,null,null,null,null,null,null,"1101110100",-140]
[null,null,null,null,null,null,null,null,null,null,null,"1101110101",-139]
[null,null,null,null,null,null,null,null,null,null,null,"1101110111",-137]
[null,null,null,null,null,null,null,null,null,null,null,"1101110110",-138]
[null,null,null,null,null,null,null,null,null,null,null,"1101110010",-142]
[null,null,null,null,null,null,null,null,null,null,null,"1101110011",-141]
[null,null,null,null,null,null,null,null,null,null,null,"1101110001",-143]
[null,null,null,null,null,null,null,null,null,null,null,"1101110000",-144]
[null,null,null,null,null,null,null,null,null,null,null,"1101010000",-176]
[null,null,null,null,null,null,null,null,null,null,null,"1101010001",-175]
[null,null,null,null,null,null,null,null,null,null,null,"1101010011",-173]
[null,null,null,null,null,null,null,null,null,null,null,"1101010010",-174]
[null,null,null,null,null,null,null,null,null,null,null,"1101010110",-170]
[null,null,null,null,null,null,null,null,null,null,null,"1101010111",-169]
[null,null,null,null,null,null,null,null,null,null,null,"1101010101",-171]
[null,null,null,null,null,null,null,null,null,null,null,"1101010100",-172]
[null,null,null,null,null,null,null,null,null,null,null,"1101011100",-164]
[null,null,null,null,null,null,null,null,null,null,null,"1101011101",-163]
[null,null,null,null,null,null,null,null,null,null,null,"1101011111",-161]
[null,null,null,null,null,null,null,null,null,null,null,"1101011110",-162]
[null,null,null,null,null,null,null,null,null,null,null,"1101011010",-166]
[null,null,null,null,null,null,null,null,null,null,null,"1101011011",-165]
[null,null,null,null,null,null,null,null,null,null,null,"1101011001",-167]
[null,null,null,null,null,null,null,null,null,null,null,"1101011000",-168]
[null,null,null,null,null,null,null,null,null,null,null,"1101001000",-184]
[null,null,null,null,null,null,null,null,null,null,null,"1101001001",-183]
[null,null,null,null,null,null,null,null,null,null,null,"1101001011",-181]
[null,null,null,null,null,null,null,null,null,null,null,"1101001010",-182]
[null,null,null,null,null,null,null,null,null,null,null,"1101001110",-178]
[null,null,null,null,null,null,null,null,null,null,null,"1101001111",-177]
[null,null,null,null,null,null,null,null,null,null,null,"1101001101",-179]
[null,null,null,null,null,null,null,null,null,null,null,"1101001100",-180]
[null,null,null,null,null,null,null,null,null,null,null,"1101000100",-188]
[null,null,null,null,null,null,null,null,null,null,null,"1101000101",-187]
[null,null,null,null,null,null,null,null,null,null,null,"1101000111",-185]
[null,null,null,null,null,null,null,null,null,null,null,"1101000110",-186]
[null,null,null,null,null,null,null,null,null,null,null,"1101000010",-190]
[null,null,null,null,null,null,null,null,null,null,null,"1101000011",-189]
[null,null,null,null,null,null,null,null,null,null,null,"1101000001",-191]
[null,null,null,null,null,null,null,null,null,null,null,"1101000000",-192]
[null,null,null,null,null,null,null,null,null,null,null,"1111000000",-64]
[null,null,null,null,null,null,null,null,null,null,null,"1111000001",{"$f":"BIN2DEC(L643)","v":-63}]
[null,null,null,null,null,null,null,null,null,null,null,"1111000011",-61]
[null,null,null,null,null,null,null,null,null,null,null,"1111000010",-62]
[null,null,null,null,null,null,null,null,null,null,null,"1111000110",-58]
[null,null,null,null,null,null,null,null,null,null,null,"1111000111",-57]
[null,null,null,null,null,null,null,null,null,null,null,"1111000101",-59]
[null,null,null,null,null,null,null,null,null,null,null,"1111000100",-60]
[null,null,null,null,null,null,null,null,null,null,null,"1111001100",-52]
[null,null,null,null,null,null,null,null,null,null,null,"1111001101",-51]
[null,null,null,null,null,null,null,null,null,null,null,"1111001111",-49]
[null,null,null,null,null,null,null,null,null,null,null,"1111001110",-50]
[null,null,null,null,null,null,null,null,null,null,null,"1111001010",-54]
[null,null,null,null,null,null,null,null,null,null,null,"1111001011",-53]
[null,null,null,null,null,null,null,null,null,null,null,"1111001001",-55]
[null,null,null,null,null,null,null,null,null,null,null,"1111001000",-56]
[null,null,null,null,null,null,null,null,null,null,null,"1111011000",-40]
[null,null,null,null,null,null,null,null,null,null,null,"1111011001",-39]
[null,null,null,null,null,null,null,null,null,null,null,"1111011011",-37]
[null,null,null,null,null,null,null,null,null,null,null,"1111011010",-38]
[null,null,null,null,null,null,null,null,null,null,null,"1111011110",-34]
[null,null,null,null,null,null,null,null,null,null,null,"1111011111",-33]
[null,null,null,null,null,null,null,null,null,null,null,"1111011101",-35]
[null,null,null,null,null,null,null,null,null,null,null,"1111011100",-36]
[null,null,null,null,null,null,null,null,null,null,null,"1111010100",-44]
[null,null,null,null,null,null,null,null,null,null,null,"1111010101",-43]
[null,null,null,null,null,null,null,null,null,null,null,"1111010111",-41]
[null,null,null,null,null,null,null,null,null,null,null,"1111010110",-42]
[null,null,null,null,null,null,null,null,null,null,null,"1111010010",-46]
[null,null,null,null,null,null,null,null,null,null,null,"1111010011",-45]
[null,null,null,null,null,null,null,null,null,null,null,"1111010001",-47]
[null,null,null,null,null,null,null,null,null,null,null,"1111010000",-48]
[null,null,null,null,null,null,null,null,null,null,null,"1111110000",-16]
[null,null,null,null,null,null,null,null,null,null,null,"1111110001",-15]
[null,null,null,null,null,null,null,null,null,null,null,"1111110011",-13]
[null,null,null,null,null,null,null,null,null,null,null,"1111110010",-14]
[null,null,null,null,null,null,null,null,null,null,null,"1111110110",-10]
[null,null,null,null,null,null,null,null,null,null,null,"1111110111",-9]
[null,null,null,null,null,null,null,null,null,null,null,"1111110101",-11]
[null,null,null,null,null,null,null,null,null,null,null,"1111110100",-12]
[null,null,null,null,null,null,null,null,null,null,null,"1111111100",-4]
[null,null,null,null,null,null,null,null,null,null,null,"1111111101",-3]
[null,null,null,null,null,null,null,null,null,null,null,"1111111111",-1]
[null,null,null,null,null,null,null,null,null,null,null,"1111111110",-2]
[null,null,null,null,null,null,null,null,null,null,null,"1111111010",-6]
[null,null,null,null,null,null,null,null,null,null,null,"1111111011",-5]
[null,null,null,null,null,null,null,null,null,null,null,"1111111001",-7]
[null,null,null,null,null,null,null,null,null,null,null,"1111111000",-8]
[null,null,null,null,null,null,null,null,null,null,null,"1111101000",-24]
[null,null,null,null,null,null,null,null,null,null,null,"1111101001",-23]
[null,null,null,null,null,null,null,null,null,null,null,"1111101011",-21]
[null,null,null,null,null,null,null,null,null,null,null,"1111101010",-22]
[null,null,null,null,null,null,null,null,null,null,null,"1111101110",-18]
[null,null,null,null,null,null,null,null,null,null,null,"1111101111",-17]
[null,null,null,null,null,null,null,null,null,null,null,"1111101101",-19]
[null,null,null,null,null,null,null,null,null,null,null,"1111101100",-20]
[null,null,null,null,null,null,null,null,null,null,null,"1111100100",-28]
[null,null,null,null,null,null,null,null,null,null,null,"1111100101",-27]
[null,null,null,null,null,null,null,null,null,null,null,"1111100111",-25]
[null,null,null,null,null,null,null,null,null,null,null,"1111100110",-26]
[null,null,null,null,null,null,null,null,null,null,null,"1111100010",-30]
[null,null,null,null,null,null,null,null,null,null,null,"1111100011",-29]
[null,null,null,null,null,null,null,null,null,null,null,"1111100001",-31]
[null,null,null,null,null,null,null,null,null,null,null,"1111100000",-32]
[null,null,null,null,null,null,null,null,null,null,null,"1110100000",-96]
[null,null,null,null,null,null,null,null,null,null,null,"1110100001",{"$f":"BIN2DEC(L707)","v":-95}]
[null,null,null,null,null,null,null,null,null,null,null,"1110100011",-93]
[null,null,null,null,null,null,null,null,null,null,null,"1110100010",-94]
[null,null,null,null,null,null,null,null,null,null,null,"1110100110",-90]
[null,null,null,null,null,null,null,null,null,null,null,"1110100111",-89]
[null,null,null,null,null,null,null,null,null,null,null,"1110100101",-91]
[null,null,null,null,null,null,null,null,null,null,null,"1110100100",-92]
[null,null,null,null,null,null,null,null,null,null,null,"1110101100",-84]
[null,null,null,null,null,null,null,null,null,null,null,"1110101101",-83]
[null,null,null,null,null,null,null,null,null,null,null,"1110101111",-81]
[null,null,null,null,null,null,null,null,null,null,null,"1110101110",-82]
[null,null,null,null,null,null,null,null,null,null,null,"1110101010",-86]
[null,null,null,null,null,null,null,null,null,null,null,"1110101011",-85]
[null,null,null,null,null,null,null,null,null,null,null,"1110101001",-87]
[null,null,null,null,null,null,null,null,null,null,null,"1110101000",-88]
[null,null,null,null,null,null,null,null,null,null,null,"1110111000",-72]
[null,null,null,null,null,null,null,null,null,null,null,"1110111001",-71]
[null,null,null,null,null,null,null,null,null,null,null,"1110111011",-69]
[null,null,null,null,null,null,null,null,null,null,null,"1110111010",-70]
[null,null,null,null,null,null,null,null,null,null,null,"1110111110",-66]
[null,null,null,null,null,null,null,null,null,null,null,"1110111111",-65]
[null,null,null,null,null,null,null,null,null,null,null,"1110111101",-67]
[null,null,null,null,null,null,null,null,null,null,null,"1110111100",-68]
[null,null,null,null,null,null,null,null,null,null,null,"1110110100",-76]
[null,null,null,null,null,null,null,null,null,null,null,"1110110101",-75]
[null,null,null,null,null,null,null,null,null,null,null,"1110110111",-73]
[null,null,null,null,null,null,null,null,null,null,null,"1110110110",-74]
[null,null,null,null,null,null,null,null,null,null,null,"1110110010",-78]
[null,null,null,null,null,null,null,null,null,null,null,"1110110011",-77]
[null,null,null,null,null,null,null,null,null,null,null,"1110110001",-79]
[null,null,null,null,null,null,null,null,null,null,null,"1110110000",-80]
[null,null,null,null,null,null,null,null,null,null,null,"1110010000",-112]
[null,null,null,null,null,null,null,null,null,null,null,"1110010001",-111]
[null,null,null,null,null,null,null,null,null,null,null,"1110010011",-109]
[null,null,null,null,null,null,null,null,null,null,null,"1110010010",-110]
[null,null,null,null,null,null,null,null,null,null,null,"1110010110",-106]
[null,null,null,null,null,null,null,null,null,null,null,"1110010111",-105]
[null,null,null,null,null,null,null,null,null,null,null,"1110010101",-107]
[null,null,null,null,null,null,null,null,null,null,null,"1110010100",-108]
[null,null,null,null,null,null,null,null,null,null,null,"1110011100",-100]
[null,null,null,null,null,null,null,null,null,null,null,"1110011101",-99]
[null,null,null,null,null,null,null,null,null,null,null,"1110011111",-97]
[null,null,null,null,null,null,null,null,null,null,null,"1110011110",-98]
[null,null,null,null,null,null,null,null,null,null,null,"1110011010",-102]
[null,null,null,null,null,null,null,null,null,null,null,"1110011011",-101]
[null,null,null,null,null,null,null,null,null,null,null,"1110011001",-103]
[null,null,null,null,null,null,null,null,null,null,null,"1110011000",-104]
[null,null,null,null,null,null,null,null,null,null,null,"1110001000",-120]
[null,null,null,null,null,null,null,null,null,null,null,"1110001001",-119]
[null,null,null,null,null,null,null,null,null,null,null,"1110001011",-117]
[null,null,null,null,null,null,null,null,null,null,null,"1110001010",-118]
[null,null,null,null,null,null,null,null,null,null,null,"1110001110",-114]
[null,null,null,null,null,null,null,null,null,null,null,"1110001111",-113]
[null,null,null,null,null,null,null,null,null,null,null,"1110001101",-115]
[null,null,null,null,null,null,null,null,null,null,null,"1110001100",-116]
[null,null,null,null,null,null,null,null,null,null,null,"1110000100",-124]
[null,null,null,null,null,null,null,null,null,null,null,"1110000101",-123]
[null,null,null,null,null,null,null,null,null,null,null,"1110000111",-121]
[null,null,null,null,null,null,null,null,null,null,null,"1110000110",-122]
[null,null,null,null,null,null,null,null,null,null,null,"1110000010",-126]
[null,null,null,null,null,null,null,null,null,null,null,"1110000011",-125]
[null,null,null,null,null,null,null,null,null,null,null,"1110000001",-127]
[null,null,null,null,null,null,null,null,null,null,null,"1110000000",-128]
[null,null,null,null,null,null,null,null,null,null,null,"1010000000",-384]
[null,null,null,null,null,null,null,null,null,null,null,"1010000001",{"$f":"BIN2DEC(L771)","v":-383}]
[null,null,null,null,null,null,null,null,null,null,null,"1010000011",-381]
[null,null,null,null,null,null,null,null,null,null,null,"1010000010",-382]
[null,null,null,null,null,null,null,null,null,null,null,"1010000110",-378]
[null,null,null,null,null,null,null,null,null,null,null,"1010000111",-377]
[null,null,null,null,null,null,null,null,null,null,null,"1010000101",-379]
[null,null,null,null,null,null,null,null,null,null,null,"1010000100",-380]
[null,null,null,null,null,null,null,null,null,null,null,"1010001100",-372]
[null,null,null,null,null,null,null,null,null,null,null,"1010001101",-371]
[null,null,null,null,null,null,null,null,null,null,null,"1010001111",-369]
[null,null,null,null,null,null,null,null,null,null,null,"1010001110",-370]
[null,null,null,null,null,null,null,null,null,null,null,"1010001010",-374]
[null,null,null,null,null,null,null,null,null,null,null,"1010001011",-373]
[null,null,null,null,null,null,null,null,null,null,null,"1010001001",-375]
[null,null,null,null,null,null,null,null,null,null,null,"1010001000",-376]
[null,null,null,null,null,null,null,null,null,null,null,"1010011000",-360]
[null,null,null,null,null,null,null,null,null,null,null,"1010011001",-359]
[null,null,null,null,null,null,null,null,null,null,null,"1010011011",-357]
[null,null,null,null,null,null,null,null,null,null,null,"1010011010",-358]
[null,null,null,null,null,null,null,null,null,null,null,"1010011110",-354]
[null,null,null,null,null,null,null,null,null,null,null,"1010011111",-353]
[null,null,null,null,null,null,null,null,null,null,null,"1010011101",-355]
[null,null,null,null,null,null,null,null,null,null,null,"1010011100",-356]
[null,null,null,null,null,null,null,null,null,null,null,"1010010100",-364]
[null,null,null,null,null,null,null,null,null,null,null,"1010010101",-363]
[null,null,null,null,null,null,null,null,null,null,null,"1010010111",-361]
[null,null,null,null,null,null,null,null,null,null,null,"1010010110",-362]
[null,null,null,null,null,null,null,null,null,null,null,"1010010010",-366]
[null,null,null,null,null,null,null,null,null,null,null,"1010010011",-365]
[null,null,null,null,null,null,null,null,null,null,null,"1010010001",-367]
[null,null,null,null,null,null,null,null,null,null,null,"1010010000",-368]
[null,null,null,null,null,null,null,null,null,null,null,"1010110000",-336]
[null,null,null,null,null,null,null,null,null,null,null,"1010110001",-335]
[null,null,null,null,null,null,null,null,null,null,null,"1010110011",-333]
[null,null,null,null,null,null,null,null,null,null,null,"1010110010",-334]
[null,null,null,null,null,null,null,null,null,null,null,"1010110110",-330]
[null,null,null,null,null,null,null,null,null,null,null,"1010110111",-329]
[null,null,null,null,null,null,null,null,null,null,null,"1010110101",-331]
[null,null,null,null,null,null,null,null,null,null,null,"1010110100",-332]
[null,null,null,null,null,null,null,null,null,null,null,"1010111100",-324]
[null,null,null,null,null,null,null,null,null,null,null,"1010111101",-323]
[null,null,null,null,null,null,null,null,null,null,null,"1010111111",-321]
[null,null,null,null,null,null,null,null,null,null,null,"1010111110",-322]
[null,null,null,null,null,null,null,null,null,null,null,"1010111010",-326]
[null,null,null,null,null,null,null,null,null,null,null,"1010111011",-325]
[null,null,null,null,null,null,null,null,null,null,null,"1010111001",-327]
[null,null,null,null,null,null,null,null,null,null,null,"1010111000",-328]
[null,null,null,null,null,null,null,null,null,null,null,"1010101000",-344]
[null,null,null,null,null,null,null,null,null,null,null,"1010101001",-343]
[null,null,null,null,null,null,null,null,null,null,null,"1010101011",-341]
[null,null,null,null,null,null,null,null,null,null,null,"1010101010",-342]
[null,null,null,null,null,null,null,null,null,null,null,"1010101110",-338]
[null,null,null,null,null,null,null,null,null,null,null,"1010101111",-337]
[null,null,null,null,null,null,null,null,null,null,null,"1010101101",-339]
[null,null,null,null,null,null,null,null,null,null,null,"1010101100",-340]
[null,null,null,null,null,null,null,null,null,null,null,"1010100100",-348]
[null,null,null,null,null,null,null,null,null,null,null,"1010100101",-347]
[null,null,null,null,null,null,null,null,null,null,null,"1010100111",-345]
[null,null,null,null,null,null,null,null,null,null,null,"1010100110",-346]
[null,null,null,null,null,null,null,null,null,null,null,"1010100010",-350]
[null,null,null,null,null,null,null,null,null,null,null,"1010100011",-349]
[null,null,null,null,null,null,null,null,null,null,null,"1010100001",-351]
[null,null,null,null,null,null,null,null,null,null,null,"1010100000",-352]
[null,null,null,null,null,null,null,null,null,null,null,"1011100000",-288]
[null,null,null,null,null,null,null,null,null,null,null,"1011100001",{"$f":"BIN2DEC(L835)","v":-287}]
[null,null,null,null,null,null,null,null,null,null,null,"1011100011",-285]
[null,null,null,null,null,null,null,null,null,null,null,"1011100010",-286]
[null,null,null,null,null,null,null,null,null,null,null,"1011100110",-282]
[null,null,null,null,null,null,null,null,null,null,null,"1011100111",-281]
[null,null,null,null,null,null,null,null,null,null,null,"1011100101",-283]
[null,null,null,null,null,null,null,null,null,null,null,"1011100100",-284]
[null,null,null,null,null,null,null,null,null,null,null,"1011101100",-276]
[null,null,null,null,null,null,null,null,null,null,null,"1011101101",-275]
[null,null,null,null,null,null,null,null,null,null,null,"1011101111",-273]
[null,null,null,null,null,null,null,null,null,null,null,"1011101110",-274]
[null,null,null,null,null,null,null,null,null,null,null,"1011101010",-278]
[null,null,null,null,null,null,null,null,null,null,null,"1011101011",-277]
[null,null,null,null,null,null,null,null,null,null,null,"1011101001",-279]
[null,null,null,null,null,null,null,null,null,null,null,"1011101000",-280]
[null,null,null,null,null,null,null,null,null,null,null,"1011111000",-264]
[null,null,null,null,null,null,null,null,null,null,null,"1011111001",-263]
[null,null,null,null,null,null,null,null,null,null,null,"1011111011",-261]
[null,null,null,null,null,null,null,null,null,null,null,"1011111010",-262]
[null,null,null,null,null,null,null,null,null,null,null,"1011111110",-258]
[null,null,null,null,null,null,null,null,null,null,null,"1011111111",-257]
[null,null,null,null,null,null,null,null,null,null,null,"1011111101",-259]
[null,null,null,null,null,null,null,null,null,null,null,"1011111100",-260]
[null,null,null,null,null,null,null,null,null,null,null,"1011110100",-268]
[null,null,null,null,null,null,null,null,null,null,null,"1011110101",-267]
[null,null,null,null,null,null,null,null,null,null,null,"1011110111",-265]
[null,null,null,null,null,null,null,null,null,null,null,"1011110110",-266]
[null,null,null,null,null,null,null,null,null,null,null,"1011110010",-270]
[null,null,null,null,null,null,null,null,null,null,null,"1011110011",-269]
[null,null,null,null,null,null,null,null,null,null,null,"1011110001",-271]
[null,null,null,null,null,null,null,null,null,null,null,"1011110000",-272]
[null,null,null,null,null,null,null,null,null,null,null,"1011010000",-304]
[null,null,null,null,null,null,null,null,null,null,null,"1011010001",-303]
[null,null,null,null,null,null,null,null,null,null,null,"1011010011",-301]
[null,null,null,null,null,null,null,null,null,null,null,"1011010010",-302]
[null,null,null,null,null,null,null,null,null,null,null,"1011010110",-298]
[null,null,null,null,null,null,null,null,null,null,null,"1011010111",-297]
[null,null,null,null,null,null,null,null,null,null,null,"1011010101",-299]
[null,null,null,null,null,null,null,null,null,null,null,"1011010100",-300]
[null,null,null,null,null,null,null,null,null,null,null,"1011011100",-292]
[null,null,null,null,null,null,null,null,null,null,null,"1011011101",-291]
[null,null,null,null,null,null,null,null,null,null,null,"1011011111",-289]
[null,null,null,null,null,null,null,null,null,null,null,"1011011110",-290]
[null,null,null,null,null,null,null,null,null,null,null,"1011011010",-294]
[null,null,null,null,null,null,null,null,null,null,null,"1011011011",-293]
[null,null,null,null,null,null,null,null,null,null,null,"1011011001",-295]
[null,null,null,null,null,null,null,null,null,null,null,"1011011000",-296]
[null,null,null,null,null,null,null,null,null,null,null,"1011001000",-312]
[null,null,null,null,null,null,null,null,null,null,null,"1011001001",-311]
[null,null,null,null,null,null,null,null,null,null,null,"1011001011",-309]
[null,null,null,null,null,null,null,null,null,null,null,"1011001010",-310]
[null,null,null,null,null,null,null,null,null,null,null,"1011001110",-306]
[null,null,null,null,null,null,null,null,null,null,null,"1011001111",-305]
[null,null,null,null,null,null,null,null,null,null,null,"1011001101",-307]
[null,null,null,null,null,null,null,null,null,null,null,"1011001100",-308]
[null,null,null,null,null,null,null,null,null,null,null,"1011000100",-316]
[null,null,null,null,null,null,null,null,null,null,null,"1011000101",-315]
[null,null,null,null,null,null,null,null,null,null,null,"1011000111",-313]
[null,null,null,null,null,null,null,null,null,null,null,"1011000110",-314]
[null,null,null,null,null,null,null,null,null,null,null,"1011000010",-318]
[null,null,null,null,null,null,null,null,null,null,null,"1011000011",-317]
[null,null,null,null,null,null,null,null,null,null,null,"1011000001",-319]
[null,null,null,null,null,null,null,null,null,null,null,"1011000000",-320]
[null,null,null,null,null,null,null,null,null,null,null,"1001000000",-448]
[null,null,null,null,null,null,null,null,null,null,null,"1001000001",{"$f":"BIN2DEC(L899)","v":-447}]
[null,null,null,null,null,null,null,null,null,null,null,"1001000011",-445]
[null,null,null,null,null,null,null,null,null,null,null,"1001000010",-446]
[null,null,null,null,null,null,null,null,null,null,null,"1001000110",-442]
[null,null,null,null,null,null,null,null,null,null,null,"1001000111",-441]
[null,null,null,null,null,null,null,null,null,null,null,"1001000101",-443]
[null,null,null,null,null,null,null,null,null,null,null,"1001000100",-444]
[null,null,null,null,null,null,null,null,null,null,null,"1001001100",-436]
[null,null,null,null,null,null,null,null,null,null,null,"1001001101",-435]
[null,null,null,null,null,null,null,null,null,null,null,"1001001111",-433]
[null,null,null,null,null,null,null,null,null,null,null,"1001001110",-434]
[null,null,null,null,null,null,null,null,null,null,null,"1001001010",-438]
[null,null,null,null,null,null,null,null,null,null,null,"1001001011",-437]
[null,null,null,null,null,null,null,null,null,null,null,"1001001001",-439]
[null,null,null,null,null,null,null,null,null,null,null,"1001001000",-440]
[null,null,null,null,null,null,null,null,null,null,null,"1001011000",-424]
[null,null,null,null,null,null,null,null,null,null,null,"1001011001",-423]
[null,null,null,null,null,null,null,null,null,null,null,"1001011011",-421]
[null,null,null,null,null,null,null,null,null,null,null,"1001011010",-422]
[null,null,null,null,null,null,null,null,null,null,null,"1001011110",-418]
[null,null,null,null,null,null,null,null,null,null,null,"1001011111",-417]
[null,null,null,null,null,null,null,null,null,null,null,"1001011101",-419]
[null,null,null,null,null,null,null,null,null,null,null,"1001011100",-420]
[null,null,null,null,null,null,null,null,null,null,null,"1001010100",-428]
[null,null,null,null,null,null,null,null,null,null,null,"1001010101",-427]
[null,null,null,null,null,null,null,null,null,null,null,"1001010111",-425]
[null,null,null,null,null,null,null,null,null,null,null,"1001010110",-426]
[null,null,null,null,null,null,null,null,null,null,null,"1001010010",-430]
[null,null,null,null,null,null,null,null,null,null,null,"1001010011",-429]
[null,null,null,null,null,null,null,null,null,null,null,"1001010001",-431]
[null,null,null,null,null,null,null,null,null,null,null,"1001010000",-432]
[null,null,null,null,null,null,null,null,null,null,null,"1001110000",-400]
[null,null,null,null,null,null,null,null,null,null,null,"1001110001",-399]
[null,null,null,null,null,null,null,null,null,null,null,"1001110011",-397]
[null,null,null,null,null,null,null,null,null,null,null,"1001110010",-398]
[null,null,null,null,null,null,null,null,null,null,null,"1001110110",-394]
[null,null,null,null,null,null,null,null,null,null,null,"1001110111",-393]
[null,null,null,null,null,null,null,null,null,null,null,"1001110101",-395]
[null,null,null,null,null,null,null,null,null,null,null,"1001110100",-396]
[null,null,null,null,null,null,null,null,null,null,null,"1001111100",-388]
[null,null,null,null,null,null,null,null,null,null,null,"1001111101",-387]
[null,null,null,null,null,null,null,null,null,null,null,"1001111111",-385]
[null,null,null,null,null,null,null,null,null,null,null,"1001111110",-386]
[null,null,null,null,null,null,null,null,null,null,null,"1001111010",-390]
[null,null,null,null,null,null,null,null,null,null,null,"1001111011",-389]
[null,null,null,null,null,null,null,null,null,null,null,"1001111001",-391]
[null,null,null,null,null,null,null,null,null,null,null,"1001111000",-392]
[null,null,null,null,null,null,null,null,null,null,null,"1001101000",-408]
[null,null,null,null,null,null,null,null,null,null,null,"1001101001",-407]
[null,null,null,null,null,null,null,null,null,null,null,"1001101011",-405]
[null,null,null,null,null,null,null,null,null,null,null,"1001101010",-406]
[null,null,null,null,null,null,null,null,null,null,null,"1001101110",-402]
[null,null,null,null,null,null,null,null,null,null,null,"1001101111",-401]
[null,null,null,null,null,null,null,null,null,null,null,"1001101101",-403]
[null,null,null,null,null,null,null,null,null,null,null,"1001101100",-404]
[null,null,null,null,null,null,null,null,null,null,null,"1001100100",-412]
[null,null,null,null,null,null,null,null,null,null,null,"1001100101",-411]
[null,null,null,null,null,null,null,null,null,null,null,"1001100111",-409]
[null,null,null,null,null,null,null,null,null,null,null,"1001100110",-410]
[null,null,null,null,null,null,null,null,null,null,null,"1001100010",-414]
[null,null,null,null,null,null,null,null,null,null,null,"1001100011",-413]
[null,null,null,null,null,null,null,null,null,null,null,"1001100001",-415]
[null,null,null,null,null,null,null,null,null,null,null,"1001100000",-416]
[null,null,null,null,null,null,null,null,null,null,null,"1000100000",-480]
[null,null,null,null,null,null,null,null,null,null,null,"1000100001",{"$f":"BIN2DEC(L963)","v":-479}]
[null,null,null,null,null,null,null,null,null,null,null,"1000100011",-477]
[null,null,null,null,null,null,null,null,null,null,null,"1000100010",-478]
[null,null,null,null,null,null,null,null,null,null,null,"1000100110",-474]
[null,null,null,null,null,null,null,null,null,null,null,"1000100111",-473]
[null,null,null,null,null,null,null,null,null,null,null,"1000100101",-475]
[null,null,null,null,null,null,null,null,null,null,null,"1000100100",-476]
[null,null,null,null,null,null,null,null,null,null,null,"1000101100",-468]
[null,null,null,null,null,null,null,null,null,null,null,"1000101101",-467]
[null,null,null,null,null,null,null,null,null,null,null,"1000101111",-465]
[null,null,null,null,null,null,null,null,null,null,null,"1000101110",-466]
[null,null,null,null,null,null,null,null,null,null,null,"1000101010",-470]
[null,null,null,null,null,null,null,null,null,null,null,"1000101011",-469]
[null,null,null,null,null,null,null,null,null,null,null,"1000101001",-471]
[null,null,null,null,null,null,null,null,null,null,null,"1000101000",-472]
[null,null,null,null,null,null,null,null,null,null,null,"1000111000",-456]
[null,null,null,null,null,null,null,null,null,null,null,"1000111001",-455]
[null,null,null,null,null,null,null,null,null,null,null,"1000111011",-453]
[null,null,null,null,null,null,null,null,null,null,null,"1000111010",-454]
[null,null,null,null,null,null,null,null,null,null,null,"1000111110",-450]
[null,null,null,null,null,null,null,null,null,null,null,"1000111111",-449]
[null,null,null,null,null,null,null,null,null,null,null,"1000111101",-451]
[null,null,null,null,null,null,null,null,null,null,null,"1000111100",-452]
[null,null,null,null,null,null,null,null,null,null,null,"1000110100",-460]
[null,null,null,null,null,null,null,null,null,null,null,"1000110101",-459]
[null,null,null,null,null,null,null,null,null,null,null,"1000110111",-457]
[null,null,null,null,null,null,null,null,null,null,null,"1000110110",-458]
[null,null,null,null,null,null,null,null,null,null,null,"1000110010",-462]
[null,null,null,null,null,null,null,null,null,null,null,"1000110011",-461]
[null,null,null,null,null,null,null,null,null,null,null,"1000110001",-463]
[null,null,null,null,null,null,null,null,null,null,null,"1000110000",-464]
[null,null,null,null,null,null,null,null,null,null,null,"1000010000",-496]
[null,null,null,null,null,null,null,null,null,null,null,"1000010001",-495]
[null,null,null,null,null,null,null,null,null,null,null,"1000010011",-493]
[null,null,null,null,null,null,null,null,null,null,null,"1000010010",-494]
[null,null,null,null,null,null,null,null,null,null,null,"1000010110",-490]
[null,null,null,null,null,null,null,null,null,null,null,"1000010111",-489]
[null,null,null,null,null,null,null,null,null,null,null,"1000010101",-491]
[null,null,null,null,null,null,null,null,null,null,null,"1000010100",-492]
[null,null,null,null,null,null,null,null,null,null,null,"1000011100",-484]
[null,null,null,null,null,null,null,null,null,null,null,"1000011101",-483]
[null,null,null,null,null,null,null,null,null,null,null,"1000011111",-481]
[null,null,null,null,null,null,null,null,null,null,null,"1000011110",-482]
[null,null,null,null,null,null,null,null,null,null,null,"1000011010",-486]
[null,null,null,null,null,null,null,null,null,null,null,"1000011011",-485]
[null,null,null,null,null,null,null,null,null,null,null,"1000011001",-487]
[null,null,null,null,null,null,null,null,null,null,null,"1000011000",-488]
[null,null,null,null,null,null,null,null,null,null,null,"1000001000",-504]
[null,null,null,null,null,null,null,null,null,null,null,"1000001001",-503]
[null,null,null,null,null,null,null,null,null,null,null,"1000001011",-501]
[null,null,null,null,null,null,null,null,null,null,null,"1000001010",-502]
[null,null,null,null,null,null,null,null,null,null,null,"1000001110",-498]
[null,null,null,null,null,null,null,null,null,null,null,"1000001111",-497]
[null,null,null,null,null,null,null,null,null,null,null,"1000001101",-499]
[null,null,null,null,null,null,null,null,null,null,null,"1000001100",-500]
[null,null,null,null,null,null,null,null,null,null,null,"1000000100",-508]
[null,null,null,null,null,null,null,null,null,null,null,"1000000101",-507]
[null,null,null,null,null,null,null,null,null,null,null,"1000000111",-505]
[null,null,null,null,null,null,null,null,null,null,null,"1000000110",-506]
[null,null,null,null,null,null,null,null,null,null,null,"1000000010",-510]
[null,null,null,null,null,null,null,null,null,null,null,"1000000011",-509]
[null,null,null,null,null,null,null,null,null,null,null,"1000000001",-511]
[null,null,null,null,null,null,null,null,null,null,null,"1000000000",-512]

{"sheet":"Tabelle2","index":1,"n_rows":20,"n_cols":2,"rows_kept":20,"cut":false,"hidden":false,"merged":[]}
["elements = [16]("]
[24,24]
[25,25]
[27,27]
[26,26]
[]
[18,18]
[19,19]
[17,17]
[16,16]
[]
[59,48]
[58,49]
[56,51]
[57,50]
[]
[51,58]
[50,59]
[48,57]
[49,56]

{"sheet":"Tabelle3","index":2,"n_rows":0,"n_cols":0,"rows_kept":0,"cut":false,"hidden":false,"merged":[]}